Workbook

Sheet INDEX
A1: INDEX
A2: Model Specs
A3: 1. Information Sheet
A4: 2. Current Tariff Schedule
A5: 3. Continuity Schedule
A6: 4. Billing Det. for Def-Var
A7: 5. Allocating Def-Var Balances
A8: 6. Class A Consumption Data
A9: 6.1a GA Allocation
A10: 6.1 GA
A11: 6.2a CBR B_Allocation
A12: 6.2 CBR B
A13: 8. Calculation of Def-Var RR
A14: 9. STS-Tax Change
A15: 10. Shared Tax - RR
A16: 11. RTSR - Current Rates
A17: 12. RTSR-UTRs & Sub-Tx
A18: 13. RTSR-Historic Wholesale
A19: 14. RTSR-Current Wholesale
A20: 15. RTSR-Forecast Wholesale
A21: 16. RTSR-Rates to Forecast
A22: 17. Rev2Cost-GDPIPI
A23: 18. Regulatory Charges
A24: 19. Additional Rates
A25: 20. Final Tariff Schedule
A26: 21. Bill Impacts
A27: RATES
A28: BoD Reporting

Sheet Model Specs
A1: Back to Index | K1: Lists:
B2: Model Specifications
K3: Yes
B4: Utility | C4: Guelph rate zone | K4: No
B6: Applying for Rates Effective | C6: 2020-01-01 | K6: kWh
K7: kW
K8: kVA
B9: Line Loss Factor | C9: 1.026
K10: Alectra - PowerStream rate zone | L10: PowerStream rate zone
K11: Alectra - Enersource rate zone | L11: Enersource rate zone
K12: Alectra - Horizon rate zone | L12: Horizon rate zone
K13: Alectra - Brampton rate zone | L13: Brampton rate zone
C14: Rate Classes (select from the List) | K14: Alectra - Guelph rate zone | L14: Guelph rate zone
B15: =IFERROR(VLOOKUP(C15,$K$16:$L$33,2,FALSE),"") -> R | C15: RESIDENTIAL SERVICE CLASSIFICATION
B16: GSL | C16: GENERAL SERVICE LESS THAN 50 kW SERVICE CLASSIFICATION | K16: RESIDENTIAL SERVICE CLASSIFICATION | L16: R | M16: R_TN | N16: R_TC
B17: GS50_999 | C17: GENERAL SERVICE 50 to 999 KW SERVICE CLASSIFICATION | K17: GENERAL SERVICE LESS THAN 50 kW SERVICE CLASSIFICATION | L17: GSL | M17: GSL_TN | N17: GSL_TC
B18: GS1000 | C18: GENERAL SERVICE 1,000 to 4,999 KW SERVICE CLASSIFICATION | K18: GENERAL SERVICE 50 to 499 kW SERVICE CLASSIFICATION | L18: GS50_499 | M18: GS50_499_TN | N18: GS50_499_TC
B19: LU | C19: LARGE USE SERVICE CLASSIFICATION | K19: GENERAL SERVICE 50 to 699 KW SERVICE CLASSIFICATION | L19: GS50_699 | M19: GS50_699_TN | N19: GS50_699_TC
B20: USL | C20: UNMETERED SCATTERED LOAD SERVICE CLASSIFICATION | K20: GENERAL SERVICE 50 to 999 KW SERVICE CLASSIFICATION | L20: GS50_999 | M20: GS50_999_TN | N20: GS50_999_TC
B21: SB | C21: STANDBY POWER SERVICE CLASSIFICATION | K21: GENERAL SERVICE 50 to 4,999 kW SERVICE CLASSIFICATION | L21: GS50 | M21: GS50_TN | N21: GS50_TC
B22: SEN | C22: SENTINEL LIGHTING SERVICE CLASSIFICATION | K22: GENERAL SERVICE 500 to 4,999 kW SERVICE CLASSIFICATION | L22: GS500 | M22: GS500_TN | N22: GS500_TC
B23: SL | C23: STREET LIGHTING SERVICE CLASSIFICATION | K23: GENERAL SERVICE 700 to 4,999 KW SERVICE CLASSIFICATION | L23: GS700 | M23: GS700_TN | N23: GS700_TC
K24: GENERAL SERVICE 1,000 to 4,999 KW SERVICE CLASSIFICATION | L24: GS1000 | M24: GS1000_TN | N24: GS1000_TC
K25: LARGE USE SERVICE CLASSIFICATION | L25: LU | M25: LU_TN | N25: LU_TC
B26: =IFERROR(VLOOKUP(C26,$K$16:$L$33,2,FALSE),"") ->  | K26: LARGE USE SERVICE WITH DEDICATED ASSETSCLASSIFICATION | L26: LU_DA | M26: LU_DA_TN | N26: LU_DA_TC
K27: UNMETERED SCATTERED LOAD SERVICE CLASSIFICATION | L27: USL | M27: USL_TN | N27: USL_TC
K28: STREET LIGHTING SERVICE CLASSIFICATION | L28: SL | M28: SL_TN | N28: SL_TC
K29: STANDBY POWER SERVICE CLASSIFICATION | L29: SB | M29: SB | N29: SB
K30: SENTINEL LIGHTING SERVICE CLASSIFICATION | L30: SEN | M30: SEN_TN | N30: SEN_TC
K31: EMBEDDED DISTRIBUTOR SERVICE CLASSIFICATION | L31: EMB | M31: EMB | N31: EMB
K32: DISTRIBUTED GENERATION [DGEN] SERVICE CLASSIFICATION | L32: DG | M32: DG | N32: DG
K33: ENERGY FROM WASTE SERVICE CLASSIFICATION | L33: WST | M33: WST | N33: WST
B36: Have one or more Class A customers | C36: Yes
K38: Newer Disposed
K39: 2015
K40: 2016
K41: 2017
K42: 2018

Sheet 1. Information Sheet
A1: Back to Index | V1: a
B2: INCENTIVE REGULATION MODEL FOR 2020 FILERS
N12: Version | O12: 1
F14: Utility Name | G14: Alectra - Guelph rate zone
F16: Service Territory
F18: Assigned EB Number | G18: EB-2019-0018
F20: Name of Contact and Title | G20: Indy J. Butany-DeSouza, Vice-President, Regulatory Affairs
F22: Phone Number | G22: 905-821-5727
F24: Email Address | G24: indy.butany@alectrautilities.com
F26: We are applying for rates effective | G26: 2020-01-01
F28: Rate-Setting Method | G28: Price Cap IR
B30: Please indicate in which Rate Year the Group 1 accounts were last cleared1 | G30: 2019
B32: Please indicate the last Cost of Service Re-Basing Year | G32: 2016
C35: Notes
D37: Pale gray cells represent input cells.
D39: Pale blue cells represent drop-down lists.
D41: White cells contain fixed values, automatically generated values or formulae.
B44: Note: 1. Rate year of application

Sheet 2. Current Tariff Schedule
A1: Back to Index
B2: INCENTIVE REGULATION MODEL FOR 2020 FILERS
B11: Guelph Hydro Electric Systems Inc. | F11: X | G11: Guelph Hydro Electric Systems Inc._Start | H11: Guelph Hydro Electric Systems Inc. | J11: 10 | AA11: Guelph Hydro Electric Systems Inc.
B12: TARIFF OF RATES AND CHARGES | AA12: TARIFF OF RATES AND CHARGES
B13: Effective and Implementation Date January 1, 2019 | P13: 2018-01-01 | AA13: Effective and Implementation Date January 1, 2018
B14: This schedule supersedes and replaces all previously | AA14: This schedule supersedes and replaces all previously
B15: approved schedules of Rates, Charges and Loss Factors | AA15: approved schedules of Rates, Charges and Loss Factors
B16: EB-2018-0036 | H16: EB-2017-0044 | AA16: EB-2017-0044 | AS16: X
B17: RESIDENTIAL SERVICE CLASSIFICATION | H17: 1_RESIDENTIAL SERVICE CLASSIFICATION | AA17: RESIDENTIAL SERVICE CLASSIFICATION | BC17: RESIDENTIAL SERVICE CLASSIFICATION
B18: This classification includes accounts taking electricity at 750 volts or less where the electricity is used exclusively in a separately metered living accommodation. Customers shall be residing in single-dwelling units that consist of a detached house or one unit of a semi-detached, duplex, triplex or quadruplex house, with a residential zoning. Separately metered dwellings within a town house complex or apartment building also qualify as residential customers. Class B consumers are defined in accordance with O. Reg. 429/04. Further servicing details are available in the distributor’s Conditions of Service. | H18: 1_RESIDENTIAL SERVICE CLASSIFICATION | AA18: This classification includes accounts taking electricity at 750 volts or less where the electricity is used exclusively in a separately metered living accommodation. Customers shall be residing in single-dwelling units that consist of a detached house or one unit of a semi-detached, duplex, triplex or quadruplex house, with a residential zoning. Separately metered dwellings within a town house complex or apartment building also qualify as residential customers. Class B consumers are defined in accordance with O. Reg. 429/04. Further servicing details are available in the distributor’s Conditions of Service. | BC18: This classification includes accounts taking electricity at 750 volts or less where the electricity is used exclusively in a separately metered living accommodation. Customers shall be residing in single-dwelling units that consist of a detached house or one unit of a semi-detached, duplex, triplex or quadruplex house, with a residential zoning. Separately metered dwellings within a town house complex or apartment building also qualify as residential customers. Class B consumers are defined in accordance with O. Reg. 429/04. Further servicing details are available in the distributor’s Conditions of Service.
B20: APPLICATION | H20: 1_APPLICATION | AA20: APPLICATION | BC20: APPLICATION
B22: The application of these rates and charges shall be in accordance with the Licence of the Distributor and any Code or Order of the Ontario Energy Board, and amendments thereto as approved by the Ontario Energy Board, which may be applicable to the administration of this schedule. | H22: 1_RESIDENTIAL SERVICE CLASSIFICATION | AA22: The application of these rates and charges shall be in accordance with the Licence of the Distributor and any Code or Order of the Ontario Energy Board, and amendments thereto as approved by the Ontario Energy Board, which may be applicable to the administration of this schedule. | BC22: The application of these rates and charges shall be in accordance with the Licence of the Distributor and any Code or Order of the Ontario Energy Board, and amendments thereto as approved by the Ontario Energy Board, which may be applicable to the administration of this schedule.
B24: No rates and charges for the distribution of electricity and charges to meet the costs of any work or service done or furnished for the purpose of the distribution of electricity shall be made except as permitted by this schedule, unless required by the Distributor’s Licence or a Code or Order of the Ontario Energy Board, and amendments thereto as approved by the Ontario Energy Board, or as specified herein. | H24: 1_RESIDENTIAL SERVICE CLASSIFICATION | AA24: No rates and charges for the distribution of electricity and charges to meet the costs of any work or service done or furnished for the purpose of the distribution of electricity shall be made except as permitted by this schedule, unless required by the Distributor’s Licence or a Code or Order of the Ontario Energy Board, and amendments thereto as approved by the Ontario Energy Board, or as specified herein. | BC24: No rates and charges for the distribution of electricity and charges to meet the costs of any work or service done or furnished for the purpose of the distribution of electricity shall be made except as permitted by this schedule, unless required by the Distributor’s Licence or a Code or Order of the Ontario Energy Board, and amendments thereto as approved by the Ontario Energy Board, or as specified herein.
B26: Unless specifically noted, this schedule does not contain any charges for the electricity commodity, be it under the Regulated Price Plan, a contract with a retailer or the wholesale market price, as applicable. In addition, the charges in the MONTHLY RATES AND CHARGES - Regulatory Component of this schedule do not apply to a customer that is an embedded wholesale market participant. | H26: 1_RESIDENTIAL SERVICE CLASSIFICATION | AA26: Unless specifically noted, this schedule does not contain any charges for the electricity commodity, be it under the Regulated Price Plan, a contract with a retailer or the wholesale market price, as applicable. In addition, the charges in the MONTHLY RATES AND CHARGES - Regulatory Component of this schedule do not apply to a customer that is an embedded wholesale market participant. | BC26: Unless specifically noted, this schedule does not contain any charges for the electricity commodity, be it under the Regulated Price Plan, a contract with a retailer or the wholesale market price, as applicable. In addition, the charges in the MONTHLY RATES AND CHARGES - Regulatory Component of this schedule do not apply to a customer that is an embedded wholesale market participant.
B28: It should be noted that this schedule does not list any charges, assessments or credits that are required by law to be invoiced by a distributor and that are not subject to Ontario Energy Board approval, such as the Debt Retirement Charge, the Global Adjustment and the HST. | H28: 1_RESIDENTIAL SERVICE CLASSIFICATION | AA28: It should be noted that this schedule does not list any charges, assessments or credits that are required by law to be invoiced by a distributor and that are not subject to Ontario Energy Board approval, such as the Debt Retirement Charge, the Global Adjustment and the HST. | BC28: It should be noted that this schedule does not list any charges, assessments or credits that are required by law to be invoiced by a distributor and that are not subject to Ontario Energy Board approval, such as the Debt Retirement Charge, the Global Adjustment and the HST.
B30: MONTHLY RATES AND CHARGES - Delivery Component | H30: 1_MRC_Del | AA30: MONTHLY RATES AND CHARGES - Delivery Component | BC30: MONTHLY RATES AND CHARGES - Delivery Component
A32: R_F | B32: Service Charge | D32: $ | E32: 29.22 | H32: 1_RESIDENTIAL SERVICE CLASSIFICATION | I32: A | M32: 1_RESIDENTIAL SERVICE CLASSIFICATION_MSC | Z32: 1_RESIDENTIAL SERVICE CLASSIFICATION_MSC | BB32: Service Charge
A33: R_PRAG | B33: Rate Rider for Disposition of Post Retirement Actuarial Gain - effective until March 31, 2025 | D33: $ | E33: -0.18 | H33: 1_RESIDENTIAL SERVICE CLASSIFICATION | I33: A | M33: 1_RESIDENTIAL SERVICE CLASSIFICATION_FX_RR_76 | Q33: 2025-03-31 | Z33: Rate Rider for Disposition of Post Retirement Actuarial Gain - effective until March 31, 2025 | BB33: Rate Rider for Disposition of Post Retirement Actuarial Gain - effective until March 31, 2025
A34: R_SME | B34: Smart Metering Entity Charge - effective until December 31, 2022 | D34: $ | E34: 0.57 | H34: 1_RESIDENTIAL SERVICE CLASSIFICATION | I34: B | M34: 1_RESIDENTIAL SERVICE CLASSIFICATION_SME | Z34: 1_RESIDENTIAL SERVICE CLASSIFICATION_SME | BB34: Smart Metering Entity Charge - effective until December 31, 2022
A35: R_GA19 | B35: Rate Rider for Disposition of Global Adjustment Account (2019) - effective until December 31, 2019 Applicable only for Non-RPP Customers - Approved on a Interim Basis | D35: $/kWh | E35: 0.0058 | H35: 1_RESIDENTIAL SERVICE CLASSIFICATION | I35: B | M35: 1_RESIDENTIAL SERVICE CLASSIFICATION_GA_kwh | BB35: Rate Rider for Disposition of Global Adjustment Account (2019) - effective until December 31, 2019 Applicable only for Non-RPP Customers
A36: R_LRV19 | B36: Rate Rider for Disposition of Lost Revenue Adjustment Mechanism Variance Account (LRAMVA) (2019) - effective until December 31, 2019 | D36: $/kWh | E36: 0.0004 | H36: 1_RESIDENTIAL SERVICE CLASSIFICATION | I36: A | M36: 1_RESIDENTIAL SERVICE CLASSIFICATION_LRAM | BB36: Rate Rider for Disposition of Lost Revenue Adjustment Mechanism Variance Account (LRAMVA) (2019) - effective until December 31, 2019
A37: R_DVA19 | B37: Rate Rider for Disposition of Deferral/Variance Accounts (2019) - effective until December 31, 2019 - Approved on a Interim Basis | D37: $/kWh | E37: 0.001 | H37: 1_RESIDENTIAL SERVICE CLASSIFICATION | I37: B | M37: 1_RESIDENTIAL SERVICE CLASSIFICATION_DVA | BB37: Rate Rider for Disposition of Deferral/Variance Accounts (2019) - effective until December 31, 2019
A38: R_RBCA19 | B38: Rate Rider for Disposition and Recovery/Refund of Regulatory Balances Control Account (2016) Applicable only for Non-RPP Customers - effective until December 31, 2019 | D38: $/kWh | E38: 0.0018 | H38: 1_RESIDENTIAL SERVICE CLASSIFICATION | I38: B | M38: 1_RESIDENTIAL SERVICE CLASSIFICATION_VR_RR | Z38: 1_RESIDENTIAL SERVICE CLASSIFICATION_CBR_1 | BB38: Rate Rider for Disposition and Recovery/Refund of Regulatory Balances Control Account (2016) Applicable only for Non-RPP Customers - effective until December 31, 2019
A39: R_TN | B39: Retail Transmission Rate - Network Service Rate | D39: $/kWh | E39: 0.0068 | H39: 1_RESIDENTIAL SERVICE CLASSIFICATION | I39: C | M39: 1_RESIDENTIAL SERVICE CLASSIFICATION_Retail Transmission Rate - Network Service Rate | Z39: 1_RESIDENTIAL SERVICE CLASSIFICATION_Retail Transmission Rate - Network Service Rate | AZ39: RESIDENTIAL SERVICE CLASSIFICATION_Retail Transmission Rate - Network Service Rate | BB39: Retail Transmission Rate - Network Service Rate
A40: R_TC | B40: Retail Transmission Rate - Line and Transformation Connection Service Rate | D40: $/kWh | E40: 0.0062 | H40: 1_RESIDENTIAL SERVICE CLASSIFICATION | I40: C | M40: 1_RESIDENTIAL SERVICE CLASSIFICATION_Retail Transmission Rate - Line and Transformation Connection Service Rate | Z40: 1_RESIDENTIAL SERVICE CLASSIFICATION_Retail Transmission Rate - Line and Transformation Connection Service Rate | AZ40: RESIDENTIAL SERVICE CLASSIFICATION_Retail Transmission Rate - Line and Transformation Connection Service Rate | BB40: Retail Transmission Rate - Line and Transformation Connection Service Rate
B42: MONTHLY RATES AND CHARGES - Regulatory Component | H42: 1_MRC_Reg | AA42: MONTHLY RATES AND CHARGES - Regulatory Component | BC42: MONTHLY RATES AND CHARGES - Regulatory Component
B44: Wholesale Market Service Rate (WMS) - not including CBR | D44: $/kWh | E44: 0.003 | H44: 1_RESIDENTIAL SERVICE CLASSIFICATION | I44: T | M44: 1_RESIDENTIAL SERVICE CLASSIFICATION_WMSR | Z44: Wholesale Market Service Rate (WMS) - not including CBR | BB44: Wholesale Market Service Rate (WMS) - not including CBR
B45: Capacity Based Recovery (CBR) - Applicable for Class B Customers | D45: $/kWh | E45: 0.0004 | H45: 1_RESIDENTIAL SERVICE CLASSIFICATION | I45: T | M45: 1_RESIDENTIAL SERVICE CLASSIFICATION_WMSR | Z45: Capacity Based Recovery (CBR) - Applicable for Class B Customers | BB45: Capacity Based Recovery (CBR) - Applicable for Class B Customers
B46: Rural or Remote Electricity Rate Protection Charge (RRRP) | D46: $/kWh | E46: 0.0005 | H46: 1_RESIDENTIAL SERVICE CLASSIFICATION | I46: T | M46: 1_RESIDENTIAL SERVICE CLASSIFICATION_RRRP | Z46: Rural or Remote Electricity Rate Protection Charge (RRRP) | BB46: Rural or Remote Electricity Rate Protection Charge (RRRP)
B47: Standard Supply Service - Administrative Charge (if applicable) | D47: $ | E47: 0.25 | H47: 1_RESIDENTIAL SERVICE CLASSIFICATION | I47: T | M47: 1_RESIDENTIAL SERVICE CLASSIFICATION_SSS | Z47: Standard Supply Service - Administrative Charge (if applicable) | AS47: X | BB47: Standard Supply Service - Administrative Charge (if applicable)
B48: GENERAL SERVICE LESS THAN 50 KW SERVICE CLASSIFICATION | H48: 2_GENERAL SERVICE LESS THAN 50 KW SERVICE CLASSIFICATION | AA48: GENERAL SERVICE LESS THAN 50 KW SERVICE CLASSIFICATION | BC48: GENERAL SERVICE LESS THAN 50 KW SERVICE CLASSIFICATION
B49: This classification includes non-residential accounts taking electricity at 750 volts or less where monthly average peak demand is less than, or is forecast to be less than, 50 kW. Class B consumers are defined in accordance with O. Reg. 429/04. Further servicing details are available in the distributor’s Conditions of Service. | H49: 2_GENERAL SERVICE LESS THAN 50 KW SERVICE CLASSIFICATION | AA49: This classification includes non-residential accounts taking electricity at 750 volts or less where monthly average peak demand is less than, or is forecast to be less than, 50 kW. Class B consumers are defined in accordance with O. Reg. 429/04. Further servicing details are available in the distributor’s Conditions of Service. | BC49: This classification includes non-residential accounts taking electricity at 750 volts or less where monthly average peak demand is less than, or is forecast to be less than, 50 kW. Class B consumers are defined in accordance with O. Reg. 429/04. Further servicing details are available in the distributor’s Conditions of Service.
B51: APPLICATION | H51: 2_APPLICATION | AA51: APPLICATION | BC51: APPLICATION
B53: The application of these rates and charges shall be in accordance with the Licence of the Distributor and any Code or Order of the Ontario Energy Board, and amendments thereto as approved by the Ontario Energy Board, which may be applicable to the administration of this schedule. | H53: 2_GENERAL SERVICE LESS THAN 50 KW SERVICE CLASSIFICATION | AA53: The application of these rates and charges shall be in accordance with the Licence of the Distributor and any Code or Order of the Ontario Energy Board, and amendments thereto as approved by the Ontario Energy Board, which may be applicable to the administration of this schedule. | BC53: The application of these rates and charges shall be in accordance with the Licence of the Distributor and any Code or Order of the Ontario Energy Board, and amendments thereto as approved by the Ontario Energy Board, which may be applicable to the administration of this schedule.
B55: No rates and charges for the distribution of electricity and charges to meet the costs of any work or service done or furnished for the purpose of the distribution of electricity shall be made except as permitted by this schedule, unless required by the Distributor’s Licence or a Code or Order of the Ontario Energy Board, and amendments thereto as approved by the Ontario Energy Board, or as specified herein. | H55: 2_GENERAL SERVICE LESS THAN 50 KW SERVICE CLASSIFICATION | AA55: No rates and charges for the distribution of electricity and charges to meet the costs of any work or service done or furnished for the purpose of the distribution of electricity shall be made except as permitted by this schedule, unless required by the Distributor’s Licence or a Code or Order of the Ontario Energy Board, and amendments thereto as approved by the Ontario Energy Board, or as specified herein. | BC55: No rates and charges for the distribution of electricity and charges to meet the costs of any work or service done or furnished for the purpose of the distribution of electricity shall be made except as permitted by this schedule, unless required by the Distributor’s Licence or a Code or Order of the Ontario Energy Board, and amendments thereto as approved by the Ontario Energy Board, or as specified herein.
B57: Unless specifically noted, this schedule does not contain any charges for the electricity commodity, be it under the Regulated Price Plan, a contract with a retailer or the wholesale market price, as applicable. In addition, the charges in the MONTHLY RATES AND CHARGES - Regulatory Component of this schedule do not apply to a customer that is an embedded wholesale market participant. | H57: 2_GENERAL SERVICE LESS THAN 50 KW SERVICE CLASSIFICATION | AA57: Unless specifically noted, this schedule does not contain any charges for the electricity commodity, be it under the Regulated Price Plan, a contract with a retailer or the wholesale market price, as applicable. In addition, the charges in the MONTHLY RATES AND CHARGES - Regulatory Component of this schedule do not apply to a customer that is an embedded wholesale market participant. | BC57: Unless specifically noted, this schedule does not contain any charges for the electricity commodity, be it under the Regulated Price Plan, a contract with a retailer or the wholesale market price, as applicable. In addition, the charges in the MONTHLY RATES AND CHARGES - Regulatory Component of this schedule do not apply to a customer that is an embedded wholesale market participant.
B59: It should be noted that this schedule does not list any charges, assessments or credits that are required by law to be invoiced by a distributor and that are not subject to Ontario Energy Board approval, such as the Debt Retirement Charge, the Global Adjustment and the HST. | H59: 2_GENERAL SERVICE LESS THAN 50 KW SERVICE CLASSIFICATION | AA59: It should be noted that this schedule does not list any charges, assessments or credits that are required by law to be invoiced by a distributor and that are not subject to Ontario Energy Board approval, such as the Debt Retirement Charge, the Global Adjustment and the HST. | BC59: It should be noted that this schedule does not list any charges, assessments or credits that are required by law to be invoiced by a distributor and that are not subject to Ontario Energy Board approval, such as the Debt Retirement Charge, the Global Adjustment and the HST.
B61: MONTHLY RATES AND CHARGES - Delivery Component | H61: 2_MRC_Del | AA61: MONTHLY RATES AND CHARGES - Delivery Component | BC61: MONTHLY RATES AND CHARGES - Delivery Component
A63: GSL_F | B63: Service Charge | D63: $ | E63: 16.94 | H63: 2_GENERAL SERVICE LESS THAN 50 KW SERVICE CLASSIFICATION | I63: A | M63: 2_GENERAL SERVICE LESS THAN 50 KW SERVICE CLASSIFICATION_MSC | Z63: 2_GENERAL SERVICE LESS THAN 50 KW SERVICE CLASSIFICATION_MSC | BB63: Service Charge
A64: GSL_PRAG | B64: Rate Rider for Disposition of Post Retirement Actuarial Gain - effective until March 31, 2025 | D64: $ | E64: -0.5 | H64: 2_GENERAL SERVICE LESS THAN 50 KW SERVICE CLASSIFICATION | I64: A | M64: 2_GENERAL SERVICE LESS THAN 50 KW SERVICE CLASSIFICATION_FX_RR_78 | Q64: 2025-03-31 | Z64: Rate Rider for Disposition of Post Retirement Actuarial Gain - effective until March 31, 2025 | BB64: Rate Rider for Disposition of Post Retirement Actuarial Gain - effective until March 31, 2025
A65: GSL_SME | B65: Smart Metering Entity Charge - effective until December 31, 2022 | D65: $ | E65: 0.57 | H65: 2_GENERAL SERVICE LESS THAN 50 KW SERVICE CLASSIFICATION | I65: B | M65: 2_GENERAL SERVICE LESS THAN 50 KW SERVICE CLASSIFICATION_SME | Z65: 2_GENERAL SERVICE LESS THAN 50 KW SERVICE CLASSIFICATION_SME | BB65: Smart Metering Entity Charge - effective until December 31, 2022
A66: GSL_V | B66: Distribution Volumetric Rate | D66: $/kWh | E66: 0.0142 | H66: 2_GENERAL SERVICE LESS THAN 50 KW SERVICE CLASSIFICATION | I66: A | M66: 2_GENERAL SERVICE LESS THAN 50 KW SERVICE CLASSIFICATION_DVC | Z66: 2_GENERAL SERVICE LESS THAN 50 KW SERVICE CLASSIFICATION_DVC | BB66: Distribution Volumetric Rate
A67: GSL_GA19 | B67: Rate Rider for Disposition of Global Adjustment Account (2019) - effective until December 31, 2019 Applicable only for Non-RPP Customers - Approved on a Interim Basis | D67: $/kWh | E67: 0.0058 | H67: 2_GENERAL SERVICE LESS THAN 50 KW SERVICE CLASSIFICATION | I67: B | M67: 2_GENERAL SERVICE LESS THAN 50 KW SERVICE CLASSIFICATION_GA_kwh | BB67: Rate Rider for Disposition of Global Adjustment Account (2019) - effective until December 31, 2019 Applicable only for Non-RPP Customers
A68: GSL_LRV19 | B68: Rate Rider for Disposition of Lost Revenue Adjustment Mechanism Variance Account (LRAMVA) (2019) - effective until December 31, 2019 | D68: $/kWh | E68: 0.0004 | H68: 2_GENERAL SERVICE LESS THAN 50 KW SERVICE CLASSIFICATION | I68: A | M68: 2_GENERAL SERVICE LESS THAN 50 KW SERVICE CLASSIFICATION_LRAM | BB68: Rate Rider for Disposition of Lost Revenue Adjustment Mechanism Variance Account (LRAMVA) (2019) - effective until December 31, 2019
A69: GSL_DVA19 | B69: Rate Rider for Disposition of Deferral/Variance Accounts (2019) - effective until December 31, 2019 - Approved on a Interim Basis | D69: $/kWh | E69: 0.001 | H69: 2_GENERAL SERVICE LESS THAN 50 KW SERVICE CLASSIFICATION | I69: B | M69: 2_GENERAL SERVICE LESS THAN 50 KW SERVICE CLASSIFICATION_DVA | BB69: Rate Rider for Disposition of Deferral/Variance Accounts (2019) - effective until December 31, 2019
A70: GSL_RBCA19 | B70: Rate Rider for Disposition and Recovery/Refund of Regulatory Balances Control Account (2016) Applicable only for Non-RPP Customers - effective until December 31, 2019 | D70: $/kWh | E70: 0.0006 | H70: 2_GENERAL SERVICE LESS THAN 50 KW SERVICE CLASSIFICATION | I70: B | M70: 2_GENERAL SERVICE LESS THAN 50 KW SERVICE CLASSIFICATION_VR_RR | Z70: 2_GENERAL SERVICE LESS THAN 50 KW SERVICE CLASSIFICATION_CBR_1 | BB70: Rate Rider for Disposition and Recovery/Refund of Regulatory Balances Control Account (2016) Applicable only for Non-RPP Customers - effective until December 31, 2019
A71: GSL_TN | B71: Retail Transmission Rate - Network Service Rate | D71: $/kWh | E71: 0.0062 | H71: 2_GENERAL SERVICE LESS THAN 50 KW SERVICE CLASSIFICATION | I71: C | M71: 2_GENERAL SERVICE LESS THAN 50 KW SERVICE CLASSIFICATION_Retail Transmission Rate - Network Service Rate | Z71: 2_GENERAL SERVICE LESS THAN 50 KW SERVICE CLASSIFICATION_Retail Transmission Rate - Network Service Rate | AZ71: GENERAL SERVICE LESS THAN 50 KW SERVICE CLASSIFICATION_Retail Transmission Rate - Network Service Rate | BB71: Retail Transmission Rate - Network Service Rate
A72: GSL_TC | B72: Retail Transmission Rate - Line and Transformation Connection Service Rate | D72: $/kWh | E72: 0.0055 | H72: 2_GENERAL SERVICE LESS THAN 50 KW SERVICE CLASSIFICATION | I72: C | M72: 2_GENERAL SERVICE LESS THAN 50 KW SERVICE CLASSIFICATION_Retail Transmission Rate - Line and Transformation Connection Service Rate | Z72: 2_GENERAL SERVICE LESS THAN 50 KW SERVICE CLASSIFICATION_Retail Transmission Rate - Line and Transformation Connection Service Rate | AZ72: GENERAL SERVICE LESS THAN 50 KW SERVICE CLASSIFICATION_Retail Transmission Rate - Line and Transformation Connection Service Rate | BB72: Retail Transmission Rate - Line and Transformation Connection Service Rate
B74: MONTHLY RATES AND CHARGES - Regulatory Component | H74: 2_MRC_Reg | AA74: MONTHLY RATES AND CHARGES - Regulatory Component | BC74: MONTHLY RATES AND CHARGES - Regulatory Component
B76: Wholesale Market Service Rate (WMS) - not including CBR | D76: $/kWh | E76: 0.003 | H76: 2_GENERAL SERVICE LESS THAN 50 KW SERVICE CLASSIFICATION | I76: T | M76: 2_GENERAL SERVICE LESS THAN 50 KW SERVICE CLASSIFICATION_WMSR | Z76: Wholesale Market Service Rate (WMS) - not including CBR | BB76: Wholesale Market Service Rate (WMS) - not including CBR
B77: Capacity Based Recovery (CBR) - Applicable for Class B Customers | D77: $/kWh | E77: 0.0004 | H77: 2_GENERAL SERVICE LESS THAN 50 KW SERVICE CLASSIFICATION | I77: T | M77: 2_GENERAL SERVICE LESS THAN 50 KW SERVICE CLASSIFICATION_WMSR | Z77: Capacity Based Recovery (CBR) - Applicable for Class B Customers | BB77: Capacity Based Recovery (CBR) - Applicable for Class B Customers
B78: Rural or Remote Electricity Rate Protection Charge (RRRP) | D78: $/kWh | E78: 0.0005 | H78: 2_GENERAL SERVICE LESS THAN 50 KW SERVICE CLASSIFICATION | I78: T | M78: 2_GENERAL SERVICE LESS THAN 50 KW SERVICE CLASSIFICATION_RRRP | Z78: Rural or Remote Electricity Rate Protection Charge (RRRP) | BB78: Rural or Remote Electricity Rate Protection Charge (RRRP)
B79: Standard Supply Service - Administrative Charge (if applicable) | D79: $ | E79: 0.25 | H79: 2_GENERAL SERVICE LESS THAN 50 KW SERVICE CLASSIFICATION | I79: T | M79: 2_GENERAL SERVICE LESS THAN 50 KW SERVICE CLASSIFICATION_SSS | Z79: Standard Supply Service - Administrative Charge (if applicable) | AS79: X | BB79: Standard Supply Service - Administrative Charge (if applicable)
B80: GENERAL SERVICE 50 TO 999 KW SERVICE CLASSIFICATION | H80: 3_GENERAL SERVICE 50 TO 999 KW SERVICE CLASSIFICATION | AA80: GENERAL SERVICE 50 TO 999 KW SERVICE CLASSIFICATION | BC80: GENERAL SERVICE 50 TO 999 KW SERVICE CLASSIFICATION
B81: This classification includes non-residential accounts where monthly average peak demand is equal to or greater than, or is forecast to be equal to or greater than, 50 kW but less than 1,000 kW. Note that for the application of the Retail Transmission Rate - Network Service Rate and the Retail Transmission Rate - Line and Transformation Connection Service Rate the following sub-classifications apply: General Service 50 to 999 kW non-interval metered, and General Service 50 to 999 kW interval metered. Class B consumers are defined in accordance with O. Reg. 429/04. Further servicing details are available in the distributor’s Conditions of Service. | H81: 3_GENERAL SERVICE 50 TO 999 KW SERVICE CLASSIFICATION | AA81: This classification includes non-residential accounts where monthly average peak demand is equal to or greater than, or is forecast to be equal to or greater than, 50 kW but less than 1,000 kW. Note that for the application of the Retail Transmission Rate - Network Service Rate and the Retail Transmission Rate - Line and Transformation Connection Service Rate the following sub-classifications apply: General Service 50 to 999 kW non-interval metered, and General Service 50 to 999 kW interval metered. Class B consumers are defined in accordance with O. Reg. 429/04. Further servicing details are available in the distributor’s Conditions of Service. | BC81: This classification includes non-residential accounts where monthly average peak demand is equal to or greater than, or is forecast to be equal to or greater than, 50 kW but less than 1,000 kW. Note that for the application of the Retail Transmission Rate - Network Service Rate and the Retail Transmission Rate - Line and Transformation Connection Service Rate the following sub-classifications apply: General Service 50 to 999 kW non-interval metered, and General Service 50 to 999 kW interval metered. Class B consumers are defined in accordance with O. Reg. 429/04. Further servicing details are available in the distributor’s Conditions of Service.
B83: APPLICATION | H83: 3_APPLICATION | AA83: APPLICATION | BC83: APPLICATION
B85: The application of these rates and charges shall be in accordance with the Licence of the Distributor and any Code or Order of the Ontario Energy Board, and amendments thereto as approved by the Ontario Energy Board, which may be applicable to the administration of this schedule. | H85: 3_GENERAL SERVICE 50 TO 999 KW SERVICE CLASSIFICATION | AA85: The application of these rates and charges shall be in accordance with the Licence of the Distributor and any Code or Order of the Ontario Energy Board, and amendments thereto as approved by the Ontario Energy Board, which may be applicable to the administration of this schedule. | BC85: The application of these rates and charges shall be in accordance with the Licence of the Distributor and any Code or Order of the Ontario Energy Board, and amendments thereto as approved by the Ontario Energy Board, which may be applicable to the administration of this schedule.
B87: No rates and charges for the distribution of electricity and charges to meet the costs of any work or service done or furnished for the purpose of the distribution of electricity shall be made except as permitted by this schedule, unless required by the Distributor’s Licence or a Code or Order of the Ontario Energy Board, and amendments thereto as approved by the Ontario Energy Board, or as specified herein. | H87: 3_GENERAL SERVICE 50 TO 999 KW SERVICE CLASSIFICATION | AA87: No rates and charges for the distribution of electricity and charges to meet the costs of any work or service done or furnished for the purpose of the distribution of electricity shall be made except as permitted by this schedule, unless required by the Distributor’s Licence or a Code or Order of the Ontario Energy Board, and amendments thereto as approved by the Ontario Energy Board, or as specified herein. | BC87: No rates and charges for the distribution of electricity and charges to meet the costs of any work or service done or furnished for the purpose of the distribution of electricity shall be made except as permitted by this schedule, unless required by the Distributor’s Licence or a Code or Order of the Ontario Energy Board, and amendments thereto as approved by the Ontario Energy Board, or as specified herein.
B89: Unless specifically noted, this schedule does not contain any charges for the electricity commodity, be it under the Regulated Price Plan, a contract with a retailer or the wholesale market price, as applicable. In addition, the charges in the MONTHLY RATES AND CHARGES - Regulatory Component of this schedule do not apply to a customer that is an embedded wholesale market participant. | H89: 3_GENERAL SERVICE 50 TO 999 KW SERVICE CLASSIFICATION | AA89: Unless specifically noted, this schedule does not contain any charges for the electricity commodity, be it under the Regulated Price Plan, a contract with a retailer or the wholesale market price, as applicable. In addition, the charges in the MONTHLY RATES AND CHARGES - Regulatory Component of this schedule do not apply to a customer that is an embedded wholesale market participant. | BC89: Unless specifically noted, this schedule does not contain any charges for the electricity commodity, be it under the Regulated Price Plan, a contract with a retailer or the wholesale market price, as applicable. In addition, the charges in the MONTHLY RATES AND CHARGES - Regulatory Component of this schedule do not apply to a customer that is an embedded wholesale market participant.
B91: It should be noted that this schedule does not list any charges, assessments or credits that are required by law to be invoiced by a distributor and that are not subject to Ontario Energy Board approval, such as the Debt Retirement Charge, the Global Adjustment and the HST. | H91: 3_GENERAL SERVICE 50 TO 999 KW SERVICE CLASSIFICATION | AA91: It should be noted that this schedule does not list any charges, assessments or credits that are required by law to be invoiced by a distributor and that are not subject to Ontario Energy Board approval, such as the Debt Retirement Charge, the Global Adjustment and the HST. | BC91: It should be noted that this schedule does not list any charges, assessments or credits that are required by law to be invoiced by a distributor and that are not subject to Ontario Energy Board approval, such as the Debt Retirement Charge, the Global Adjustment and the HST.
B93: MONTHLY RATES AND CHARGES - Delivery Component | H93: 3_MRC_Del | AA93: MONTHLY RATES AND CHARGES - Delivery Component | BC93: MONTHLY RATES AND CHARGES - Delivery Component
A95: GS50_999_F | B95: Service Charge | D95: $ | E95: 183.66 | H95: 3_GENERAL SERVICE 50 TO 999 KW SERVICE CLASSIFICATION | I95: A | M95: 3_GENERAL SERVICE 50 TO 999 KW SERVICE CLASSIFICATION_MSC | Z95: 3_GENERAL SERVICE 50 TO 999 KW SERVICE CLASSIFICATION_MSC | BB95: Service Charge
A96: GS50_999_PRAG | B96: Rate Rider for Disposition of Post Retirement Actuarial Gain - effective until March 31, 2025 | D96: $ | E96: -3.8 | H96: 3_GENERAL SERVICE 50 TO 999 KW SERVICE CLASSIFICATION | I96: A | M96: 3_GENERAL SERVICE 50 TO 999 KW SERVICE CLASSIFICATION_FX_RR_80 | Q96: 2025-03-31 | Z96: Rate Rider for Disposition of Post Retirement Actuarial Gain - effective until March 31, 2025 | BB96: Rate Rider for Disposition of Post Retirement Actuarial Gain - effective until March 31, 2025
A97: GS50_999_V | B97: Distribution Volumetric Rate | D97: $/kW | E97: 2.7982 | H97: 3_GENERAL SERVICE 50 TO 999 KW SERVICE CLASSIFICATION | I97: A | M97: 3_GENERAL SERVICE 50 TO 999 KW SERVICE CLASSIFICATION_DVC | Z97: 3_GENERAL SERVICE 50 TO 999 KW SERVICE CLASSIFICATION_DVC | BB97: Distribution Volumetric Rate
A98: GS50_999_LV | B98: Low Voltage Service Rate | D98: $/kW | E98: 0.0121 | H98: 3_GENERAL SERVICE 50 TO 999 KW SERVICE CLASSIFICATION | I98: B | M98: 3_GENERAL SERVICE 50 TO 999 KW SERVICE CLASSIFICATION_LV | Z98: Low Voltage Service Rate | BB98: Low Voltage Service Rate
A99: GS50_999_GA19 | B99: Rate Rider for Disposition of Global Adjustment Account (2019) - effective until December 31, 2019 Applicable only for Non-RPP Customers - Approved on a Interim Basis | D99: $/kWh | E99: 0.0058 | H99: 3_GENERAL SERVICE 50 TO 999 KW SERVICE CLASSIFICATION | I99: B | M99: 3_GENERAL SERVICE 50 TO 999 KW SERVICE CLASSIFICATION_GA_kwh | BB99: Rate Rider for Disposition of Global Adjustment Account (2019) - effective until December 31, 2019 Applicable only for Non-RPP Customers
A100: GS50_999_LRV19 | B100: Rate Rider for Disposition of Lost Revenue Adjustment Mechanism Variance Account (LRAMVA) (2019) - effective until December 31, 2019 | D100: $/kW | E100: 0.0693 | H100: 3_GENERAL SERVICE 50 TO 999 KW SERVICE CLASSIFICATION | I100: A | M100: 3_GENERAL SERVICE 50 TO 999 KW SERVICE CLASSIFICATION_LRAM | BB100: Rate Rider for Disposition of Lost Revenue Adjustment Mechanism Variance Account (LRAMVA) (2019) - effective until December 31, 2019
A101: GS50_999_DVA19_nonWMP | B101: Rate Rider for Disposition of Deferral/Variance Accounts (2019) - effective until December 31, 2019 Applicable only for Non-Wholesale Market Participants - Approved on a Interim Basis | D101: $/kW | E101: -0.4033 | H101: 3_GENERAL SERVICE 50 TO 999 KW SERVICE CLASSIFICATION | I101: B | M101: 3_GENERAL SERVICE 50 TO 999 KW SERVICE CLASSIFICATION_DVA_NON_WMP | BB101: Rate Rider for Disposition of Deferral/Variance Accounts (2019) - effective until December 31, 2019 Applicable only for Non-Wholesale Market Participants
A102: GS50_999_DVA19 | B102: Rate Rider for Disposition of Deferral/Variance Accounts (2019) - effective until December 31, 2019 - Approved on a Interim Basis | D102: $/kW | E102: 0.7679 | H102: 3_GENERAL SERVICE 50 TO 999 KW SERVICE CLASSIFICATION | I102: B | M102: 3_GENERAL SERVICE 50 TO 999 KW SERVICE CLASSIFICATION_DVA | BB102: Rate Rider for Disposition of Deferral/Variance Accounts (2019) - effective until December 31, 2019
A103: GS50_999_RBCA19_nonWMP | B103: Rate Rider for Disposition and Recovery/Refund of Regulatory Balances Control Account (2016) Applicable only for Customers who were in Class B classification as at December 31, 2016, and for Non- Wholesale Market Participants - effective until December 31, 2019 | D103: $/kWh | E103: -0.0002 | H103: 3_GENERAL SERVICE 50 TO 999 KW SERVICE CLASSIFICATION | I103: B | M103: 3_GENERAL SERVICE 50 TO 999 KW SERVICE CLASSIFICATION_VR_RR | Z103: 3_GENERAL SERVICE 50 TO 999 KW SERVICE CLASSIFICATION_CBR_1 | BB103: Rate Rider for Disposition and Recovery/Refund of Regulatory Balances Control Account (2016) Applicable only for Customers who were in Class B classification as at December 31, 2016, and for Non-Wholesale Market Participants - effective until December 31, 2019
A104: GS50_999_TN | B104: Retail Transmission Rate - Network Service Rate | D104: $/kW | E104: 2.6001 | H104: 3_GENERAL SERVICE 50 TO 999 KW SERVICE CLASSIFICATION | I104: C | M104: 3_GENERAL SERVICE 50 TO 999 KW SERVICE CLASSIFICATION_Retail Transmission Rate - Network Service Rate | Z104: 3_GENERAL SERVICE 50 TO 999 KW SERVICE CLASSIFICATION_Retail Transmission Rate - Network Service Rate | AZ104: GENERAL SERVICE 50 TO 999 KW SERVICE CLASSIFICATION_Retail Transmission Rate - Network Service Rate | BB104: Retail Transmission Rate - Network Service Rate
A105: GS50_999I_TN | B105: Retail Transmission Rate - Network Service Rate - Interval Metered | D105: $/kW | E105: 2.697 | H105: 3_GENERAL SERVICE 50 TO 999 KW SERVICE CLASSIFICATION | I105: C | M105: 3_GENERAL SERVICE 50 TO 999 KW SERVICE CLASSIFICATION_Retail Transmission Rate - Network Service Rate - Interval Metered | Z105: 3_GENERAL SERVICE 50 TO 999 KW SERVICE CLASSIFICATION_Retail Transmission Rate - Network Service Rate - Interval Metered | AZ105: GENERAL SERVICE 50 TO 999 KW SERVICE CLASSIFICATION_Retail Transmission Rate - Network Service Rate - Interval Metered | BB105: Retail Transmission Rate - Network Service Rate - Interval Metered
A106: GS50_999_TC | B106: Retail Transmission Rate - Line and Transformation Connection Service Rate | D106: $/kW | E106: 2.3084 | H106: 3_GENERAL SERVICE 50 TO 999 KW SERVICE CLASSIFICATION | I106: C | M106: 3_GENERAL SERVICE 50 TO 999 KW SERVICE CLASSIFICATION_Retail Transmission Rate - Line and Transformation Connection Service Rate | Z106: 3_GENERAL SERVICE 50 TO 999 KW SERVICE CLASSIFICATION_Retail Transmission Rate - Line and Transformation Connection Service Rate | AZ106: GENERAL SERVICE 50 TO 999 KW SERVICE CLASSIFICATION_Retail Transmission Rate - Line and Transformation Connection Service Rate | BB106: Retail Transmission Rate - Line and Transformation Connection Service Rate
A107: GS50_999I_TC | B107: Retail Transmission Rate - Line and Transformation Connection Service Rate - Interval Metered | D107: $/kW | E107: 2.395 | H107: 3_GENERAL SERVICE 50 TO 999 KW SERVICE CLASSIFICATION | I107: C | M107: 3_GENERAL SERVICE 50 TO 999 KW SERVICE CLASSIFICATION_Retail Transmission Rate - Line and Transformation Connection Service Rate - Interval Metered | Z107: 3_GENERAL SERVICE 50 TO 999 KW SERVICE CLASSIFICATION_Retail Transmission Rate - Line and Transformation Connection Service Rate - Interval Metered | AZ107: GENERAL SERVICE 50 TO 999 KW SERVICE CLASSIFICATION_Retail Transmission Rate - Line and Transformation Connection Service Rate - Interval Metered | BB107: Retail Transmission Rate - Line and Transformation Connection Service Rate - Interval Metered
B109: MONTHLY RATES AND CHARGES - Regulatory Component | H109: 3_MRC_Reg | AA109: MONTHLY RATES AND CHARGES - Regulatory Component | BC109: MONTHLY RATES AND CHARGES - Regulatory Component
B111: Wholesale Market Service Rate (WMS) - not including CBR | D111: $/kWh | E111: 0.003 | H111: 3_GENERAL SERVICE 50 TO 999 KW SERVICE CLASSIFICATION | I111: T | M111: 3_GENERAL SERVICE 50 TO 999 KW SERVICE CLASSIFICATION_WMSR | Z111: Wholesale Market Service Rate (WMS) - not including CBR | BB111: Wholesale Market Service Rate (WMS) - not including CBR
B112: Capacity Based Recovery (CBR) - Applicable for Class B Customers | D112: $/kWh | E112: 0.0004 | H112: 3_GENERAL SERVICE 50 TO 999 KW SERVICE CLASSIFICATION | I112: T | M112: 3_GENERAL SERVICE 50 TO 999 KW SERVICE CLASSIFICATION_WMSR | Z112: Capacity Based Recovery (CBR) - Applicable for Class B Customers | BB112: Capacity Based Recovery (CBR) - Applicable for Class B Customers
B113: Rural or Remote Electricity Rate Protection Charge (RRRP) | D113: $/kWh | E113: 0.0005 | H113: 3_GENERAL SERVICE 50 TO 999 KW SERVICE CLASSIFICATION | I113: T | M113: 3_GENERAL SERVICE 50 TO 999 KW SERVICE CLASSIFICATION_RRRP | Z113: Rural or Remote Electricity Rate Protection Charge (RRRP) | BB113: Rural or Remote Electricity Rate Protection Charge (RRRP)
B114: Standard Supply Service - Administrative Charge (if applicable) | D114: $ | E114: 0.25 | H114: 3_GENERAL SERVICE 50 TO 999 KW SERVICE CLASSIFICATION | I114: T | M114: 3_GENERAL SERVICE 50 TO 999 KW SERVICE CLASSIFICATION_SSS | Z114: Standard Supply Service - Administrative Charge (if applicable) | AS114: X | BB114: Standard Supply Service - Administrative Charge (if applicable)
B115: GENERAL SERVICE 1,000 TO 4,999 KW SERVICE CLASSIFICATION | H115: 4_GENERAL SERVICE 1,000 TO 4,999 KW SERVICE CLASSIFICATION | AA115: GENERAL SERVICE 1,000 TO 4,999 KW SERVICE CLASSIFICATION | BC115: GENERAL SERVICE 1,000 TO 4,999 KW SERVICE CLASSIFICATION
B116: This classification includes non-residential accounts where monthly average peak demand is equal to or greater than, or is forecast to be equal to or greater than 1,000 kW but less than 5,000 kW. Class A and Class B consumers are defined in accordance with O. Reg. 429/04. Further servicing details are available in the distributor’s Conditions of Service. | H116: 4_GENERAL SERVICE 1,000 TO 4,999 KW SERVICE CLASSIFICATION | AA116: This classification includes non-residential accounts where monthly average peak demand is equal to or greater than, or is forecast to be equal to or greater than 1,000 kW but less than 5,000 kW. Class A and Class B consumers are defined in accordance with O. Reg. 429/04. Further servicing details are available in the distributor’s Conditions of Service. | BC116: This classification includes non-residential accounts where monthly average peak demand is equal to or greater than, or is forecast to be equal to or greater than 1,000 kW but less than 5,000 kW. Class A and Class B consumers are defined in accordance with O. Reg. 429/04. Further servicing details are available in the distributor’s Conditions of Service.
B118: APPLICATION | H118: 4_APPLICATION | AA118: APPLICATION | BC118: APPLICATION
B120: The application of these rates and charges shall be in accordance with the Licence of the Distributor and any Code or Order of the Ontario Energy Board, and amendments thereto as approved by the Ontario Energy Board, which may be applicable to the administration of this schedule. | H120: 4_GENERAL SERVICE 1,000 TO 4,999 KW SERVICE CLASSIFICATION | AA120: The application of these rates and charges shall be in accordance with the Licence of the Distributor and any Code or Order of the Ontario Energy Board, and amendments thereto as approved by the Ontario Energy Board, which may be applicable to the administration of this schedule. | BC120: The application of these rates and charges shall be in accordance with the Licence of the Distributor and any Code or Order of the Ontario Energy Board, and amendments thereto as approved by the Ontario Energy Board, which may be applicable to the administration of this schedule.
B122: No rates and charges for the distribution of electricity and charges to meet the costs of any work or service done or furnished for the purpose of the distribution of electricity shall be made except as permitted by this schedule, unless required by the Distributor’s Licence or a Code or Order of the Ontario Energy Board, and amendments thereto as approved by the Ontario Energy Board, or as specified herein. | H122: 4_GENERAL SERVICE 1,000 TO 4,999 KW SERVICE CLASSIFICATION | AA122: No rates and charges for the distribution of electricity and charges to meet the costs of any work or service done or furnished for the purpose of the distribution of electricity shall be made except as permitted by this schedule, unless required by the Distributor’s Licence or a Code or Order of the Ontario Energy Board, and amendments thereto as approved by the Ontario Energy Board, or as specified herein. | BC122: No rates and charges for the distribution of electricity and charges to meet the costs of any work or service done or furnished for the purpose of the distribution of electricity shall be made except as permitted by this schedule, unless required by the Distributor’s Licence or a Code or Order of the Ontario Energy Board, and amendments thereto as approved by the Ontario Energy Board, or as specified herein.
B124: Unless specifically noted, this schedule does not contain any charges for the electricity commodity, be it under the Regulated Price Plan, a contract with a retailer or the wholesale market price, as applicable. In addition, the charges in the MONTHLY RATES AND CHARGES - Regulatory Component of this schedule do not apply to a customer that is an embedded wholesale market participant. | H124: 4_GENERAL SERVICE 1,000 TO 4,999 KW SERVICE CLASSIFICATION | AA124: Unless specifically noted, this schedule does not contain any charges for the electricity commodity, be it under the Regulated Price Plan, a contract with a retailer or the wholesale market price, as applicable. In addition, the charges in the MONTHLY RATES AND CHARGES - Regulatory Component of this schedule do not apply to a customer that is an embedded wholesale market participant. | BC124: Unless specifically noted, this schedule does not contain any charges for the electricity commodity, be it under the Regulated Price Plan, a contract with a retailer or the wholesale market price, as applicable. In addition, the charges in the MONTHLY RATES AND CHARGES - Regulatory Component of this schedule do not apply to a customer that is an embedded wholesale market participant.
B126: The rate rider for the disposition of WMS – Sub-account CBR Class B is not applicable to wholesale market participants (WMP), customers that transitioned between Class A and Class B during the variance account accumulation period, or to customers that were in Class A for the entire period. Customers who transitioned are to be charged or refunded their share of the variance disposed through customer specific billing adjustments. This rate rider is to be consistently applied for the entire period to the sunset date of the rate rider. In addition, this rate rider is applicable to all new Class B customers. | H126: 4_GENERAL SERVICE 1,000 TO 4,999 KW SERVICE CLASSIFICATION | AA126: The rate rider for the disposition of WMS – Sub-account CBR Class B is not applicable to wholesale market participants (WMP), customers that transitioned between Class A and Class B during the variance account accumulation period, or to customers that were in Class A for the entire period. Customers who transitioned are to be charged or refunded their share of the variance disposed through customer specific billing adjustments. This rate rider is to be consistently applied for the entire period to the sunset date of the rate rider. In addition, this rate rider is applicable to all new Class B customers. | BC126: The rate rider for the disposition of WMS – Sub-account CBR Class B is not applicable to wholesale market participants (WMP), customers that transitioned between Class A and Class B during the variance account accumulation period, or to customers that were in Class A for the entire period. Customers who transitioned are to be charged or refunded their share of the variance disposed through customer specific billing adjustments. This rate rider is to be consistently applied for the entire period to the sunset date of the rate rider. In addition, this rate rider is applicable to all new Class B customers.
B127: The rate rider for the disposition of Global Adjustment is only applicable to non-RPP Class B customers. It is not applicable to WMP, customers that transitioned between Class A and Class B during the variance account accumulation period, or to customers that were in Class A for the entire period. Customers who transitioned are to be charged or refunded their share of the variance disposed through customer specific billing adjustments. This rate rider is to be consistently applied for the entire period to the sunset date of the rate rider. In addition, this rate rider is applicable to all new non-RPP Class B customers. | H127: 4_GENERAL SERVICE 1,000 TO 4,999 KW SERVICE CLASSIFICATION | AA127: The rate rider for the disposition of Global Adjustment is only applicable to non-RPP Class B customers. It is not applicable to WMP, customers that transitioned between Class A and Class B during the variance account accumulation period, or to customers that were in Class A for the entire period. Customers who transitioned are to be charged or refunded their share of the variance disposed through customer specific billing adjustments. This rate rider is to be consistently applied for the entire period to the sunset date of the rate rider. In addition, this rate rider is applicable to all new non-RPP Class B customers. | BC127: The rate rider for the disposition of Global Adjustment is only applicable to non-RPP Class B customers. It is not applicable to WMP, customers that transitioned between Class A and Class B during the variance account accumulation period, or to customers that were in Class A for the entire period. Customers who transitioned are to be charged or refunded their share of the variance disposed through customer specific billing adjustments. This rate rider is to be consistently applied for the entire period to the sunset date of the rate rider. In addition, this rate rider is applicable to all new non-RPP Class B customers.
B128: It should be noted that this schedule does not list any charges, assessments or credits that are required by law to be invoiced by a distributor and that are not subject to Ontario Energy Board approval, such as the Debt Retirement Charge, the Global Adjustment and the HST. | H128: 4_GENERAL SERVICE 1,000 TO 4,999 KW SERVICE CLASSIFICATION | AA128: It should be noted that this schedule does not list any charges, assessments or credits that are required by law to be invoiced by a distributor and that are not subject to Ontario Energy Board approval, such as the Debt Retirement Charge, the Global Adjustment and the HST. | BC128: It should be noted that this schedule does not list any charges, assessments or credits that are required by law to be invoiced by a distributor and that are not subject to Ontario Energy Board approval, such as the Debt Retirement Charge, the Global Adjustment and the HST.
B130: MONTHLY RATES AND CHARGES - Delivery Component | H130: 4_MRC_Del | AA130: MONTHLY RATES AND CHARGES - Delivery Component | BC130: MONTHLY RATES AND CHARGES - Delivery Component
A132: GS1000_F | B132: Service Charge | D132: $ | E132: 580.97 | H132: 4_GENERAL SERVICE 1,000 TO 4,999 KW SERVICE CLASSIFICATION | I132: A | M132: 4_GENERAL SERVICE 1,000 TO 4,999 KW SERVICE CLASSIFICATION_MSC | Z132: 4_GENERAL SERVICE 1,000 TO 4,999 KW SERVICE CLASSIFICATION_MSC | BB132: Service Charge
A133: GS1000_PRAG | B133: Rate Rider for Disposition of Post Retirement Actuarial Gain - effective until March 31, 2025 | D133: $ | E133: -46.33 | H133: 4_GENERAL SERVICE 1,000 TO 4,999 KW SERVICE CLASSIFICATION | I133: A | M133: 4_GENERAL SERVICE 1,000 TO 4,999 KW SERVICE CLASSIFICATION_FX_RR_81 | Q133: 2025-03-31 | Z133: Rate Rider for Disposition of Post Retirement Actuarial Gain - effective until March 31, 2025 | BB133: Rate Rider for Disposition of Post Retirement Actuarial Gain - effective until March 31, 2025
A134: GS1000_V | B134: Distribution Volumetric Rate | D134: $/kW | E134: 3.1063 | H134: 4_GENERAL SERVICE 1,000 TO 4,999 KW SERVICE CLASSIFICATION | I134: A | M134: 4_GENERAL SERVICE 1,000 TO 4,999 KW SERVICE CLASSIFICATION_DVC | Z134: 4_GENERAL SERVICE 1,000 TO 4,999 KW SERVICE CLASSIFICATION_DVC | BB134: Distribution Volumetric Rate
A135: GS1000_GA19 | B135: Rate Rider for Disposition of Global Adjustment Account (2019) - effective until December 31, 2019 Applicable only for Non-RPP Customers - Approved on a Interim Basis | D135: $/kWh | E135: 0.0058 | H135: 4_GENERAL SERVICE 1,000 TO 4,999 KW SERVICE CLASSIFICATION | I135: B | M135: 4_GENERAL SERVICE 1,000 TO 4,999 KW SERVICE CLASSIFICATION_GA_kwh | BB135: Rate Rider for Disposition of Global Adjustment Account (2019) - effective until December 31, 2019 Applicable only for Non-RPP Customers
A136: GS1000_LRV19 | B136: Rate Rider for Disposition of Lost Revenue Adjustment Mechanism Variance Account (LRAMVA) (2019) - effective until December 31, 2019 | D136: $/kW | E136: 0.0727 | H136: 4_GENERAL SERVICE 1,000 TO 4,999 KW SERVICE CLASSIFICATION | I136: A | M136: 4_GENERAL SERVICE 1,000 TO 4,999 KW SERVICE CLASSIFICATION_LRAM | BB136: Rate Rider for Disposition of Lost Revenue Adjustment Mechanism Variance Account (LRAMVA) (2019) - effective until December 31, 2019
A137: GS1000_DVA19 | B137: Rate Rider for Disposition of Deferral/Variance Accounts (2019) - effective until December 31, 2019 - Approved on a Interim Basis | D137: $/kW | E137: 0.4756 | H137: 4_GENERAL SERVICE 1,000 TO 4,999 KW SERVICE CLASSIFICATION | I137: B | M137: 4_GENERAL SERVICE 1,000 TO 4,999 KW SERVICE CLASSIFICATION_DVA | BB137: Rate Rider for Disposition of Deferral/Variance Accounts (2019) - effective until December 31, 2019
A138: GS1000_RBCA19 | B138: Rate Rider for Disposition and Recovery/Refund of Regulatory Balances Control Account (2016) Applicable only for Customers who were in Class B classification as at December 31, 2016 - effective until December 31, 2019 | D138: $/kWh | E138: 0.0025 | H138: 4_GENERAL SERVICE 1,000 TO 4,999 KW SERVICE CLASSIFICATION | I138: B | M138: 4_GENERAL SERVICE 1,000 TO 4,999 KW SERVICE CLASSIFICATION_VR_RR | Z138: 4_GENERAL SERVICE 1,000 TO 4,999 KW SERVICE CLASSIFICATION_CBR_1 | BB138: Rate Rider for Disposition and Recovery/Refund of Regulatory Balances Control Account (2016) Applicable only for Customers who were in Class B classification as at December 31, 2016 - effective until December 31, 2019
A139: GS1000I_TN | B139: Retail Transmission Rate - Network Service Rate - Interval Metered | D139: $/kW | E139: 2.697 | H139: 4_GENERAL SERVICE 1,000 TO 4,999 KW SERVICE CLASSIFICATION | I139: C | M139: 4_GENERAL SERVICE 1,000 TO 4,999 KW SERVICE CLASSIFICATION_Retail Transmission Rate - Network Service Rate - Interval Metered | Z139: 4_GENERAL SERVICE 1,000 TO 4,999 KW SERVICE CLASSIFICATION_Retail Transmission Rate - Network Service Rate - Interval Metered | AZ139: GENERAL SERVICE 1,000 TO 4,999 KW SERVICE CLASSIFICATION_Retail Transmission Rate - Network Service Rate - Interval Metered | BB139: Retail Transmission Rate - Network Service Rate - Interval Metered
A140: GS1000I_TC | B140: Retail Transmission Rate - Line and Transformation Connection Service Rate - Interval Metered | D140: $/kW | E140: 2.395 | H140: 4_GENERAL SERVICE 1,000 TO 4,999 KW SERVICE CLASSIFICATION | I140: C | M140: 4_GENERAL SERVICE 1,000 TO 4,999 KW SERVICE CLASSIFICATION_Retail Transmission Rate - Line and Transformation Connection Service Rate - Interval Metered | Z140: 4_GENERAL SERVICE 1,000 TO 4,999 KW SERVICE CLASSIFICATION_Retail Transmission Rate - Line and Transformation Connection Service Rate - Interval Metered | AZ140: GENERAL SERVICE 1,000 TO 4,999 KW SERVICE CLASSIFICATION_Retail Transmission Rate - Line and Transformation Connection Service Rate - Interval Metered | BB140: Retail Transmission Rate - Line and Transformation Connection Service Rate - Interval Metered
B142: MONTHLY RATES AND CHARGES - Regulatory Component | H142: 4_MRC_Reg | AA142: MONTHLY RATES AND CHARGES - Regulatory Component | BC142: MONTHLY RATES AND CHARGES - Regulatory Component
B144: Wholesale Market Service Rate (WMS) - not including CBR | D144: $/kWh | E144: 0.003 | H144: 4_GENERAL SERVICE 1,000 TO 4,999 KW SERVICE CLASSIFICATION | I144: T | M144: 4_GENERAL SERVICE 1,000 TO 4,999 KW SERVICE CLASSIFICATION_WMSR | Z144: Wholesale Market Service Rate (WMS) - not including CBR | BB144: Wholesale Market Service Rate (WMS) - not including CBR
B145: Capacity Based Recovery (CBR) - Applicable for Class B Customers | D145: $/kWh | E145: 0.0004 | H145: 4_GENERAL SERVICE 1,000 TO 4,999 KW SERVICE CLASSIFICATION | I145: T | M145: 4_GENERAL SERVICE 1,000 TO 4,999 KW SERVICE CLASSIFICATION_WMSR | Z145: Capacity Based Recovery (CBR) - Applicable for Class B Customers | BB145: Capacity Based Recovery (CBR) - Applicable for Class B Customers
B146: Rural or Remote Electricity Rate Protection Charge (RRRP) | D146: $/kWh | E146: 0.0005 | H146: 4_GENERAL SERVICE 1,000 TO 4,999 KW SERVICE CLASSIFICATION | I146: T | M146: 4_GENERAL SERVICE 1,000 TO 4,999 KW SERVICE CLASSIFICATION_RRRP | Z146: Rural or Remote Electricity Rate Protection Charge (RRRP) | BB146: Rural or Remote Electricity Rate Protection Charge (RRRP)
B147: Standard Supply Service - Administrative Charge (if applicable) | D147: $ | E147: 0.25 | H147: 4_GENERAL SERVICE 1,000 TO 4,999 KW SERVICE CLASSIFICATION | I147: T | M147: 4_GENERAL SERVICE 1,000 TO 4,999 KW SERVICE CLASSIFICATION_SSS | Z147: Standard Supply Service - Administrative Charge (if applicable) | AS147: X | BB147: Standard Supply Service - Administrative Charge (if applicable)
B148: LARGE USE SERVICE CLASSIFICATION | H148: 5_LARGE USE SERVICE CLASSIFICATION | AA148: LARGE USE SERVICE CLASSIFICATION | BC148: LARGE USE SERVICE CLASSIFICATION
B149: This classification refers to an account where monthly average peak demand is equal to or greater than, or is forecast to be equal to or greater than, 5,000 kW. Class A and Class B consumers are defined in accordance with O. Reg. 429/04. Further servicing details are available in the distributor’s Conditions of Service. | H149: 5_LARGE USE SERVICE CLASSIFICATION | AA149: This classification refers to an account where monthly average peak demand is equal to or greater than, or is forecast to be equal to or greater than, 5,000 kW. Class A and Class B consumers are defined in accordance with O. Reg. 429/04. Further servicing details are available in the distributor’s Conditions of Service. | BC149: This classification refers to an account where monthly average peak demand is equal to or greater than, or is forecast to be equal to or greater than, 5,000 kW. Class A and Class B consumers are defined in accordance with O. Reg. 429/04. Further servicing details are available in the distributor’s Conditions of Service.
B151: APPLICATION | H151: 5_APPLICATION | AA151: APPLICATION | BC151: APPLICATION
B153: The application of these rates and charges shall be in accordance with the Licence of the Distributor and any Code or Order of the Ontario Energy Board, and amendments thereto as approved by the Ontario Energy Board, which may be applicable to the administration of this schedule. | H153: 5_LARGE USE SERVICE CLASSIFICATION | AA153: The application of these rates and charges shall be in accordance with the Licence of the Distributor and any Code or Order of the Ontario Energy Board, and amendments thereto as approved by the Ontario Energy Board, which may be applicable to the administration of this schedule. | BC153: The application of these rates and charges shall be in accordance with the Licence of the Distributor and any Code or Order of the Ontario Energy Board, and amendments thereto as approved by the Ontario Energy Board, which may be applicable to the administration of this schedule.
B155: No rates and charges for the distribution of electricity and charges to meet the costs of any work or service done or furnished for the purpose of the distribution of electricity shall be made except as permitted by this schedule, unless required by the Distributor’s Licence or a Code or Order of the Ontario Energy Board, and amendments thereto as approved by the Ontario Energy Board, or as specified herein. | H155: 5_LARGE USE SERVICE CLASSIFICATION | AA155: No rates and charges for the distribution of electricity and charges to meet the costs of any work or service done or furnished for the purpose of the distribution of electricity shall be made except as permitted by this schedule, unless required by the Distributor’s Licence or a Code or Order of the Ontario Energy Board, and amendments thereto as approved by the Ontario Energy Board, or as specified herein. | BC155: No rates and charges for the distribution of electricity and charges to meet the costs of any work or service done or furnished for the purpose of the distribution of electricity shall be made except as permitted by this schedule, unless required by the Distributor’s Licence or a Code or Order of the Ontario Energy Board, and amendments thereto as approved by the Ontario Energy Board, or as specified herein.
B157: Unless specifically noted, this schedule does not contain any charges for the electricity commodity, be it under the Regulated Price Plan, a contract with a retailer or the wholesale market price, as applicable. In addition, the charges in the MONTHLY RATES AND CHARGES - Regulatory Component of this schedule do not apply to a customer that is an embedded wholesale market participant. | H157: 5_LARGE USE SERVICE CLASSIFICATION | AA157: Unless specifically noted, this schedule does not contain any charges for the electricity commodity, be it under the Regulated Price Plan, a contract with a retailer or the wholesale market price, as applicable. In addition, the charges in the MONTHLY RATES AND CHARGES - Regulatory Component of this schedule do not apply to a customer that is an embedded wholesale market participant. | BC157: Unless specifically noted, this schedule does not contain any charges for the electricity commodity, be it under the Regulated Price Plan, a contract with a retailer or the wholesale market price, as applicable. In addition, the charges in the MONTHLY RATES AND CHARGES - Regulatory Component of this schedule do not apply to a customer that is an embedded wholesale market participant.
B159: It should be noted that this schedule does not list any charges, assessments or credits that are required by law to be invoiced by a distributor and that are not subject to Ontario Energy Board approval, such as the Debt Retirement Charge, the Global Adjustment and the HST. | H159: 5_LARGE USE SERVICE CLASSIFICATION | AA159: It should be noted that this schedule does not list any charges, assessments or credits that are required by law to be invoiced by a distributor and that are not subject to Ontario Energy Board approval, such as the Debt Retirement Charge, the Global Adjustment and the HST. | BC159: It should be noted that this schedule does not list any charges, assessments or credits that are required by law to be invoiced by a distributor and that are not subject to Ontario Energy Board approval, such as the Debt Retirement Charge, the Global Adjustment and the HST.
B161: MONTHLY RATES AND CHARGES - Delivery Component | H161: 5_MRC_Del | AA161: MONTHLY RATES AND CHARGES - Delivery Component | BC161: MONTHLY RATES AND CHARGES - Delivery Component
A163: LU_F | B163: Service Charge | D163: $ | E163: 1116.83 | H163: 5_LARGE USE SERVICE CLASSIFICATION | I163: A | M163: 5_LARGE USE SERVICE CLASSIFICATION_MSC | Z163: 5_LARGE USE SERVICE CLASSIFICATION_MSC | BB163: Service Charge
A164: LU_PRAG | B164: Rate Rider for Disposition of Post Retirement Actuarial Gain - effective until March 31, 2025 | D164: $ | E164: -151.18 | H164: 5_LARGE USE SERVICE CLASSIFICATION | I164: A | M164: 5_LARGE USE SERVICE CLASSIFICATION_FX_RR_82 | Q164: 2025-03-31 | Z164: Rate Rider for Disposition of Post Retirement Actuarial Gain - effective until March 31, 2025 | BB164: Rate Rider for Disposition of Post Retirement Actuarial Gain - effective until March 31, 2025
A165: LU_V | B165: Distribution Volumetric Rate | D165: $/kW | E165: 2.7908 | H165: 5_LARGE USE SERVICE CLASSIFICATION | I165: A | M165: 5_LARGE USE SERVICE CLASSIFICATION_DVC | Z165: 5_LARGE USE SERVICE CLASSIFICATION_DVC | BB165: Distribution Volumetric Rate
A166: LU_LRV19 | B166: Rate Rider for Disposition of Lost Revenue Adjustment Mechanism Variance Account (LRAMVA) (2019) - effective until December 31, 2019 | D166: $/kW | E166: 0.723 | H166: 5_LARGE USE SERVICE CLASSIFICATION | I166: A | M166: 5_LARGE USE SERVICE CLASSIFICATION_LRAM | BB166: Rate Rider for Disposition of Lost Revenue Adjustment Mechanism Variance Account (LRAMVA) (2019) - effective until December 31, 2019
A167: LU_DVA19 | B167: Rate Rider for Disposition of Deferral/Variance Accounts (2019) - effective until December 31, 2019 - Approved on a Interim Basis | D167: $/kW | E167: 0.4765 | H167: 5_LARGE USE SERVICE CLASSIFICATION | I167: B | M167: 5_LARGE USE SERVICE CLASSIFICATION_DVA | BB167: Rate Rider for Disposition of Deferral/Variance Accounts (2019) - effective until December 31, 2019
A168: LU_TN | B168: Retail Transmission Rate - Network Service Rate - Interval Metered | D168: $/kW | E168: 3.257 | H168: 5_LARGE USE SERVICE CLASSIFICATION | I168: C | M168: 5_LARGE USE SERVICE CLASSIFICATION_Retail Transmission Rate - Network Service Rate - Interval Metered | Z168: 5_LARGE USE SERVICE CLASSIFICATION_Retail Transmission Rate - Network Service Rate - Interval Metered | AZ168: LARGE USE SERVICE CLASSIFICATION_Retail Transmission Rate - Network Service Rate - Interval Metered | BB168: Retail Transmission Rate - Network Service Rate - Interval Metered
A169: LU_TC | B169: Retail Transmission Rate - Line and Transformation Connection Service Rate - Interval Metered | D169: $/kW | E169: 2.8919 | H169: 5_LARGE USE SERVICE CLASSIFICATION | I169: C | M169: 5_LARGE USE SERVICE CLASSIFICATION_Retail Transmission Rate - Line and Transformation Connection Service Rate - Interval Metered | Z169: 5_LARGE USE SERVICE CLASSIFICATION_Retail Transmission Rate - Line and Transformation Connection Service Rate - Interval Metered | AZ169: LARGE USE SERVICE CLASSIFICATION_Retail Transmission Rate - Line and Transformation Connection Service Rate - Interval Metered | BB169: Retail Transmission Rate - Line and Transformation Connection Service Rate - Interval Metered
B171: MONTHLY RATES AND CHARGES - Regulatory Component | H171: 5_MRC_Reg | AA171: MONTHLY RATES AND CHARGES - Regulatory Component | BC171: MONTHLY RATES AND CHARGES - Regulatory Component
B173: Wholesale Market Service Rate (WMS) - not including CBR | D173: $/kWh | E173: 0.003 | H173: 5_LARGE USE SERVICE CLASSIFICATION | I173: T | M173: 5_LARGE USE SERVICE CLASSIFICATION_WMSR | Z173: Wholesale Market Service Rate (WMS) - not including CBR | BB173: Wholesale Market Service Rate (WMS) - not including CBR
B174: Capacity Based Recovery (CBR) - Applicable for Class B Customers | D174: $/kWh | E174: 0.0004 | H174: 5_LARGE USE SERVICE CLASSIFICATION | I174: T | M174: 5_LARGE USE SERVICE CLASSIFICATION_WMSR | Z174: Capacity Based Recovery (CBR) - Applicable for Class B Customers | BB174: Capacity Based Recovery (CBR) - Applicable for Class B Customers
B175: Rural or Remote Electricity Rate Protection Charge (RRRP) | D175: $/kWh | E175: 0.0005 | H175: 5_LARGE USE SERVICE CLASSIFICATION | I175: T | M175: 5_LARGE USE SERVICE CLASSIFICATION_RRRP | Z175: Rural or Remote Electricity Rate Protection Charge (RRRP) | BB175: Rural or Remote Electricity Rate Protection Charge (RRRP)
B176: Standard Supply Service - Administrative Charge (if applicable) | D176: $ | E176: 0.25 | H176: 5_LARGE USE SERVICE CLASSIFICATION | I176: T | M176: 5_LARGE USE SERVICE CLASSIFICATION_SSS | Z176: Standard Supply Service - Administrative Charge (if applicable) | AS176: X | BB176: Standard Supply Service - Administrative Charge (if applicable)
B177: UNMETERED SCATTERED LOAD SERVICE CLASSIFICATION | H177: 6_UNMETERED SCATTERED LOAD SERVICE CLASSIFICATION | AA177: UNMETERED SCATTERED LOAD SERVICE CLASSIFICATION | BC177: UNMETERED SCATTERED LOAD SERVICE CLASSIFICATION
B178: This classification includes accounts taking electricity at 750 volts or less where monthly average peak demand is less than, or is forecast to be less than, 50 kW and the consumption is unmetered. These connections include cable TV power packs, bus shelters, telephone booths, traffic lights, railway crossings, etc. The customer provides detailed manufacturer information/documentation with regard to electrical demand/consumption of the proposed load. Class B consumers are defined in accordance with O. Reg. 429/04. Further servicing details are available in the distributor’s Conditions of Service. | H178: 6_UNMETERED SCATTERED LOAD SERVICE CLASSIFICATION | AA178: This classification includes accounts taking electricity at 750 volts or less where monthly average peak demand is less than, or is forecast to be less than, 50 kW and the consumption is unmetered. These connections include cable TV power packs, bus shelters, telephone booths, traffic lights, railway crossings, etc. The customer provides detailed manufacturer information/documentation with regard to electrical demand/consumption of the proposed load. Class B consumers are defined in accordance with O. Reg. 429/04. Further servicing details are available in the distributor’s Conditions of Service. | BC178: This classification includes accounts taking electricity at 750 volts or less where monthly average peak demand is less than, or is forecast to be less than, 50 kW and the consumption is unmetered. These connections include cable TV power packs, bus shelters, telephone booths, traffic lights, railway crossings, etc. The customer provides detailed manufacturer information/documentation with regard to electrical demand/consumption of the proposed load. Class B consumers are defined in accordance with O. Reg. 429/04. Further servicing details are available in the distributor’s Conditions of Service.
B180: APPLICATION | H180: 6_APPLICATION | AA180: APPLICATION | BC180: APPLICATION
B182: The application of these rates and charges shall be in accordance with the Licence of the Distributor and any Code or Order of the Ontario Energy Board, and amendments thereto as approved by the Ontario Energy Board, which may be applicable to the administration of this schedule. | H182: 6_UNMETERED SCATTERED LOAD SERVICE CLASSIFICATION | AA182: The application of these rates and charges shall be in accordance with the Licence of the Distributor and any Code or Order of the Ontario Energy Board, and amendments thereto as approved by the Ontario Energy Board, which may be applicable to the administration of this schedule. | BC182: The application of these rates and charges shall be in accordance with the Licence of the Distributor and any Code or Order of the Ontario Energy Board, and amendments thereto as approved by the Ontario Energy Board, which may be applicable to the administration of this schedule.
B184: No rates and charges for the distribution of electricity and charges to meet the costs of any work or service done or furnished for the purpose of the distribution of electricity shall be made except as permitted by this schedule, unless required by the Distributor’s Licence or a Code or Order of the Ontario Energy Board, and amendments thereto as approved by the Ontario Energy Board, or as specified herein. | H184: 6_UNMETERED SCATTERED LOAD SERVICE CLASSIFICATION | AA184: No rates and charges for the distribution of electricity and charges to meet the costs of any work or service done or furnished for the purpose of the distribution of electricity shall be made except as permitted by this schedule, unless required by the Distributor’s Licence or a Code or Order of the Ontario Energy Board, and amendments thereto as approved by the Ontario Energy Board, or as specified herein. | BC184: No rates and charges for the distribution of electricity and charges to meet the costs of any work or service done or furnished for the purpose of the distribution of electricity shall be made except as permitted by this schedule, unless required by the Distributor’s Licence or a Code or Order of the Ontario Energy Board, and amendments thereto as approved by the Ontario Energy Board, or as specified herein.
B186: Unless specifically noted, this schedule does not contain any charges for the electricity commodity, be it under the Regulated Price Plan, a contract with a retailer or the wholesale market price, as applicable. In addition, the charges in the MONTHLY RATES AND CHARGES - Regulatory Component of this schedule do not apply to a customer that is an embedded wholesale market participant. | H186: 6_UNMETERED SCATTERED LOAD SERVICE CLASSIFICATION | AA186: Unless specifically noted, this schedule does not contain any charges for the electricity commodity, be it under the Regulated Price Plan, a contract with a retailer or the wholesale market price, as applicable. In addition, the charges in the MONTHLY RATES AND CHARGES - Regulatory Component of this schedule do not apply to a customer that is an embedded wholesale market participant. | BC186: Unless specifically noted, this schedule does not contain any charges for the electricity commodity, be it under the Regulated Price Plan, a contract with a retailer or the wholesale market price, as applicable. In addition, the charges in the MONTHLY RATES AND CHARGES - Regulatory Component of this schedule do not apply to a customer that is an embedded wholesale market participant.
B188: It should be noted that this schedule does not list any charges, assessments or credits that are required by law to be invoiced by a distributor and that are not subject to Ontario Energy Board approval, such as the Debt Retirement Charge, the Global Adjustment and the HST. | H188: 6_UNMETERED SCATTERED LOAD SERVICE CLASSIFICATION | AA188: It should be noted that this schedule does not list any charges, assessments or credits that are required by law to be invoiced by a distributor and that are not subject to Ontario Energy Board approval, such as the Debt Retirement Charge, the Global Adjustment and the HST. | BC188: It should be noted that this schedule does not list any charges, assessments or credits that are required by law to be invoiced by a distributor and that are not subject to Ontario Energy Board approval, such as the Debt Retirement Charge, the Global Adjustment and the HST.
B190: MONTHLY RATES AND CHARGES - Delivery Component | H190: 6_MRC_Del | AA190: MONTHLY RATES AND CHARGES - Delivery Component | BC190: MONTHLY RATES AND CHARGES - Delivery Component
A192: USL_F | B192: Service Charge (per connection) | D192: $ | E192: 4.96 | H192: 6_UNMETERED SCATTERED LOAD SERVICE CLASSIFICATION | I192: A | M192: 6_UNMETERED SCATTERED LOAD SERVICE CLASSIFICATION_MSC | Z192: 6_UNMETERED SCATTERED LOAD SERVICE CLASSIFICATION_MSC | BB192: Service Charge (per connection)
A193: USL_PRAG | B193: Rate Rider for Disposition of Post Retirement Actuarial Gain - effective until March 31, 2025 | D193: $ | E193: -0.05 | H193: 6_UNMETERED SCATTERED LOAD SERVICE CLASSIFICATION | I193: A | M193: 6_UNMETERED SCATTERED LOAD SERVICE CLASSIFICATION_FX_RR_83 | Q193: 2025-03-31 | Z193: Rate Rider for Disposition of Post Retirement Actuarial Gain - effective until March 31, 2025 | BB193: Rate Rider for Disposition of Post Retirement Actuarial Gain - effective until March 31, 2025
A194: USL_V | B194: Distribution Volumetric Rate | D194: $/kWh | E194: 0.0226 | H194: 6_UNMETERED SCATTERED LOAD SERVICE CLASSIFICATION | I194: A | M194: 6_UNMETERED SCATTERED LOAD SERVICE CLASSIFICATION_DVC | Z194: 6_UNMETERED SCATTERED LOAD SERVICE CLASSIFICATION_DVC | BB194: Distribution Volumetric Rate
A195: USL_GA19 | B195: Rate Rider for Disposition of Global Adjustment Account (2019) - effective until December 31, 2019 Applicable only for Non-RPP Customers - Approved on a Interim Basis | D195: $/kWh | E195: 0.0058 | H195: 6_UNMETERED SCATTERED LOAD SERVICE CLASSIFICATION | I195: B | M195: 6_UNMETERED SCATTERED LOAD SERVICE CLASSIFICATION_GA_kwh | BB195: Rate Rider for Disposition of Global Adjustment Account (2019) - effective until December 31, 2019 Applicable only for Non-RPP Customers
A196: USL_DVA19 | B196: Rate Rider for Disposition of Deferral/Variance Accounts (2019) - effective until December 31, 2019 - Approved on a Interim Basis | D196: $/kWh | E196: 0.001 | H196: 6_UNMETERED SCATTERED LOAD SERVICE CLASSIFICATION | I196: B | M196: 6_UNMETERED SCATTERED LOAD SERVICE CLASSIFICATION_DVA | BB196: Rate Rider for Disposition of Deferral/Variance Accounts (2019) - effective until December 31, 2019
A197: USL_TN | B197: Retail Transmission Rate - Network Service Rate | D197: $/kWh | E197: 0.0062 | H197: 6_UNMETERED SCATTERED LOAD SERVICE CLASSIFICATION | I197: C | M197: 6_UNMETERED SCATTERED LOAD SERVICE CLASSIFICATION_Retail Transmission Rate - Network Service Rate | Z197: 6_UNMETERED SCATTERED LOAD SERVICE CLASSIFICATION_Retail Transmission Rate - Network Service Rate | AZ197: UNMETERED SCATTERED LOAD SERVICE CLASSIFICATION_Retail Transmission Rate - Network Service Rate | BB197: Retail Transmission Rate - Network Service Rate
A198: USL_TC | B198: Retail Transmission Rate - Line and Transformation Connection Service Rate | D198: $/kWh | E198: 0.0055 | H198: 6_UNMETERED SCATTERED LOAD SERVICE CLASSIFICATION | I198: C | M198: 6_UNMETERED SCATTERED LOAD SERVICE CLASSIFICATION_Retail Transmission Rate - Line and Transformation Connection Service Rate | Z198: 6_UNMETERED SCATTERED LOAD SERVICE CLASSIFICATION_Retail Transmission Rate - Line and Transformation Connection Service Rate | AZ198: UNMETERED SCATTERED LOAD SERVICE CLASSIFICATION_Retail Transmission Rate - Line and Transformation Connection Service Rate | BB198: Retail Transmission Rate - Line and Transformation Connection Service Rate
B200: MONTHLY RATES AND CHARGES - Regulatory Component | H200: 6_MRC_Reg | AA200: MONTHLY RATES AND CHARGES - Regulatory Component | BC200: MONTHLY RATES AND CHARGES - Regulatory Component
B202: Wholesale Market Service Rate (WMS) - not including CBR | D202: $/kWh | E202: 0.003 | H202: 6_UNMETERED SCATTERED LOAD SERVICE CLASSIFICATION | I202: T | M202: 6_UNMETERED SCATTERED LOAD SERVICE CLASSIFICATION_WMSR | Z202: Wholesale Market Service Rate (WMS) - not including CBR | BB202: Wholesale Market Service Rate (WMS) - not including CBR
B203: Capacity Based Recovery (CBR) - Applicable for Class B Customers | D203: $/kWh | E203: 0.0004 | H203: 6_UNMETERED SCATTERED LOAD SERVICE CLASSIFICATION | I203: T | M203: 6_UNMETERED SCATTERED LOAD SERVICE CLASSIFICATION_WMSR | Z203: Capacity Based Recovery (CBR) - Applicable for Class B Customers | BB203: Capacity Based Recovery (CBR) - Applicable for Class B Customers
B204: Rural or Remote Electricity Rate Protection Charge (RRRP) | D204: $/kWh | E204: 0.0005 | H204: 6_UNMETERED SCATTERED LOAD SERVICE CLASSIFICATION | I204: T | M204: 6_UNMETERED SCATTERED LOAD SERVICE CLASSIFICATION_RRRP | Z204: Rural or Remote Electricity Rate Protection Charge (RRRP) | BB204: Rural or Remote Electricity Rate Protection Charge (RRRP)
B205: Standard Supply Service - Administrative Charge (if applicable) | D205: $ | E205: 0.25 | H205: 6_UNMETERED SCATTERED LOAD SERVICE CLASSIFICATION | I205: T | M205: 6_UNMETERED SCATTERED LOAD SERVICE CLASSIFICATION_SSS | Z205: Standard Supply Service - Administrative Charge (if applicable) | AS205: X | BB205: Standard Supply Service - Administrative Charge (if applicable)
B206: STANDBY POWER SERVICE CLASSIFICATION | H206: 7_STANDBY POWER SERVICE CLASSIFICATION | AA206: STANDBY POWER SERVICE CLASSIFICATION | BC206: STANDBY POWER SERVICE CLASSIFICATION
B207: This classification refers to an account that has Load Displacement Generation and requires the distributor to provide back-up service. Further servicing details are available in the distributor’s Conditions of Service. | H207: 7_STANDBY POWER SERVICE CLASSIFICATION | AA207: This classification refers to an account that has Load Displacement Generation and requires the distributor to provide back-up service. Further servicing details are available in the distributor’s Conditions of Service. | BC207: This classification refers to an account that has Load Displacement Generation and requires the distributor to provide back-up service. Further servicing details are available in the distributor’s Conditions of Service.
B209: APPLICATION | H209: 7_APPLICATION | AA209: APPLICATION | BC209: APPLICATION
B211: The application of these rates and charges shall be in accordance with the Licence of the Distributor and any Code or Order of the Ontario Energy Board, and amendments thereto as approved by the Ontario Energy Board, which may be applicable to the administration of this schedule. | H211: 7_STANDBY POWER SERVICE CLASSIFICATION | AA211: The application of these rates and charges shall be in accordance with the Licence of the Distributor and any Code or Order of the Ontario Energy Board, and amendments thereto as approved by the Ontario Energy Board, which may be applicable to the administration of this schedule. | BC211: The application of these rates and charges shall be in accordance with the Licence of the Distributor and any Code or Order of the Ontario Energy Board, and amendments thereto as approved by the Ontario Energy Board, which may be applicable to the administration of this schedule.
B213: No rates and charges for the distribution of electricity and charges to meet the costs of any work or service done or furnished for the purpose of the distribution of electricity shall be made except as permitted by this schedule, unless required by the Distributor’s Licence or a Code or Order of the Ontario Energy Board, and amendments thereto as approved by the Ontario Energy Board, or as specified herein. | H213: 7_STANDBY POWER SERVICE CLASSIFICATION | AA213: No rates and charges for the distribution of electricity and charges to meet the costs of any work or service done or furnished for the purpose of the distribution of electricity shall be made except as permitted by this schedule, unless required by the Distributor’s Licence or a Code or Order of the Ontario Energy Board, and amendments thereto as approved by the Ontario Energy Board, or as specified herein. | BC213: No rates and charges for the distribution of electricity and charges to meet the costs of any work or service done or furnished for the purpose of the distribution of electricity shall be made except as permitted by this schedule, unless required by the Distributor’s Licence or a Code or Order of the Ontario Energy Board, and amendments thereto as approved by the Ontario Energy Board, or as specified herein.
B215: Unless specifically noted, this schedule does not contain any charges for the electricity commodity, be it under the Regulated Price Plan, a contract with a retailer or the wholesale market price, as applicable. | H215: 7_STANDBY POWER SERVICE CLASSIFICATION | AA215: Unless specifically noted, this schedule does not contain any charges for the electricity commodity, be it under the Regulated Price Plan, a contract with a retailer or the wholesale market price, as applicable. | BC215: Unless specifically noted, this schedule does not contain any charges for the electricity commodity, be it under the Regulated Price Plan, a contract with a retailer or the wholesale market price, as applicable.
B217: It should be noted that this schedule does not list any charges, assessments or credits that are required by law to be invoiced by a distributor and that are not subject to Ontario Energy Board approval, such as the Debt Retirement Charge, the Global Adjustment and the HST. | H217: 7_STANDBY POWER SERVICE CLASSIFICATION | AA217: It should be noted that this schedule does not list any charges, assessments or credits that are required by law to be invoiced by a distributor and that are not subject to Ontario Energy Board approval, such as the Debt Retirement Charge, the Global Adjustment and the HST. | BC217: It should be noted that this schedule does not list any charges, assessments or credits that are required by law to be invoiced by a distributor and that are not subject to Ontario Energy Board approval, such as the Debt Retirement Charge, the Global Adjustment and the HST.
B219: MONTHLY RATES AND CHARGES - APPROVED ON AN INTERIM BASIS | H219: 7_MRC_Del | AA219: MONTHLY RATES AND CHARGES - APPROVED ON AN INTERIM BASIS | BC219: MONTHLY RATES AND CHARGES - APPROVED ON AN INTERIM BASIS
B221: Standby Charge - the charge is based on the applicable General Service 50 to 999 kW, or General Service 1,000 to 4,999 kW or Large Use Distribution Volumetric Rate applied to the generator's peak demand. A Standby Service Charge will be applied for a month where standby power is provided partially or is not provided. | H221: 7_STANDBY POWER SERVICE CLASSIFICATION | M221: 7_STANDBY POWER SERVICE CLASSIFICATION _DVC | AA221: Standby Charge - the charge is based on the applicable General Service 50 to 999 kW, or General Service 1,000 to 4,999 kW or Large Use Distribution Volumetric Rate applied to the generator's peak demand. A Standby Service Charge will be applied for a month where standby power is provided partially or is not provided. | AS221: X | BC221: Standby Charge - the charge is based on the applicable General Service 50 to 999 kW, or General Service 1,000 to 4,999 kW or Large Use Distribution Volumetric Rate applied to the generator's peak demand. A Standby Service Charge will be applied for a month where standby power is provided partially or is not provided.
B222: SENTINEL LIGHTING SERVICE CLASSIFICATION | H222: 8_SENTINEL LIGHTING SERVICE CLASSIFICATION | AA222: SENTINEL LIGHTING SERVICE CLASSIFICATION | BC222: SENTINEL LIGHTING SERVICE CLASSIFICATION
B223: This classification refers to accounts that are an unmetered lighting load supplied to a sentinel light. Class B consumers are defined in accordance with O. Reg. 429/04. Further servicing details are available in the distributor’s Conditions of Service. | H223: 8_SENTINEL LIGHTING SERVICE CLASSIFICATION | AA223: This classification refers to accounts that are an unmetered lighting load supplied to a sentinel light. Class B consumers are defined in accordance with O. Reg. 429/04. Further servicing details are available in the distributor’s Conditions of Service. | BC223: This classification refers to accounts that are an unmetered lighting load supplied to a sentinel light. Class B consumers are defined in accordance with O. Reg. 429/04. Further servicing details are available in the distributor’s Conditions of Service.
B225: APPLICATION | H225: 8_APPLICATION | AA225: APPLICATION | BC225: APPLICATION
B227: The application of these rates and charges shall be in accordance with the Licence of the Distributor and any Code or Order of the Ontario Energy Board, and amendments thereto as approved by the Ontario Energy Board, which may be applicable to the administration of this schedule. | H227: 8_SENTINEL LIGHTING SERVICE CLASSIFICATION | AA227: The application of these rates and charges shall be in accordance with the Licence of the Distributor and any Code or Order of the Ontario Energy Board, and amendments thereto as approved by the Ontario Energy Board, which may be applicable to the administration of this schedule. | BC227: The application of these rates and charges shall be in accordance with the Licence of the Distributor and any Code or Order of the Ontario Energy Board, and amendments thereto as approved by the Ontario Energy Board, which may be applicable to the administration of this schedule.
B229: No rates and charges for the distribution of electricity and charges to meet the costs of any work or service done or furnished for the purpose of the distribution of electricity shall be made except as permitted by this schedule, unless required by the Distributor’s Licence or a Code or Order of the Ontario Energy Board, and amendments thereto as approved by the Ontario Energy Board, or as specified herein. | H229: 8_SENTINEL LIGHTING SERVICE CLASSIFICATION | AA229: No rates and charges for the distribution of electricity and charges to meet the costs of any work or service done or furnished for the purpose of the distribution of electricity shall be made except as permitted by this schedule, unless required by the Distributor’s Licence or a Code or Order of the Ontario Energy Board, and amendments thereto as approved by the Ontario Energy Board, or as specified herein. | BC229: No rates and charges for the distribution of electricity and charges to meet the costs of any work or service done or furnished for the purpose of the distribution of electricity shall be made except as permitted by this schedule, unless required by the Distributor’s Licence or a Code or Order of the Ontario Energy Board, and amendments thereto as approved by the Ontario Energy Board, or as specified herein.
B231: Unless specifically noted, this schedule does not contain any charges for the electricity commodity, be it under the Regulated Price Plan, a contract with a retailer or the wholesale market price, as applicable. In addition, the charges in the MONTHLY RATES AND CHARGES - Regulatory Component of this schedule do not apply to a customer that is an embedded wholesale market participant. | H231: 8_SENTINEL LIGHTING SERVICE CLASSIFICATION | AA231: Unless specifically noted, this schedule does not contain any charges for the electricity commodity, be it under the Regulated Price Plan, a contract with a retailer or the wholesale market price, as applicable. In addition, the charges in the MONTHLY RATES AND CHARGES - Regulatory Component of this schedule do not apply to a customer that is an embedded wholesale market participant. | BC231: Unless specifically noted, this schedule does not contain any charges for the electricity commodity, be it under the Regulated Price Plan, a contract with a retailer or the wholesale market price, as applicable. In addition, the charges in the MONTHLY RATES AND CHARGES - Regulatory Component of this schedule do not apply to a customer that is an embedded wholesale market participant.
B233: It should be noted that this schedule does not list any charges, assessments or credits that are required by law to be invoiced by a distributor and that are not subject to Ontario Energy Board approval, such as the Debt Retirement Charge, the Global Adjustment and the HST. | H233: 8_SENTINEL LIGHTING SERVICE CLASSIFICATION | AA233: It should be noted that this schedule does not list any charges, assessments or credits that are required by law to be invoiced by a distributor and that are not subject to Ontario Energy Board approval, such as the Debt Retirement Charge, the Global Adjustment and the HST. | BC233: It should be noted that this schedule does not list any charges, assessments or credits that are required by law to be invoiced by a distributor and that are not subject to Ontario Energy Board approval, such as the Debt Retirement Charge, the Global Adjustment and the HST.
B235: MONTHLY RATES AND CHARGES - Delivery Component | H235: 8_MRC_Del | AA235: MONTHLY RATES AND CHARGES - Delivery Component | BC235: MONTHLY RATES AND CHARGES - Delivery Component
A237: SEN_F | B237: Service Charge (per connection) | D237: $ | E237: 7.67 | H237: 8_SENTINEL LIGHTING SERVICE CLASSIFICATION | I237: A | M237: 8_SENTINEL LIGHTING SERVICE CLASSIFICATION_MSC | Z237: 8_SENTINEL LIGHTING SERVICE CLASSIFICATION_MSC | BB237: Service Charge (per connection)
A238: SEN_PRAG | B238: Rate Rider for Disposition of Post Retirement Actuarial Gain - effective until March 31, 2025 | D238: $ | E238: -0.11 | H238: 8_SENTINEL LIGHTING SERVICE CLASSIFICATION | I238: A | M238: 8_SENTINEL LIGHTING SERVICE CLASSIFICATION_FX_RR_84 | Q238: 2025-03-31 | Z238: Rate Rider for Disposition of Post Retirement Actuarial Gain - effective until March 31, 2025 | BB238: Rate Rider for Disposition of Post Retirement Actuarial Gain - effective until March 31, 2025
A239: SEN_V | B239: Distribution Volumetric Rate | D239: $/kW | E239: 8.4893 | H239: 8_SENTINEL LIGHTING SERVICE CLASSIFICATION | I239: A | M239: 8_SENTINEL LIGHTING SERVICE CLASSIFICATION_DVC | Z239: 8_SENTINEL LIGHTING SERVICE CLASSIFICATION_DVC | BB239: Distribution Volumetric Rate
A240: SEN_LV | B240: Low Voltage Service Rate | D240: $/kW | E240: 0.0089 | H240: 8_SENTINEL LIGHTING SERVICE CLASSIFICATION | I240: B | M240: 8_SENTINEL LIGHTING SERVICE CLASSIFICATION_LV | Z240: Low Voltage Service Rate | BB240: Low Voltage Service Rate
A241: SEN_GA19 | B241: Rate Rider for Disposition of Global Adjustment Account (2019) - effective until December 31, 2019 Applicable only for Non-RPP Customers - Approved on a Interim Basis | D241: $/kWh | E241: 0.006 | H241: 8_SENTINEL LIGHTING SERVICE CLASSIFICATION | I241: B | M241: 8_SENTINEL LIGHTING SERVICE CLASSIFICATION_GA_kwh | BB241: Rate Rider for Disposition of Global Adjustment Account (2019) - effective until December 31, 2019 Applicable only for Non-RPP Customers
A242: SEN_DVA19 | B242: Rate Rider for Disposition of Deferral/Variance Accounts (2019) - effective until December 31, 2019 - Approved on a Interim Basis | D242: $/kW | E242: 0.3598 | H242: 8_SENTINEL LIGHTING SERVICE CLASSIFICATION | I242: B | M242: 8_SENTINEL LIGHTING SERVICE CLASSIFICATION_DVA | BB242: Rate Rider for Disposition of Deferral/Variance Accounts (2019) - effective until December 31, 2019
A243: SEN_RBCA19 | B243: Rate Rider for Disposition and Recovery/Refund of Regulatory Balances Control Account (2016) Applicable only for Non-RPP Customers - effective until December 31, 2019 | D243: $/kWh | E243: -0.0004 | H243: 8_SENTINEL LIGHTING SERVICE CLASSIFICATION | I243: B | M243: 8_SENTINEL LIGHTING SERVICE CLASSIFICATION_VR_RR | Z243: 7_STANDBY POWER SERVICE CLASSIFICATION _CBR_1 | BB243: Rate Rider for Disposition and Recovery/Refund of Regulatory Balances Control Account (2016) Applicable only for Non-RPP Customers - effective until December 31, 2019
A244: SEN_TN | B244: Retail Transmission Rate - Network Service Rate | D244: $/kW | E244: 1.9906 | H244: 8_SENTINEL LIGHTING SERVICE CLASSIFICATION | I244: C | M244: 8_SENTINEL LIGHTING SERVICE CLASSIFICATION_Retail Transmission Rate - Network Service Rate | Z244: 8_SENTINEL LIGHTING SERVICE CLASSIFICATION_Retail Transmission Rate - Network Service Rate | AZ244: SENTINEL LIGHTING SERVICE CLASSIFICATION_Retail Transmission Rate - Network Service Rate | BB244: Retail Transmission Rate - Network Service Rate
A245: SEN_TC | B245: Retail Transmission Rate - Line and Transformation Connection Service Rate | D245: $/kW | E245: 1.7675 | H245: 8_SENTINEL LIGHTING SERVICE CLASSIFICATION | I245: C | M245: 8_SENTINEL LIGHTING SERVICE CLASSIFICATION_Retail Transmission Rate - Line and Transformation Connection Service Rate | Z245: 8_SENTINEL LIGHTING SERVICE CLASSIFICATION_Retail Transmission Rate - Line and Transformation Connection Service Rate | AZ245: SENTINEL LIGHTING SERVICE CLASSIFICATION_Retail Transmission Rate - Line and Transformation Connection Service Rate | BB245: Retail Transmission Rate - Line and Transformation Connection Service Rate
B247: MONTHLY RATES AND CHARGES - Regulatory Component | H247: 8_MRC_Reg | AA247: MONTHLY RATES AND CHARGES - Regulatory Component | BC247: MONTHLY RATES AND CHARGES - Regulatory Component
B249: Wholesale Market Service Rate (WMS) - not including CBR | D249: $/kWh | E249: 0.003 | H249: 8_SENTINEL LIGHTING SERVICE CLASSIFICATION | I249: T | M249: 8_SENTINEL LIGHTING SERVICE CLASSIFICATION_WMSR | Z249: Wholesale Market Service Rate (WMS) - not including CBR | BB249: Wholesale Market Service Rate (WMS) - not including CBR
B250: Capacity Based Recovery (CBR) - Applicable for Class B Customers | D250: $/kWh | E250: 0.0004 | H250: 8_SENTINEL LIGHTING SERVICE CLASSIFICATION | I250: T | M250: 8_SENTINEL LIGHTING SERVICE CLASSIFICATION_WMSR | Z250: Capacity Based Recovery (CBR) - Applicable for Class B Customers | BB250: Capacity Based Recovery (CBR) - Applicable for Class B Customers
B251: Rural or Remote Electricity Rate Protection Charge (RRRP) | D251: $/kWh | E251: 0.0005 | H251: 8_SENTINEL LIGHTING SERVICE CLASSIFICATION | I251: T | M251: 8_SENTINEL LIGHTING SERVICE CLASSIFICATION_RRRP | Z251: Rural or Remote Electricity Rate Protection Charge (RRRP) | BB251: Rural or Remote Electricity Rate Protection Charge (RRRP)
B252: Standard Supply Service - Administrative Charge (if applicable) | D252: $ | E252: 0.25 | H252: 8_SENTINEL LIGHTING SERVICE CLASSIFICATION | I252: T | M252: 8_SENTINEL LIGHTING SERVICE CLASSIFICATION_SSS | Z252: Standard Supply Service - Administrative Charge (if applicable) | AS252: X | BB252: Standard Supply Service - Administrative Charge (if applicable)
B253: STREET LIGHTING SERVICE CLASSIFICATION | H253: 9_STREET LIGHTING SERVICE CLASSIFICATION | AA253: STREET LIGHTING SERVICE CLASSIFICATION | BC253: STREET LIGHTING SERVICE CLASSIFICATION
B254: This classification is for roadway lighting with the Municipality. The consumption for this customer is based on the calculated connected load times the required lighting times established in the approved Ontario Energy Board street lighting load shape template. Class B consumers are defined in accordance with O. Reg. 429/04. Further servicing details are available in the distributor’s Conditions of Service. | H254: 9_STREET LIGHTING SERVICE CLASSIFICATION | AA254: This classification is for roadway lighting with the Municipality. The consumption for this customer is based on the calculated connected load times the required lighting times established in the approved Ontario Energy Board street lighting load shape template. Class B consumers are defined in accordance with O. Reg. 429/04. Further servicing details are available in the distributor’s Conditions of Service. | BC254: This classification is for roadway lighting with the Municipality. The consumption for this customer is based on the calculated connected load times the required lighting times established in the approved Ontario Energy Board street lighting load shape template. Class B consumers are defined in accordance with O. Reg. 429/04. Further servicing details are available in the distributor’s Conditions of Service.
B256: APPLICATION | H256: 9_APPLICATION | AA256: APPLICATION | BC256: APPLICATION
B258: The application of these rates and charges shall be in accordance with the Licence of the Distributor and any Code or Order of the Ontario Energy Board, and amendments thereto as approved by the Ontario Energy Board, which may be applicable to the administration of this schedule. | H258: 9_STREET LIGHTING SERVICE CLASSIFICATION | AA258: The application of these rates and charges shall be in accordance with the Licence of the Distributor and any Code or Order of the Ontario Energy Board, and amendments thereto as approved by the Ontario Energy Board, which may be applicable to the administration of this schedule. | BC258: The application of these rates and charges shall be in accordance with the Licence of the Distributor and any Code or Order of the Ontario Energy Board, and amendments thereto as approved by the Ontario Energy Board, which may be applicable to the administration of this schedule.
B260: No rates and charges for the distribution of electricity and charges to meet the costs of any work or service done or furnished for the purpose of the distribution of electricity shall be made except as permitted by this schedule, unless required by the Distributor’s Licence or a Code or Order of the Ontario Energy Board, and amendments thereto as approved by the Ontario Energy Board, or as specified herein. | H260: 9_STREET LIGHTING SERVICE CLASSIFICATION | AA260: No rates and charges for the distribution of electricity and charges to meet the costs of any work or service done or furnished for the purpose of the distribution of electricity shall be made except as permitted by this schedule, unless required by the Distributor’s Licence or a Code or Order of the Ontario Energy Board, and amendments thereto as approved by the Ontario Energy Board, or as specified herein. | BC260: No rates and charges for the distribution of electricity and charges to meet the costs of any work or service done or furnished for the purpose of the distribution of electricity shall be made except as permitted by this schedule, unless required by the Distributor’s Licence or a Code or Order of the Ontario Energy Board, and amendments thereto as approved by the Ontario Energy Board, or as specified herein.
B262: Unless specifically noted, this schedule does not contain any charges for the electricity commodity, be it under the Regulated Price Plan, a contract with a retailer or the wholesale market price, as applicable. In addition, the charges in the MONTHLY RATES AND CHARGES - Regulatory Component of this schedule do not apply to a customer that is an embedded wholesale market participant. | H262: 9_STREET LIGHTING SERVICE CLASSIFICATION | AA262: Unless specifically noted, this schedule does not contain any charges for the electricity commodity, be it under the Regulated Price Plan, a contract with a retailer or the wholesale market price, as applicable. In addition, the charges in the MONTHLY RATES AND CHARGES - Regulatory Component of this schedule do not apply to a customer that is an embedded wholesale market participant. | BC262: Unless specifically noted, this schedule does not contain any charges for the electricity commodity, be it under the Regulated Price Plan, a contract with a retailer or the wholesale market price, as applicable. In addition, the charges in the MONTHLY RATES AND CHARGES - Regulatory Component of this schedule do not apply to a customer that is an embedded wholesale market participant.
B264: It should be noted that this schedule does not list any charges, assessments or credits that are required by law to be invoiced by a distributor and that are not subject to Ontario Energy Board approval, such as the Debt Retirement Charge, the Global Adjustment and the HST. | H264: 9_STREET LIGHTING SERVICE CLASSIFICATION | AA264: It should be noted that this schedule does not list any charges, assessments or credits that are required by law to be invoiced by a distributor and that are not subject to Ontario Energy Board approval, such as the Debt Retirement Charge, the Global Adjustment and the HST. | BC264: It should be noted that this schedule does not list any charges, assessments or credits that are required by law to be invoiced by a distributor and that are not subject to Ontario Energy Board approval, such as the Debt Retirement Charge, the Global Adjustment and the HST.
B266: MONTHLY RATES AND CHARGES - Delivery Component | H266: 9_MRC_Del | AA266: MONTHLY RATES AND CHARGES - Delivery Component | BC266: MONTHLY RATES AND CHARGES - Delivery Component
A268: SL_F | B268: Service Charge (per connection) | D268: $ | E268: 0.44 | H268: 9_STREET LIGHTING SERVICE CLASSIFICATION | I268: A | M268: 9_STREET LIGHTING SERVICE CLASSIFICATION_MSC | Z268: 9_STREET LIGHTING SERVICE CLASSIFICATION_MSC | BB268: Service Charge (per connection)
A269: SL_PRAG | B269: Rate Rider for Disposition of Post Retirement Actuarial Gain - effective until March 31, 2025 | D269: $ | E269: -0.01 | H269: 9_STREET LIGHTING SERVICE CLASSIFICATION | I269: A | M269: 9_STREET LIGHTING SERVICE CLASSIFICATION_FX_RR_85 | Q269: 2025-03-31 | Z269: Rate Rider for Disposition of Post Retirement Actuarial Gain - effective until March 31, 2025 | BB269: Rate Rider for Disposition of Post Retirement Actuarial Gain - effective until March 31, 2025
A270: SL_V | B270: Distribution Volumetric Rate | D270: $/kW | E270: 10.408 | H270: 9_STREET LIGHTING SERVICE CLASSIFICATION | I270: A | M270: 9_STREET LIGHTING SERVICE CLASSIFICATION_DVC | Z270: 9_STREET LIGHTING SERVICE CLASSIFICATION_DVC | BB270: Distribution Volumetric Rate
A271: SL_LV | B271: Low Voltage Service Rate | D271: $/kW | E271: 0.0107 | H271: 9_STREET LIGHTING SERVICE CLASSIFICATION | I271: B | M271: 9_STREET LIGHTING SERVICE CLASSIFICATION_LV | Z271: Low Voltage Service Rate | BB271: Low Voltage Service Rate
A272: SL_GA19 | B272: Rate Rider for Disposition of Global Adjustment Account (2019) - effective until December 31, 2019 Applicable only for Non-RPP Customers - Approved on a Interim Basis | D272: $/kWh | E272: 0.0058 | H272: 9_STREET LIGHTING SERVICE CLASSIFICATION | I272: B | M272: 9_STREET LIGHTING SERVICE CLASSIFICATION_GA_kwh | BB272: Rate Rider for Disposition of Global Adjustment Account (2019) - effective until December 31, 2019 Applicable only for Non-RPP Customers
A273: SL_LRV19 | B273: Rate Rider for Disposition of Lost Revenue Adjustment Mechanism Variance Account (LRAMVA) (2019) - effective until December 31, 2019 | D273: $/kW | E273: -0.7203 | H273: 9_STREET LIGHTING SERVICE CLASSIFICATION | I273: A | M273: 9_STREET LIGHTING SERVICE CLASSIFICATION_LRAM | BB273: Rate Rider for Disposition of Lost Revenue Adjustment Mechanism Variance Account (LRAMVA) (2019) - effective until December 31, 2019
A274: SL_DVA19 | B274: Rate Rider for Disposition of Deferral/Variance Accounts (2019) - effective until December 31, 2019 - Approved on a Interim Basis | D274: $/kW | E274: 0.3604 | H274: 9_STREET LIGHTING SERVICE CLASSIFICATION | I274: B | M274: 9_STREET LIGHTING SERVICE CLASSIFICATION_DVA | BB274: Rate Rider for Disposition of Deferral/Variance Accounts (2019) - effective until December 31, 2019
A275: SL_RBCA19 | B275: Rate Rider for Disposition and Recovery/Refund of Regulatory Balances Control Account (2016) Applicable only for Non-RPP Customers - effective until December 31, 2019 | D275: $/kWh | E275: -0.0002 | H275: 9_STREET LIGHTING SERVICE CLASSIFICATION | I275: B | M275: 9_STREET LIGHTING SERVICE CLASSIFICATION_VR_RR | Z275: 8_SENTINEL LIGHTING SERVICE CLASSIFICATION_CBR_1 | BB275: Rate Rider for Disposition and Recovery/Refund of Regulatory Balances Control Account (2016) Applicable only for Non-RPP Customers - effective until December 31, 2019
A276: SL_TN | B276: Retail Transmission Rate - Network Service Rate | D276: $/kW | E276: 2.3954 | H276: 9_STREET LIGHTING SERVICE CLASSIFICATION | I276: C | M276: 9_STREET LIGHTING SERVICE CLASSIFICATION_Retail Transmission Rate - Network Service Rate | Z276: 9_STREET LIGHTING SERVICE CLASSIFICATION_Retail Transmission Rate - Network Service Rate | AZ276: STREET LIGHTING SERVICE CLASSIFICATION_Retail Transmission Rate - Network Service Rate | BB276: Retail Transmission Rate - Network Service Rate
A277: SL_TC | B277: Retail Transmission Rate - Line and Transformation Connection Service Rate | D277: $/kW | E277: 2.1267 | H277: 9_STREET LIGHTING SERVICE CLASSIFICATION | I277: C | M277: 9_STREET LIGHTING SERVICE CLASSIFICATION_Retail Transmission Rate - Line and Transformation Connection Service Rate | Z277: 9_STREET LIGHTING SERVICE CLASSIFICATION_Retail Transmission Rate - Line and Transformation Connection Service Rate | AZ277: STREET LIGHTING SERVICE CLASSIFICATION_Retail Transmission Rate - Line and Transformation Connection Service Rate | BB277: Retail Transmission Rate - Line and Transformation Connection Service Rate
B279: MONTHLY RATES AND CHARGES - Regulatory Component | H279: 9_MRC_Reg | AA279: MONTHLY RATES AND CHARGES - Regulatory Component | BC279: MONTHLY RATES AND CHARGES - Regulatory Component
B281: Wholesale Market Service Rate (WMS) - not including CBR | D281: $/kWh | E281: 0.003 | H281: 9_STREET LIGHTING SERVICE CLASSIFICATION | I281: T | M281: 9_STREET LIGHTING SERVICE CLASSIFICATION_WMSR | Z281: Wholesale Market Service Rate (WMS) - not including CBR | BB281: Wholesale Market Service Rate (WMS) - not including CBR
B282: Capacity Based Recovery (CBR) - Applicable for Class B Customers | D282: $/kWh | E282: 0.0004 | H282: 9_STREET LIGHTING SERVICE CLASSIFICATION | I282: T | M282: 9_STREET LIGHTING SERVICE CLASSIFICATION_WMSR | Z282: Capacity Based Recovery (CBR) - Applicable for Class B Customers | BB282: Capacity Based Recovery (CBR) - Applicable for Class B Customers
B283: Rural or Remote Electricity Rate Protection Charge (RRRP) | D283: $/kWh | E283: 0.0005 | H283: 9_STREET LIGHTING SERVICE CLASSIFICATION | I283: T | M283: 9_STREET LIGHTING SERVICE CLASSIFICATION_RRRP | Z283: Rural or Remote Electricity Rate Protection Charge (RRRP) | BB283: Rural or Remote Electricity Rate Protection Charge (RRRP)
B284: Standard Supply Service - Administrative Charge (if applicable) | D284: $ | E284: 0.25 | H284: 9_STREET LIGHTING SERVICE CLASSIFICATION | I284: T | M284: 9_STREET LIGHTING SERVICE CLASSIFICATION_SSS | Z284: Standard Supply Service - Administrative Charge (if applicable) | AS284: X | BB284: Standard Supply Service - Administrative Charge (if applicable)
B285: microFIT SERVICE CLASSIFICATION | H285: 10_microFIT SERVICE CLASSIFICATION | AA285: microFIT SERVICE CLASSIFICATION | BC285: microFIT SERVICE CLASSIFICATION
B286: This classification applies to an electricity generation facility contracted under the Independent Electricity System Operator’s microFIT program and connected to the distributor’s distribution system. Further servicing details are available in the distributor’s Conditions of Service. | H286: 10_microFIT SERVICE CLASSIFICATION | AA286: This classification applies to an electricity generation facility contracted under the Independent Electricity System Operator’s microFIT program and connected to the distributor’s distribution system. Further servicing details are available in the distributor’s Conditions of Service. | BC286: This classification applies to an electricity generation facility contracted under the Independent Electricity System Operator’s microFIT program and connected to the distributor’s distribution system. Further servicing details are available in the distributor’s Conditions of Service.
B288: APPLICATION | H288: 10_APPLICATION | AA288: APPLICATION | BC288: APPLICATION
... 63 more rows

Sheet 3. Continuity Schedule
A1: Back to Index | B1: Back to Index | CB1: FALSE
C2: INCENTIVE REGULATION MODEL FOR 2020 FILERS | CB2: FALSE
CB3: FALSE
CB4: FALSE
CB5: FALSE
CB6: FALSE
CB7: FALSE
CB8: FALSE
CB9: FALSE
CB10: TRUE
CB11: TRUE
C12: Please complete the following continuity schedule for the following Deferral/Variance Accounts. Enter information into green cells only. Column CE shoudl match the latest 2.1.7 RRR filing. When inputting balances in the continuity schedule, Account 1580 RSVA - Wholesale Market Service Charge is to exclude any amounts relating to CBR. The CBR amounts are to be entered separately in the Class A and Class B 1580 sub-accounts. Only Class B amounts are to be disposed. Class A amounts are not to be disposed. If you have received approval to dispose of balances from prior years, the starting point for entries in the schedule below will be the balance sheet date as per your general ledger for which you received approval. For example, if in the 2020 EDR process (CoS or IRM) you received approval for the December 31, 2014 balances, the starting point for your entries below should be the 2013 year. This will allow for the correct starting point for the 2014 opening balance columns for both principal and interest. Please refer to the footnotes for further instructions.
E16: 2013 | O16: =E16+1 -> 2014 | Y16: =O16+1 -> 2015 | AI16: =Y16+1 -> 2016 | AS16: =AI16+1 -> 2017 | BC16: =AS16+1 -> 2018 | BM16: 2019 | BQ16: Projected Interest on Dec-31-18 Balances | BV16: 2.1.7 RRR
C17: Account Descriptions | D17: Account Number | E17: Opening Principal Amounts as of Jan 1, 2013 | F17: Transactions2 Debit / (Credit) during 2013 | G17: OEB-Approved Disposition during 2013 | H17: Principal Adjustments1 during 2013 | I17: Closing Principal Balance as of Dec 31, 2013 | J17: Opening Interest Amounts as of Jan 1, 2013 | K17: Interest Jan 1 to Dec 31, 2013 | L17: OEB-Approved Disposition during 2013 | M17: Interest Adjustments1 during 2013 | N17: Closing Interest Amounts as of Dec 31, 2013 | O17: Opening Principal Amounts as of Jan 1, 2014 | P17: Transactions2 Debit / (Credit) during 2014 | Q17: OEB-Approved Disposition during 2014 | R17: Principal Adjustments1 during 2014 | S17: Closing Principal Balance as of Dec 31, 2014 | T17: Opening Interest Amounts as of Jan 1, 2014 | U17: Interest Jan 1 to Dec 31. 2014 | V17: OEB-Approved Disposition during 2014 | W17: Interest Adjustments1 during 2014 | X17: Closing Interest Amounts as of Dec 31, 2014 | Y17: Opening Principal Amounts as of Jan 1, 2015 | Z17: Transactions2 Debit / (Credit) during 2015 | AA17: OEB-Approved Disposition during 2015 | AB17: Principal Adjustments1 during 2015 | AC17: Closing Principal Balance as of Dec 31, 15 | AD17: Opening Interest Amounts as of Jan 1, 15 | AE17: Interest Jan 1 to Dec 31, 15 | AF17: OEB-Approved Disposition during 2015 | AG17: Interest Adjustments1 during 2015 | AH17: Closing Interest Amounts as of Dec 31, 15 | AI17: Opening Principal Amounts as of Jan 1, 2016 | AJ17: Transactions2 Debit / (Credit) during 2016 | AK17: OEB-Approved Disposition during 2016 | AL17: Principal Adjustments1 during 2016 | AM17: Closing Principal Balance as of Dec 31, 16 | AN17: Opening Interest Amounts as of Jan 1, 16 | AO17: Interest Jan 1 to Dec 31, 16 | AP17: OEB-Approved Disposition during 2016 | AQ17: Interest Adjustments1 during 2016 | AR17: Closing Interest Amounts as of Dec 31, 16 | AS17: Opening Principal Amounts as of Jan 1, 2017 | AT17: Transactions2 Debit / (Credit) during 2017 | AU17: OEB-Approved Disposition during 2017 | AV17: Principal Adjustments1 during 2017 | AW17: Closing Principal Balance as of Dec 31, 17 | AX17: Opening Interest Amounts as of Jan 1, 17 | AY17: Interest Jan 1 to Dec 31, 17 | AZ17: OEB-Approved Disposition during 2017 | BA17: Interest Adjustments1 during 2017 | BB17: Closing Interest Amounts as of Dec 31, 17 | BC17: Opening Principal Amounts as of Jan 1, 2018 | BD17: Transactions2 Debit / (Credit) during 2018 | BE17: OEB-Approved Disposition during 2018 | BF17: Principal Adjustments1 during 2018 | BG17: Closing Principal Balance as of Dec 31, 2018 | BH17: Opening Interest Amounts as of Jan 1, 2018 | BI17: Interest Jan 1 to Dec 31, 2018 | BJ17: OEB-Approved Disposition during 2018 | BK17: Interest Adjustments1 during 2018 | BL17: Closing Interest Amounts as of Dec 31, 2018 | BM17: Principal Disposition during 2019 - instructed by OEB | BN17: Interest Disposition during 2019 - instructed by OEB | BO17: Closing Principal Balances as of Dec 31, 2018 Adjusted for Dispositions during 2019 | BP17: Closing Interest Balances as of Dec 31, 2018 Adjusted for Disposition in 2019 | BQ17: Projected Interest from January 1, 2019 to December 31, 2019 on December 31, 2018 balance adjusted for disposition during 2019 3 | BR17: Projected Interest from January 1, 2019 to April 30, 2019 on December 31, 2018 balance adjusted for disposition during 2019 3 | BS17: Total Interest | BT17: Dispose of Account? (Y/N) | BU17: Total Claim | BV17: As of Dec 31-18 | BW17: Variance RRR vs. 2018 Balance (Principal + Interest)
BU19: Claim before Forecasted Transactions
C20: Group 1 Accounts
C21: LV Variance Account | D21: 1550 | E21: 0 | I21: =E21+F21-G21+SUM(H21:H21) -> 0 | J21: 0 | N21: =J21+K21-L21+M21 -> 0 | O21: =I21 -> 0 | R21: 92314.41 | S21: =O21+P21-Q21+SUM(R21:R21) -> 92314.41 | T21: =N21 -> 0 | W21: 671.396214 | X21: =T21+U21-V21+W21 -> 671.396214 | Y21: =S21 -> 92314.41 | Z21: 108496.59 | AA21: 17488.58 | AC21: =Y21+Z21-AA21+SUM(AB21:AB21) -> 183322.42 | AD21: =X21 -> 671.396214 | AE21: 1394.62 | AF21: 167.51834 | AH21: =AD21+AE21-AF21+AG21 -> 1898.497874 | AI21: =AC21 -> 183322.42 | AJ21: 81768.5 | AK21: 74825.83 | AM21: =AI21+AJ21-AK21+SUM(AL21:AL21) -> 190265.09 | AN21: =AH21 -> 1898.497874 | AO21: 1643 | AP21: 1396 | AR21: =AN21+AO21-AP21+AQ21 -> 2145.497874 | AS21: =AM21 -> 190265.09 | AT21: 76354.44 | AU21: 108497 | AW21: =AS21+AT21-AU21+SUM(AV21:AV21) -> 158122.53 | AX21: =AR21 -> 2145.497874 | AY21: 1522 | AZ21: 1696 | BB21: =AX21+AY21-AZ21+BA21 -> 1971.497874 | BC21: =AW21 -> 158122.53 | BD21: 66741.91 | BE21: 81768.09 | BG21: =BC21+BD21-BE21+SUM(BF21:BF21) -> 143096.35 | BH21: =BB21 -> 1971.497874 | BI21: 2135.02 | BJ21: 1348.497874 | BL21: =BH21+BI21-BJ21+BK21 -> 2758.02 | BM21: 76354.44 | BN21: 1991.653337 | BO21: =BG21-BM21 -> 66741.91 | BP21: =BL21-BN21 -> 766.366663 | BQ21: =+BO21*((2.45%*3/12)+(2.18%*9/12)) -> 1500.024427 | BS21: =BP21+BQ21+BR21 -> 2266.39109 | BU21: =SUM(BO21:BR21) -> 69008.30109 | BV21: 145854.53 | BW21: =BV21-SUM(BG21,BL21) -> 0.16
C22: Smart Metering Entity Charge Variance Account | D22: 1551 | E22: 0 | I22: =E22+F22-G22+SUM(H22:H22) -> 0 | J22: 0 | N22: =J22+K22-L22+M22 -> 0 | O22: 0 | R22: 43987.83 | S22: 43987.83 | T22: 0 | W22: 1579.685339 | X22: =T22+U22-V22+W22 -> 1579.685339 | Y22: 43987.83 | Z22: -39205.4 | AA22: 62203.42 | AC22: -57420.99 | AD22: 1579.685339 | AE22: -245.14 | AF22: 1616.355613 | AH22: =AD22+AE22-AF22+AG22 -> -281.810274 | AI22: =AC22 -> -57420.99 | AJ22: -20636 | AK22: -18215.59 | AM22: =AI22+AJ22-AK22+SUM(AL22:AL22) -> -59841.4 | AN22: -281.810274 | AO22: -527 | AP22: -254 | AR22: =AN22+AO22-AP22+AQ22 -> -554.810274 | AS22: =AM22 -> -59841.4 | AT22: -8309 | AU22: -39205 | AW22: =AS22+AT22-AU22+SUM(AV22:AV22) -> -28945.4 | AX22: -554.810274 | AY22: -358 | AZ22: -459 | BB22: =AX22+AY22-AZ22+BA22 -> -453.810274 | BC22: =AW22 -> -28945.4 | BD22: -65317.71 | BE22: -20636.4 | BG22: =BC22+BD22-BE22+SUM(BF22:BF22) -> -73626.71 | BH22: -453.810274 | BI22: -1099.97 | BJ22: -322.810274 | BL22: =BH22+BI22-BJ22+BK22 -> -1230.97 | BM22: -8309 | BN22: -279.938825 | BO22: -65317.71 | BP22: =BL22-BN22 -> -951.031175 | BQ22: =+BO22*((2.45%*3/12)+(2.18%*9/12)) -> -1468.015532 | BS22: =BP22+BQ22+BR22 -> -2419.046707 | BU22: =SUM(BO22:BR22) -> -67736.75671 | BV22: -74857.6 | BW22: =BV22-SUM(BG22,BL22) -> 0.07999999999
C23: RSVA - Wholesale Market Service Charge | D23: 1580 | E23: 0 | I23: =E23+F23-G23+SUM(H23:H23) -> 0 | J23: 0 | N23: =J23+K23-L23+M23 -> 0 | O23: 0 | R23: -1074582.36 | S23: -1074582.36 | T23: 0 | W23: 14543.7361 | X23: =T23+U23-V23+W23 -> 14543.7361 | Y23: -1074582.36 | Z23: -3881395.39 | AA23: -961981 | AC23: -3993996.75 | AD23: 14543.7361 | AE23: -14949.95 | AF23: 6615.4554 | AH23: =AD23+AE23-AF23+AG23 -> -7021.6693 | AI23: -3993996.75 | AJ23: -1627075.57 | AK23: -112601.36 | AM23: =AI23+AJ23-AK23+SUM(AL23:AL23) -> -5508470.96 | AN23: -7021.6693 | AO23: -50539 | AP23: 6586 | AR23: =AN23+AO23-AP23+AQ23 -> -64146.6693 | AS23: -5508470.96 | AT23: -1651500 | AU23: -3881395 | AV23: 69504 | AW23: =AS23+AT23-AU23+SUM(AV23:AV23) -> -3209071.96 | AX23: -64146.6693 | AY23: -30776.97 | AZ23: -56303 | BA23: -7120 | BB23: =AX23+AY23-AZ23+BA23 -> -45740.6393 | BC23: -3209071.96 | BD23: -315339.56 | BE23: -1627075.96 | BF23: =-69504+69504*2 -> 69504 | BG23: =BC23+BD23-BE23+SUM(BF23:BF23) -> -1827831.56 | BH23: -45740.6393 | BI23: -33935.895 | BJ23: -25741.6693 | BL23: =BH23+BI23-BJ23+BK23 -> -53934.865 | BM23: -1581996 | BN23: -48356.2483 | BO23: -245835.56 | BP23: -5578.6167 | BQ23: -5525.154211 | BS23: -11103.77091 | BU23: =SUM(BO23:BR23) -> -256939.3309 | BV23: -2013654.48 | BW23: -131888.055
C24: Variance WMS – Sub-account CBR Class A | D24: 1580 | E24: 0 | I24: 0 | J24: 0 | N24: 0 | O24: 0 | R24: 0 | S24: 0 | T24: 0 | W24: 0 | X24: 0 | Y24: 0 | Z24: 92932.01 | AC24: =Y24+Z24-AA24+SUM(AB24:AB24) -> 92932.01 | AD24: 0 | AE24: 287.17 | AH24: 287.17 | AI24: 92932.01 | AJ24: -92932 | AM24: =AI24+AJ24-AK24+SUM(AL24:AL24) -> 0.009999999995 | AN24: 287.17 | AO24: -287 | AR24: 0.17 | AS24: 0.009999999995 | AU24: 0 | AW24: =AS24+AT24-AU24+SUM(AV24:AV24) -> 0.009999999995 | AX24: 0.17 | AY24: 50 | AZ24: 0 | BB24: 50.17 | BC24: 0.009999999995 | BE24: 0.009999999995 | BG24: =BC24+BD24-BE24+SUM(BF24:BF24) -> 0 | BH24: 50.17 | BJ24: 0.17 | BL24: 50 | BM24: 0 | BN24: 0 | BO24: 0 | BP24: 50 | BQ24: 0 | BS24: 50 | BT24: No | BU24: =IF(BT24="YES",SUM(BO24:BR24),0) -> 0 | BV24: 50 | BW24: 0
C25: Variance WMS – Sub-account CBR Class B | D25: 1580 | E25: 0 | I25: 0 | J25: 0 | N25: 0 | O25: 0 | R25: 0 | S25: 0 | T25: 0 | W25: 0 | X25: 0 | Y25: 0 | Z25: 350954.7 | AC25: 350954.7 | AD25: 0 | AE25: 1168.93 | AH25: 1168.93 | AI25: 350954.7 | AJ25: -62618 | AM25: =AI25+AJ25-AK25+SUM(AL25:AL25) -> 288336.7 | AN25: 1168.93 | AO25: 3384 | AR25: 4552.93 | AS25: 288336.7 | AT25: -8937 | AU25: 350955 | AW25: =AS25+AT25-AU25+SUM(AV25:AV25) -> -71555.3 | AX25: 4552.93 | AY25: -500.14 | AZ25: 5029 | BA25: 7120 | BB25: 6143.79 | BC25: -71555.3 | BD25: -16417.1 | BE25: -62618.3 | BG25: =BC25+BD25-BE25+SUM(BF25:BF25) -> -25354.1 | BH25: 6143.79 | BI25: -502.215 | BJ25: -1165.07 | BL25: 6806.645 | BM25: -8937 | BN25: 7148.664275 | BO25: =BG25-BM25 -> -16417.1 | BP25: -342.019275 | BQ25: -368.9743225 | BS25: -710.9935975 | BU25: -17128.0936 | BV25: -25667.91 | BW25: -7120.455
C26: RSVA - Retail Transmission Network Charge | D26: 1584 | E26: 0 | I26: 0 | J26: 0 | N26: 0 | O26: 0 | R26: 715104.82 | S26: 715104.82 | T26: 0 | W26: -8217.0403 | X26: -8217.0403 | Y26: 715104.82 | Z26: -978909.49 | AA26: 517305 | AC26: -781109.67 | AD26: -8217.0403 | AE26: 104.3 | AF26: -11515.7768 | AH26: 3403.0365 | AI26: -781109.67 | AJ26: -641049.22 | AK26: 197799.82 | AM26: -1619958.71 | AN26: 3403.0365 | AO26: -12945 | AP26: 5657 | AR26: -15198.9635 | AS26: -1619958.71 | AT26: 1685986.62 | AU26: -978909 | AW26: 1044936.91 | AX26: -15198.9635 | AY26: 1126.32 | AZ26: -13022 | BB26: -1050.6435 | BC26: 1044936.91 | BD26: -40471.36 | BE26: -641049.71 | BG26: 1645515.26 | BH26: -1050.6435 | BI26: 30006.93 | BJ26: -9228.9635 | BL26: 38185.25 | BM26: 1685986.62 | BN26: 38399.63016 | BO26: =BG26-BM26 -> -40471.36 | BP26: -214.3801635 | BQ26: -909.593816 | BS26: -1123.973979 | BU26: -41595.33398 | BV26: 1683700.58 | BW26: 0.0699998152
C27: RSVA - Retail Transmission Connection Charge | D27: 1586 | E27: 0 | I27: 0 | J27: 0 | N27: 0 | O27: 0 | R27: 178038.14 | S27: 178038.14 | T27: 0 | W27: -5885.5209 | X27: -5885.5209 | Y27: 178038.14 | Z27: -433381.63 | AA27: -112262 | AC27: -143081.49 | AD27: -5885.5209 | AE27: 2766.33 | AF27: -8633.6723 | AH27: 5514.4814 | AI27: -143081.49 | AJ27: -258199 | AK27: 290300.14 | AM27: -691580.63 | AN27: 5514.4814 | AO27: -4704 | AP27: 6210 | AR27: -5399.5186 | AS27: -691580.63 | AT27: 1559386.82 | AU27: -433382 | AW27: 1301188.19 | AX27: -5399.5186 | AY27: 6128 | AZ27: -5463 | BB27: 6191.4814 | BC27: 1301188.19 | BD27: 674436.93 | BE27: -258198.63 | BG27: 2233823.75 | BH27: 6191.4814 | BI27: 35844.6 | BJ27: -2776.5186 | BL27: 44812.6 | BM27: 1559386.82 | BN27: 36920.40875 | BO27: 674436.93 | BP27: 7892.191251 | BQ27: 15157.97 | BS27: 23050.16125 | BU27: =SUM(BO27:BR27) -> 697487.0913 | BV27: 2278636.6 | BW27: 0.2500001471
C28: RSVA - Power | D28: 1588 | E28: 0 | I28: 0 | J28: 0 | N28: 0 | O28: 0 | R28: 202094.55 | S28: 202094.55 | T28: 0 | W28: 138.3347 | X28: 138.3347 | Y28: 202094.55 | Z28: -1091870.15 | AA28: 861186 | AC28: -1750961.6 | AD28: 138.3347 | AE28: -5516.35 | AF28: -1463.2611 | AH28: -3914.7542 | AI28: -1750961.6 | AJ28: 1058967.736 | AK28: -659091.45 | AL28: -2089986.74 | AM28: -2122889.154 | AN28: -3914.7542 | AO28: -29122 | AP28: -6258 | AR28: -26778.7542 | AS28: -2122889.154 | AT28: -142399.41 | AU28: -1091870 | AW28: =AS28+AT28-AU28+AV28 -> -1173418.564 | AX28: -26778.7542 | AY28: -19253.37 | AZ28: -9667 | BB28: -36365.1242 | BC28: -1173418.564 | BD28: -45718.68 | BE28: -1031019.154 | BF28: =-248944+248944 -> 0 | BG28: -188118.09 | BH28: -36365.1242 | BI28: -2655.62676 | BJ28: -28452.7542 | BL28: -10567.99676 | BM28: -142399.11 | BN28: -10464.57942 | BO28: -45718.98 | BP28: -103.4173362 | BQ28: -1027.534076 | BS28: -1130.951412 | BU28: -46849.93141 | BV28: -198686.37 | BW28: -0.2832386155
C29: RSVA - Global Adjustment | D29: 1589 | E29: 0 | I29: 0 | J29: 0 | N29: 0 | O29: 0 | R29: 8113220.98 | S29: 8113220.98 | T29: 0 | W29: 79626.0281 | X29: 79626.0281 | Y29: 8113220.98 | Z29: -347498.16 | AA29: 4829630 | AC29: 2936092.82 | AD29: 79626.0281 | AE29: 46192.51 | AF29: 87698.1591 | AH29: 38120.379 | AI29: 2936092.82 | AJ29: 1140982.26 | AK29: 3283590.98 | AL29: 2144980.74 | AM29: 2938464.84 | AN29: 38120.379 | AO29: 39045 | AP29: 31085 | AR29: 46080.379 | AS29: 2938464.84 | AT29: 2918422 | AU29: -347498 | AV29: 213611.15 | AW29: =AS29+AT29-AU29+SUM(AV29:AV29) -> 6417995.99 | AX29: 46080.379 | AY29: 66236 | AZ29: 3213 | BB29: 109103.379 | BC29: 6417995.99 | BD29: -2229900.31 | BE29: 3285962.84 | BF29: =145888+220196+414492.76+223075 -> 1003651.76 | BG29: 1905784.6 | BH29: 109103.379 | BI29: 36021.23 | BJ29: 79013.379 | BL29: 66111.23 | BM29: 3132033.15 | BN29: 86231.69421 | BO29: =BG29-BM29 -> -1226248.55 | BP29: -20120.46421 | BQ29: -27559.93616 | BS29: -47680.40038 | BU29: -1273928.95 | BV29: 699638.97 | BW29: -1272256.86
C30: Disposition and Recovery/Refund of Regulatory Balances (2009)4 | D30: 1595 | E30: 0 | I30: 0 | J30: 0 | N30: 0 | O30: 0 | S30: 0 | T30: 0 | W30: 0 | X30: 0 | Y30: 0 | AC30: 0 | AD30: 0 | AH30: 0 | AI30: 0 | AM30: 0 | AN30: 0 | AR30: 0 | AS30: 0 | AW30: 0 | AX30: 0 | BB30: 0 | BC30: 0 | BG30: 0 | BH30: 0 | BL30: 0 | BM30: 0 | BN30: 0 | BO30: 0 | BP30: 0 | BQ30: 0 | BS30: 0 | BT30: No | BU30: =IF(BT30="YES",SUM(BO30:BR30),0) -> 0 | BW30: 0
C31: Disposition and Recovery/Refund of Regulatory Balances (2010)4 | D31: 1595 | E31: 25686 | F31: -1175 | I31: 24511 | J31: -126214 | K31: 460 | N31: -125754 | O31: 24511 | P31: 89.41 | Q31: 25686 | S31: -1085.59 | T31: -125754 | U31: -74 | V31: -126025.2079 | X31: 197.2079 | Y31: -1085.59 | AA31: -1175 | AC31: 89.41 | AD31: 197.2079 | AF31: 253.9354 | AH31: -56.7275 | AI31: 89.41 | AK31: 89.41 | AM31: 0 | AN31: -56.7275 | AP31: -56 | AR31: -0.7275 | AS31: 0 | AW31: 0 | AX31: -0.7275 | BB31: -0.7275 | BC31: 0 | BG31: 0 | BH31: -0.7275 | BL31: -0.7275 | BM31: 0 | BN31: 0 | BO31: 0 | BP31: -0.7275 | BQ31: 0 | BS31: -0.7275 | BT31: No | BU31: 0 | BW31: 0.7275
C32: Disposition and Recovery/Refund of Regulatory Balances (2011)4 | D32: 1595 | E32: 0 | I32: =E32+F32-G32+SUM(H32:H32) -> 0 | J32: 0 | N32: 0 | O32: 0 | S32: 0 | T32: 0 | X32: 0 | Y32: 0 | AC32: 0 | AD32: 0 | AH32: 0 | AI32: 0 | AM32: 0 | AN32: 0 | AR32: 0 | AS32: 0 | AW32: 0 | AX32: 0 | BB32: 0 | BC32: 0 | BG32: 0 | BH32: 0 | BL32: 0 | BM32: 0 | BN32: 0 | BO32: 0 | BP32: 0 | BQ32: 0 | BS32: 0 | BT32: No | BU32: 0 | BW32: 0
C33: Disposition and Recovery/Refund of Regulatory Balances (2012)4 | D33: 1595 | E33: 44547 | F33: -40742 | H33: 1131481 | I33: 1135286 | J33: 513137 | K33: 14798 | N33: 527935 | O33: 1135286 | S33: 1135286 | T33: 527935 | U33: 16688.7 | X33: 544623.7 | Y33: 1135286 | AA33: 1135286 | AC33: 0 | AD33: 544623.7 | AF33: 544623.7 | AH33: 0 | AI33: 0 | AM33: 0 | AN33: 0 | AR33: 0 | AS33: 0 | AW33: 0 | AX33: 0 | BB33: 0 | BC33: 0 | BG33: 0 | BH33: 0 | BL33: 0 | BM33: 0 | BN33: 0 | BO33: 0 | BP33: 0 | BQ33: 0 | BS33: 0 | BT33: No | BU33: 0 | BW33: 0
C34: Disposition and Recovery/Refund of Regulatory Balances (2013)4 | D34: 1595 | E34: 0 | I34: 0 | J34: 0 | N34: 0 | O34: 0 | S34: 0 | T34: 0 | X34: 0 | Y34: 0 | AC34: 0 | AD34: 0 | AH34: 0 | AI34: 0 | AM34: 0 | AN34: 0 | AR34: 0 | AS34: 0 | AW34: 0 | AX34: 0 | BB34: 0 | BC34: 0 | BG34: 0 | BH34: 0 | BL34: 0 | BO34: 0 | BP34: 0 | BQ34: 0 | BS34: 0 | BT34: No | BU34: 0 | BW34: 0
C35: Disposition and Recovery/Refund of Regulatory Balances (2014)4 | D35: 1595 | E35: 0 | I35: 0 | J35: 0 | N35: 0 | O35: 0 | P35: 3135998.04 | Q35: 2822103 | S35: =O35+P35-Q35+SUM(R35:R35) -> 313895.04 | T35: 0 | U35: -40003.07 | V35: 351100 | X35: -391103.07 | Y35: 313895.04 | Z35: 56659.5 | AC35: 370554.54 | AD35: -391103.07 | AE35: 4560.685647 | AH35: -386542.3844 | AI35: 370554.54 | AJ35: 31 | AK35: 313895.04 | AM35: 56690.5 | AN35: -386542.3844 | AO35: 911 | AP35: -387360 | AR35: 1728.615647 | AS35: 56690.5 | AU35: 56659 | AW35: 31.5 | AX35: 1728.615647 | AZ35: 1441 | BB35: 287.6156466 | BC35: 31.5 | BG35: 31.5 | BH35: 287.6156466 | BL35: 287.6156466 | BO35: 31.5 | BP35: 287.6156466 | BQ35: =+BO35*((2.45%*3/12)+(2.18%*9/12)) -> 0.7079625 | BS35: 288.3236091 | BT35: No | BU35: 0 | BW35: -319.1156466
C36: Disposition and Recovery/Refund of Regulatory Balances (2015)4 | D36: 1595 | E36: 0 | I36: 0 | J36: 0 | N36: 0 | O36: 0 | S36: 0 | T36: 0 | X36: 0 | Y36: 0 | Z36: -6317168.13 | AA36: -6347694 | AC36: 30525.87 | AD36: 0 | AE36: 36518 | AF36: -618186 | AH36: 654704 | AI36: 30525.87 | AJ36: -97851 | AM36: -67325.13 | AN36: 654704 | AO36: -888 | AR36: 653816 | AS36: -67325.13 | AU36: 30526 | AW36: -97851.13 | AX36: 653816 | AY36: -1146.24 | AZ36: 655040 | BB36: -2370.24 | BC36: -97851.13 | BE36: -97851 | BG36: -0.1299999999 | BH36: -2370.24 | BI36: 70 | BJ36: -2300 | BK36: 0 | BL36: -0.24 | BO36: -0.1299999999 | BP36: -0.24 | BQ36: -0.002921749997 | BS36: -0.24292175 | BT36: Yes | BU36: -0.3729217499 | BW36: 0.3699999999
C37: Disposition and Recovery/Refund of Regulatory Balances (2016)4 | D37: 1595 | E37: 0 | I37: 0 | J37: 0 | N37: 0 | O37: 0 | S37: =O37+P37-Q37+SUM(R37:R37) -> 0 | T37: 0 | X37: =T37+U37-V37+W37 -> 0 | Y37: =S37 -> 0 | AC37: =Y37+Z37-AA37+SUM(AB37:AB37) -> 0 | AD37: =X37 -> 0 | AH37: =AD37+AE37-AF37+AG37 -> 0 | AI37: =AC37 -> 0 | AJ37: -2181664 | AK37: -3096832 | AM37: =AI37+AJ37-AK37+SUM(AL37:AL37) -> 915168 | AN37: =AH37 -> 0 | AO37: 20642 | AP37: 364632 | AR37: =AN37+AO37-AP37+AQ37 -> -343990 | AS37: =AM37 -> 915168 | AT37: -33200.76 | AV37: 171801 | AW37: =AS37+AT37-AU37+SUM(AV37:AV37) -> 1053768.24 | AX37: =AR37 -> -343990 | AY37: 11052.7 | BA37: 7702 | BB37: =AX37+AY37-AZ37+BA37 -> -325235.3 | BC37: 1053768.24 | BD37: 0 | BG37: 1053768.24 | BH37: -325235.3 | BI37: 16426.64 | BK37: 0 | BL37: -308808.66 | BM37: 1053768 | BN37: -306346.5 | BO37: 0.24 | BP37: -2462.16 | BQ37: 0.005394 | BS37: -2462.154606 | BT37: No | BU37: 0 | BV37: 744959.35 | BW37: -0.2300000001
C38: Disposition and Recovery/Refund of Regulatory Balances (2017)4 | D38: 1595 | E38: 0 | I38: 0 | J38: 0 | N38: =J38+K38-L38+M38 -> 0 | O38: =I38 -> 0 | S38: 0 | T38: 0 | AH38: 0 | AI38: 0 | AM38: =AI38+AJ38-AK38+SUM(AL38:AL38) -> 0 | AN38: 0 | AR38: 0 | AS38: 0 | AT38: 5342266.93 | AU38: 6225622 | AW38: -883355.07 | AX38: 0 | AY38: -38494.94 | AZ38: -581504 | BB38: 543009.06 | BC38: -883355.07 | BD38: 84443.9 | BG38: -798911.17 | BH38: 543009.06 | BI38: -14742.12 | BL38: 528266.94 | BO38: -798911.17 | BP38: 528266.94 | BQ38: -17955.52855 | BS38: 510311.4115 | BT38: Yes | BU38: -288599.7585 | BV38: -367982.88 | BW38: -97338.65
C39: Disposition and Recovery/Refund of Regulatory Balances (2018)4 | D39: 1595 | E39: 0 | I39: 0 | J39: 0 | N39: 0 | O39: 0 | S39: 0 | T39: 0 | AH39: 0 | AI39: 0 | AM39: 0 | AN39: 0 | AR39: 0 | AS39: 0 | AW39: 0 | AX39: 0 | BB39: 0 | BC39: 0 | BD39: 29369 | BE39: -22458 | BG39: 51827 | BH39: 0 | BI39: 935.78 | BJ39: -16681 | BL39: 17616.78 | BO39: 51827 | BP39: 17616.78 | BQ39: 1164.811825 | BS39: 18781.59182 | BT39: No | BU39: 0 | BV39: 104011.95 | BW39: =BV39-SUM(BG39,BL39) -> 34568.17
C40: Disposition and Recovery/Refund of Regulatory Balances (2019)4 Not to be disposed of unless rate rider has expired and balance has been audited | D40: 1595 | E40: 0 | I40: 0 | J40: 0 | N40: 0 | O40: 0 | S40: 0 | T40: 0 | AH40: 0 | AI40: 0 | AM40: 0 | AN40: 0 | AR40: 0 | AS40: 0 | AW40: 0 | AX40: 0 | BB40: 0 | BC40: 0 | BG40: 0 | BH40: 0 | BL40: =BH40+BI40-BJ40+BK40 -> 0 | BM40: -6372106.052 | BN40: 180327.0104 | BO40: 6372106.052 | BP40: -180327.0104 | BQ40: 143213.0835 | BS40: -37113.92686 | BT40: No | BU40: 0 | BW40: 0
BO41: 0 | BP41: 0
C42: =C29 -> RSVA - Global Adjustment | D42: 1589 | E42: =E29 -> 0 | F42: 0 | G42: 0 | H42: 0 | I42: 0 | J42: 0 | K42: 0 | L42: 0 | M42: 0 | N42: 0 | O42: 0 | P42: =P29 -> 0 | Q42: 0 | R42: 8113220.98 | S42: 8113220.98 | T42: 0 | U42: 0 | V42: 0 | W42: 79626.0281 | X42: 79626.0281 | Y42: 8113220.98 | Z42: -347498.16 | AA42: 4829630 | AB42: 0 | AC42: 2936092.82 | AD42: 79626.0281 | AE42: 46192.51 | AF42: 87698.1591 | AG42: 0 | AH42: 38120.379 | AI42: 2936092.82 | AJ42: 1140982.26 | AK42: 3283590.98 | AL42: 2144980.74 | AM42: 2938464.84 | AN42: 38120.379 | AO42: 39045 | AP42: 31085 | AQ42: 0 | AR42: 46080.379 | AS42: 2938464.84 | AT42: 2918422 | AU42: -347498 | AV42: 213611.15 | AW42: 6417995.99 | AX42: 46080.379 | AY42: 66236 | AZ42: 3213 | BA42: 0 | BB42: 109103.379 | BC42: 6417995.99 | BD42: -2229900.31 | BE42: 3285962.84 | BF42: 1003651.76 | BG42: 1905784.6 | BH42: 109103.379 | BI42: 36021.23 | BJ42: =BJ29 -> 79013.379 | BK42: 0 | BL42: 66111.23 | BM42: 3132033.15 | BN42: 86231.69421 | BO42: -1226248.55 | BP42: -20120.46421 | BQ42: =BQ29 -> -27559.93616 | BR42: =BR29 -> 0 | BS42: =BS29 -> -47680.40038 | BU42: =BU29 -> -1273928.95 | BV42: =BV29 -> 699638.97 | BW42: -1272256.86
C43: Total Group 1 Balance excluding Account 1589 - Global Adjustment | E43: =SUM(E21:E40)-E29 -> 70233 | F43: =SUM(F21:F40)-F29 -> -41917 | G43: 0 | H43: 1131481 | I43: 1159797 | J43: 386923 | K43: 15258 | L43: 0 | M43: 0 | N43: 402181 | O43: 1159797 | P43: 3136087.45 | Q43: 2847789 | R43: 156957.39 | S43: 1605052.84 | T43: 402181 | U43: -23388.37 | V43: 225074.7921 | W43: 2830.591153 | X43: 156548.4291 | Y43: 1605052.84 | Z43: -12132887.39 | AA43: -4829643 | AB43: 0 | AC43: -5698191.55 | AD43: 156548.4291 | AE43: 26088.59565 | AF43: -86521.74545 | AG43: 0 | AH43: 269158.7701 | AI43: -5698191.55 | AJ43: -3841257.554 | AK43: -3009830.16 | AL43: -2089986.74 | AM43: -8619605.684 | AN43: 269158.7701 | AO43: -72432 | AP43: -9447 | AQ43: 0 | AR43: 206173.7701 | AS43: -8619605.684 | AT43: 6819648.64 | AU43: 347498 | AV43: 241305 | AW43: -1906150.044 | AX43: 206173.7701 | AY43: -70650.64 | AZ43: -3212 | BA43: 7702 | BB43: 146437.1301 | BC43: -1906150.044 | BD43: 371727.33 | BE43: -3679139.054 | BF43: 69504 | BG43: 2214220.34 | BH43: 146437.1301 | BI43: 32483.14324 | BJ43: -85320.118 | BK43: 0 | BL43: 264240.3914 | BM43: -3738251.282 | BN43: -100659.8996 | BO43: 5952471.622 | BP43: 364900.291 | BQ43: 133781.7997 | BR43: =SUM(BR21:BR40)-BR29 -> 0 | BS43: 498682.0907 | BU43: =SUM(BU21:BU40)-BU29 -> 47645.81427 | BV43: 2276363.77 | BW43: -202096.9614
C44: Total Group 1 Balance | E44: =SUM(E42,E43) -> 70233 | F44: -41917 | G44: 0 | H44: 1131481 | I44: 1159797 | J44: 386923 | K44: 15258 | L44: 0 | M44: 0 | N44: 402181 | O44: 1159797 | P44: =SUM(P42,P43) -> 3136087.45 | Q44: 2847789 | R44: 8270178.37 | S44: 9718273.82 | T44: 402181 | U44: -23388.37 | V44: 225074.7921 | W44: 82456.61925 | X44: 236174.4572 | Y44: 9718273.82 | Z44: -12480385.55 | AA44: -13 | AB44: 0 | AC44: -2762098.73 | AD44: 236174.4572 | AE44: 72281.10565 | AF44: 1176.413653 | AG44: 0 | AH44: 307279.1491 | AI44: -2762098.73 | AJ44: -2700275.294 | AK44: 273760.82 | AL44: 54994 | AM44: -5681140.844 | AN44: 307279.1491 | AO44: -33387 | AP44: 21638 | AQ44: 0 | AR44: 252254.1491 | AS44: -5681140.844 | AT44: 9738070.64 | AU44: 0 | AV44: 454916.15 | AW44: 4511845.946 | AX44: 252254.1491 | AY44: -4414.64 | AZ44: 1 | BA44: 7702 | BB44: 255540.5091 | BC44: 4511845.946 | BD44: -1858172.98 | BE44: -393176.2137 | BF44: 1073155.76 | BG44: 4120004.94 | BH44: 255540.5091 | BI44: 68504.37324 | BJ44: -6306.739 | BK44: 0 | BL44: 330351.6214 | BM44: -606218.132 | BN44: -14428.20543 | BO44: 4726223.072 | BP44: 344779.8268 | BQ44: 106221.8635 | BR44: 0 | BS44: 451001.6904 | BU44: =SUM(BU42,BU43) -> -1226283.136 | BV44: =SUM(BV42,BV43) -> 2976002.74 | BW44: -1474353.821
A46: 29 | C46: LRAM Variance Account (only input amounts if applying for disposition of this account) | D46: 1568 | R46: 912187.7967 | S46: =O46+P46-Q46+SUM(R46:R46) -> 912187.7967 | W46: 18919.95269 | X46: =T46+U46-V46+W46 -> 18919.95269 | Y46: =S46 -> 912187.7967 | Z46: 645351 | AC46: =Y46+Z46-AA46+SUM(AB46:AB46) -> 1557538.797 | AD46: =X46 -> 18919.95269 | AE46: 14181 | AH46: =AD46+AE46-AF46+AG46 -> 33100.95269 | AI46: =AC46 -> 1557538.797 | AJ46: 393177.1455 | AK46: 288941 | AL46: -239788 | AM46: =AI46+AJ46-AK46+SUM(AL46:AL46) -> 1421986.942 | AN46: =AH46 -> 33100.95269 | AO46: 13299.17811 | AP46: 13680 | AQ46: 47 | AR46: =AN46+AO46-AP46+AQ46 -> 32767.13079 | AS46: =AM46 -> 1421986.942 | AT46: 606218.1098 | AU46: 1028810 | AW46: =AS46+AT46-AU46+SUM(AV46:AV46) -> 999395.052 | AX46: =AR46 -> 32767.13079 | AY46: 9429.7 | AZ46: 30785 | BA46: -1543.30079 | BB46: =AX46+AY46-AZ46+BA46 -> 9868.530004 | BC46: =AW46 -> 999395.052 | BD46: 782937.95 | BE46: 393177 | BG46: =BC46+BD46-BE46+SUM(BF46:BF46) -> 1389156.002 | BH46: =BB46 -> 9868.530004 | BI46: 19020.92 | BJ46: 6307 | BL46: =BH46+BI46-BJ46+BK46 -> 22582.45 | BM46: 606218.052 | BN46: 14427.98962 | BO46: =BG46-BM46 -> 782937.95 | BP46: =BL46-BN46 -> 8154.460382 | BQ46: =+BO46*((2.45%*3/12)+(2.18%*9/12)) -> 17596.53043 | BS46: =BP46+BQ46+BR46 -> 25750.99081 | BT46: No | BU46: =IF(BT46="YES",SUM(BO46:BR46),0) -> 0 | BV46: 1411738.873 | BW46: 0.4212787922
C48: Total including Account 1568 | E48: =SUM(E44,E46) -> 70233 | F48: -41917 | G48: 0 | H48: 1131481 | I48: 1159797 | J48: 386923 | K48: 15258 | L48: 0 | M48: 0 | N48: 402181 | O48: 1159797 | P48: =SUM(P44,P46) -> 3136087.45 | Q48: 2847789 | R48: =SUM(R44,R46) -> 9182366.167 | S48: 10630461.62 | T48: 402181 | U48: -23388.37 | V48: 225074.7921 | W48: 101376.5719 | X48: 255094.4098 | Y48: 10630461.62 | Z48: -11835034.55 | AA48: -13 | AB48: 0 | AC48: -1204559.933 | AD48: 255094.4098 | AE48: 86462.10565 | AF48: 1176.413653 | AG48: 0 | AH48: 340380.1018 | AI48: -1204559.933 | AJ48: -2307098.148 | AK48: 562701.82 | AL48: -184794 | AM48: -4259153.901 | AN48: 340380.1018 | AO48: -20087.82189 | AP48: 35318 | AQ48: 47 | AR48: 285021.2799 | AS48: -4259153.901 | AT48: 10344288.75 | AU48: 1028810 | AV48: 454916.15 | AW48: 5511240.998 | AX48: 285021.2799 | AY48: 5015.06 | AZ48: 30786 | BA48: 6158.69921 | BB48: 265409.0392 | BC48: 5511240.998 | BD48: -1075235.03 | BE48: 0.7862879038 | BF48: 1073155.76 | BG48: 5509160.942 | BH48: 265409.0392 | BI48: 87525.29324 | BJ48: 0.261 | BK48: 0 | BL48: 352934.0714 | BM48: -0.07999999961 | BN48: -0.2158115 | BO48: 5509161.022 | BP48: 352934.2872 | BQ48: 123818.394 | BR48: =SUM(BR44,BR46) -> 0 | BS48: =SUM(BS44,BS46) -> 476752.6812 | BU48: =SUM(BU44,BU46) -> -1226283.136 | BV48: =SUM(BV44,BV46) -> 4387741.613 | BW48: -1474353.4
C51: For all OEB-Approved dispositions, please ensure that the disposition amount has the same sign (e.g: debit balances are to have a positive figure and credit balance are to have a negative figure) as per the related OEB decision.
B54: 1 | C54: Please provide explanations for the nature of the adjustments. If the adjustment relates to previously OEB-Approved disposed balances, please provide amounts for adjustments and include supporting documentations.
B55: 2 | C55: For RSVA accounts only, report the net variance to the account during the year. For all other accounts, record the transactions during the year.
B56: 3 | C56: If the LDC’s rate year begins on January 1, 2017, the projected interest is recorded from January 1, 2016 to December 31, 2016 on the December 31, 2015 balances adjusted for the disposed balances approved by the OEB in the 2016 rate decision. If the LDC’s rate year begins on May 1, 2017, the projected interest is recorded from January 1, 2016 to April 30, 2017 on the December 31, 2015 balances adjusted for the disposed interest balances approved by the OEB in the 2016 rate decision.
B57: 4 | C57: Include Account 1595 as part of Group 1 accounts (lines 30-36) for review and disposition if the recovery (or refund) period has been completed. If the recovery (or refund) period has not been completed, do not include the respective balance in Account 1595 for disposition at this time.
C59: Account 1595 - adjustments (2016):
C60: These were required due to a comprehensive review of all the dispositions during 2015 and 2016. It was determined that there were a number of reporting errors. Past recovery billings were applied to the wrong year or there was transposition errors whereby billings were applied to interest rather than principal or vice versa.

Sheet 4. Billing Det. for Def-Var
A1: Back to Index | K1: Yes
B2: =+'1. Information Sheet'!B2 -> INCENTIVE REGULATION MODEL FOR 2020 FILERS
B13: Information from the most recent RRR (2018 for 2020 IRM)
W14: source: LRAMVA Workform
D15: Total Metered kWh | E15: Total Metered kW | F15: Metered kWh for Non-RPP Customers (excluding WMP) | G15: Metered kW for Non-RPP Customers (excluding WMP) | H15: Metered kWh for Wholesale Market Participants (WMP) | I15: Metered kW for Wholesale Market Participants (WMP) | J15: Total Metered kWh less WMP consumption (if applicable) | K15: Total Metered kW less WMP consumption (if applicable) | L15: 1595 Recovery Proportion (2009) 1 | M15: 1595 Recovery Proportion (2010) 1 | N15: 1595 Recovery Proportion (2011) 1 | O15: 1595 Recovery Proportion (2012) 1 | P15: 1595 Recovery Proportion (2013) 1 | Q15: 1595 Recovery Proportion (2014) 1 | R15: 1595 Recovery Proportion (2015) 1 | S15: 1595 Recovery Proportion (2016) 1 | T15: 1595 Recovery Proportion (2017) 1 | U15: 1595 Recovery Proportion (2018) 1 | V15: 1595 Recovery Proportion (2019) 1 | W15: 1568 LRAM Variance Account Class Allocation ($ amounts) | X15: Number of Customers for Residential and GS<50 classes3
B16: Rate Class | C16: Unit
A17: ='11. RTSR - Current Rates'!A16 -> R_TN | B17: ='Model Specs'!C15 -> RESIDENTIAL SERVICE CLASSIFICATION | C17: kWh | D17: 384041745.3 | F17: 11061065.16 | J17: =D17-H17 -> 384041745.3 | K17: =E17-I17 -> 0 | Q17: 0.042831737 | R17: 0.3291884587 | T17: =IFERROR(VLOOKUP(B17,[11]GRZ!$A:$B,2,FALSE),0) -> 0.2192066545 | X17: 50914
A18: ='11. RTSR - Current Rates'!A17 -> GSL_TN | B18: ='Model Specs'!C16 -> GENERAL SERVICE LESS THAN 50 kW SERVICE CLASSIFICATION | C18: kWh | D18: 142209076.4 | F18: 24681088.86 | J18: =D18-H18 -> 142209076.4 | K18: =E18-I18 -> 0 | Q18: 0.03667843854 | R18: 0.1310626928 | T18: =IFERROR(VLOOKUP(B18,[11]GRZ!$A:$B,2,FALSE),0) -> 0.08157057158 | X18: 4134
A19: ='11. RTSR - Current Rates'!A18 -> GS50_999_TN | B19: ='Model Specs'!C17 -> GENERAL SERVICE 50 to 999 KW SERVICE CLASSIFICATION | C19: kW | D19: 402350218.4 | E19: 1097498.68 | F19: 355315127.6 | G19: 967344.0694 | H19: 6050229.29 | I19: 12910.88 | J19: =D19-H19 -> 396299989.1 | K19: =E19-I19 -> 1084587.8 | Q19: 0.4138297114 | R19: 0.1749713883 | T19: =IFERROR(VLOOKUP(B19,[11]GRZ!$A:$B,2,FALSE),0) -> 0.2201330947
A20: ='11. RTSR - Current Rates'!A19 -> GS1000I_TN | B20: ='Model Specs'!C18 -> GENERAL SERVICE 1,000 to 4,999 KW SERVICE CLASSIFICATION | C20: kW | D20: 540417877.7 | E20: 1135424.51 | F20: 539909080.9 | G20: 1127782.76 | H20: 508796.8 | I20: 7641.75 | J20: 539909080.9 | K20: 1127782.76 | Q20: 0.4838378656 | R20: 0.1548539542 | T20: =IFERROR(VLOOKUP(B20,[11]GRZ!$A:$B,2,FALSE),0) -> 0.3073528709
A21: ='11. RTSR - Current Rates'!A20 -> LU_TN | B21: ='Model Specs'!C19 -> LARGE USE SERVICE CLASSIFICATION | C21: kW | D21: 197428961.9 | E21: 423180.01 | F21: 197428961.9 | G21: 423180.01 | J21: 197428961.9 | K21: 423180.01 | Q21: 0.0135704573 | R21: 0.2061805925 | T21: =IFERROR(VLOOKUP(B21,[11]GRZ!$A:$B,2,FALSE),0) -> 0.1649905428
A22: ='11. RTSR - Current Rates'!A21 -> USL_TN | B22: ='Model Specs'!C20 -> UNMETERED SCATTERED LOAD SERVICE CLASSIFICATION | C22: kWh | D22: 1810677.873 | F22: 376374.3893 | J22: 1810677.873 | K22: 0 | T22: =IFERROR(VLOOKUP(B22,[11]GRZ!$A:$B,2,FALSE),0) -> 0.001070242252
A23: ='11. RTSR - Current Rates'!A22 -> SB | B23: ='Model Specs'!C21 -> STANDBY POWER SERVICE CLASSIFICATION | C23: kW | J23: 0 | K23: 0 | Q23: 0.0004108364085 | R23: 0.002390216995 | T23: =IFERROR(VLOOKUP(B23,[11]GRZ!$A:$B,2,FALSE),0) -> 0
A24: ='11. RTSR - Current Rates'!A23 -> SEN_TN | B24: ='Model Specs'!C22 -> SENTINEL LIGHTING SERVICE CLASSIFICATION | C24: kW | D24: 18188.97 | E24: 50.75873103 | J24: 18188.97 | K24: 50.75873103 | Q24: 0.008840953763 | R24: 0.00135269641 | T24: =IFERROR(VLOOKUP(B24,[11]GRZ!$A:$B,2,FALSE),0) -> 1.139719208e-05
A25: ='11. RTSR - Current Rates'!A24 -> SL_TN | B25: ='Model Specs'!C23 -> STREET LIGHTING SERVICE CLASSIFICATION | C25: kW | D25: 10182749.65 | E25: 28424.58 | F25: 10182749.65 | G25: 28424.58 | J25: 10182749.65 | K25: 28424.58 | T25: =IFERROR(VLOOKUP(B25,[11]GRZ!$A:$B,2,FALSE),0) -> 0.005664625983
J26: 0 | K26: 0
J27: 0 | K27: 0
J28: 0 | K28: 0
C29: Total | D29: =SUM(D17:D28) -> 1678459496 | E29: =SUM(E17:E28) -> 2684578.539 | F29: 1138954448 | G29: 2546731.419 | H29: 6559026.09 | I29: 20552.63 | J29: 1671900470 | K29: 2664025.909 | L29: =SUM(L17:L28) -> 0 | M29: 0 | N29: 0 | O29: 0 | P29: 0 | Q29: 1 | R29: 1 | S29: 0 | T29: =SUM(T17:T28) -> 1 | U29: 0 | V29: =SUM(V17:V28) -> 0 | W29: 0 | X29: 55048
B32: Threshold Test | W32: 1568 Account Balance from Continuity Schedule | X32: ='3. Continuity Schedule'!BU46 -> 0
B33: Total Claim (including Account 1568) | D33: ='3. Continuity Schedule'!BU48 -> -1226283.136 | W33: =IF(X32=W29,"Total Balance of Account 1568 in Column R matches the amount entered on the Continuity Schedule","Total Balance of Account 1568 in Column T DOES NOT MATCH the amount entered on the Continuity Schedule") -> Total Balance of Account 1568 in Column R matches the amount entered on the Continuity Schedule
B34: Total Claim for Threshold Test (All Group 1 Accounts) | D34: ='3. Continuity Schedule'!BU44 -> -1226283.136
B35: Threshold Test (Total claim per kWh) 2 | D35: =IFERROR(D34/D29,"") -> -0.0007306003742
B36: Exceeds Threshold? | D36: =IF(D35="","",IF(OR(D35>0.001,D35<-0.001),"Yes","No")) -> No
B37: ELECT TO DISPOSE of the Group 1 Account Balances? | D37: No
B40: As per Section 3.2.5 of the 2017 Filing Requirements for Electricity Distribution Rate Applications, an applicant may elect to dispose of the Group 1 account balances below the threshold.
B41: 1 Residual Account balance to be allocated to rate classes in proportion to the recovery share as established when rate riders were implemented.
B42: 2 The Threshold Test does not include the amount in 1568.
B43: 3 The proportion of customers for the Residential and GS<50 Classes will be used to allocate Account 1551.
D46: Total Metered kWh | E46: =J29 -> 1671900470
D47: WMP consumption | E47: =H29 -> 6559026.09
D48: Consumption Class A (full) | E48: ='6.1 GA'!E29 -> 756435281.3
D49: Consumption Class A (partial) | E49: ='6.1 GA'!G29 -> 46675328.39
E50: =E46-E47-E48-E49 -> 862230834.5

Sheet 5. Allocating Def-Var Balances
A1: Back to Index
B2: =+'1. Information Sheet'!B2 -> INCENTIVE REGULATION MODEL FOR 2020 FILERS
B11: No input required. This workshseet allocates the deferral/variance account balances (Group 1 and 1568) to the appropriate classes as per EDDVAR dated July 31, 2009
B13: Allocation of Group 1 Accounts (including Account 1568)
C14: % of Total kWh | D14: % of Total non-RPP kWh | E14: % of Customer Numbers ** | F14: % of Total kWh adjusted for WMP | I14: allocated based on Total less WMP | N14: allocated based on Total less WMP | O14: 1595_(2009) | P14: 1595_(2010) | Q14: 1595_(2011) | R14: 1595_(2012) | S14: 1595_(2013) | T14: 1595_(2014) | U14: 1595_(2015) | V14: 1595_(2016) | W14: 1595_(2017) | X14: 1595_(2018) | Y14: 1595_(2019) | Z14: 1568
B15: Rate Class | G15: 1550 | H15: 1551 | I15: 1580 | J15: 1580 (Class A) | K15: 1580 (Class B) | L15: 1584 | M15: 1586 | N15: 1588
B16: ='4. Billing Det. for Def-Var'!B17 -> RESIDENTIAL SERVICE CLASSIFICATION | C16: =IFERROR('4. Billing Det. for Def-Var'!D17/'4. Billing Det. for Def-Var'!D$29,"") -> 0.2288060845 | D16: =IFERROR('4. Billing Det. for Def-Var'!F17/'4. Billing Det. for Def-Var'!F$29,"") -> 0.00971159573 | E16: =IFERROR('4. Billing Det. for Def-Var'!X17/'4. Billing Det. for Def-Var'!X$29,"") -> 0.9249019038 | F16: =IFERROR('4. Billing Det. for Def-Var'!J17/'4. Billing Det. for Def-Var'!J$29,"") -> 0.2297037127 | G16: =IFERROR(G$28*C16,"") -> 15789.51917 | H16: =IFERROR(H$28*E16,"") -> -62649.85524 | I16: =IFERROR(I$28*F16,"") -> -62954.30495 | L16: =IFERROR(L$28*$C16,"") -> -9517.265501 | M16: =IFERROR(M$28*$C16,"") -> 159589.2903 | N16: =IFERROR(N$28*$F16,"") -> -10761.60319 | O16: ='4. Billing Det. for Def-Var'!L17*O$28 -> 0 | P16: ='4. Billing Det. for Def-Var'!M17*P$28 -> 0 | Q16: ='4. Billing Det. for Def-Var'!N17*Q$28 -> 0 | R16: ='4. Billing Det. for Def-Var'!O17*R$28 -> 0 | S16: ='4. Billing Det. for Def-Var'!P17*S$28 -> 0 | T16: ='4. Billing Det. for Def-Var'!Q17*T$28 -> 0 | U16: ='4. Billing Det. for Def-Var'!R17*U$28 -> -0.1227615361 | V16: ='4. Billing Det. for Def-Var'!S17*V$28 -> 0 | W16: ='4. Billing Det. for Def-Var'!T17*W$28 -> -63262.98757 | X16: ='4. Billing Det. for Def-Var'!U17*X$28 -> 0 | Y16: ='4. Billing Det. for Def-Var'!V17*Y$28 -> 0 | Z16: ='4. Billing Det. for Def-Var'!W17 -> 0
B17: ='4. Billing Det. for Def-Var'!B18 -> GENERAL SERVICE LESS THAN 50 kW SERVICE CLASSIFICATION | C17: =IFERROR('4. Billing Det. for Def-Var'!D18/'4. Billing Det. for Def-Var'!D$29,"") -> 0.08472595062 | D17: =IFERROR('4. Billing Det. for Def-Var'!F18/'4. Billing Det. for Def-Var'!F$29,"") -> 0.02166995255 | E17: =IFERROR('4. Billing Det. for Def-Var'!X18/'4. Billing Det. for Def-Var'!X$29,"") -> 0.07509809621 | F17: =IFERROR('4. Billing Det. for Def-Var'!J18/'4. Billing Det. for Def-Var'!J$29,"") -> 0.08505833866 | G17: =IFERROR(G$28*C17,"") -> 5846.79391 | H17: =IFERROR(H$28*E17,"") -> -5086.901472 | I17: =IFERROR(I$28*F17,"") -> -23311.71981 | L17: =IFERROR(L$28*$C17,"") -> -3524.204213 | M17: 59095.25685 | N17: =IFERROR(N$28*$F17,"") -> -3984.977332 | O17: ='4. Billing Det. for Def-Var'!L18*O$28 -> 0 | P17: ='4. Billing Det. for Def-Var'!M18*P$28 -> 0 | Q17: ='4. Billing Det. for Def-Var'!N18*Q$28 -> 0 | R17: ='4. Billing Det. for Def-Var'!O18*R$28 -> 0 | S17: ='4. Billing Det. for Def-Var'!P18*S$28 -> 0 | T17: ='4. Billing Det. for Def-Var'!Q18*T$28 -> 0 | U17: ='4. Billing Det. for Def-Var'!R18*U$28 -> -0.04887612876 | V17: ='4. Billing Det. for Def-Var'!S18*V$28 -> 0 | W17: ='4. Billing Det. for Def-Var'!T18*W$28 -> -23541.24726 | X17: ='4. Billing Det. for Def-Var'!U18*X$28 -> 0 | Y17: ='4. Billing Det. for Def-Var'!V18*Y$28 -> 0 | Z17: ='4. Billing Det. for Def-Var'!W18 -> 0
B18: ='4. Billing Det. for Def-Var'!B19 -> GENERAL SERVICE 50 to 999 KW SERVICE CLASSIFICATION | C18: =IFERROR('4. Billing Det. for Def-Var'!D19/'4. Billing Det. for Def-Var'!D$29,"") -> 0.2397139873 | D18: =IFERROR('4. Billing Det. for Def-Var'!F19/'4. Billing Det. for Def-Var'!F$29,"") -> 0.3119660563 | E18: =IFERROR('4. Billing Det. for Def-Var'!X19/'4. Billing Det. for Def-Var'!X$29,"") -> 0 | F18: =IFERROR('4. Billing Det. for Def-Var'!J19/'4. Billing Det. for Def-Var'!J$29,"") -> 0.2370356347 | G18: =IFERROR(G$28*C18,"") -> 16542.25501 | H18: =IFERROR(H$28*E18,"") -> 0 | I18: =IFERROR(I$28*F18,"") -> -64963.74592 | L18: -9970.983362 | M18: 167197.4118 | N18: =IFERROR(N$28*$F18,"") -> -11105.10323 | O18: ='4. Billing Det. for Def-Var'!L19*O$28 -> 0 | P18: ='4. Billing Det. for Def-Var'!M19*P$28 -> 0 | Q18: ='4. Billing Det. for Def-Var'!N19*Q$28 -> 0 | R18: ='4. Billing Det. for Def-Var'!O19*R$28 -> 0 | S18: ='4. Billing Det. for Def-Var'!P19*S$28 -> 0 | T18: ='4. Billing Det. for Def-Var'!Q19*T$28 -> 0 | U18: ='4. Billing Det. for Def-Var'!R19*U$28 -> -0.0652506363 | V18: ='4. Billing Det. for Def-Var'!S19*V$28 -> 0 | W18: ='4. Billing Det. for Def-Var'!T19*W$28 -> -63530.35798 | X18: ='4. Billing Det. for Def-Var'!U19*X$28 -> 0 | Y18: ='4. Billing Det. for Def-Var'!V19*Y$28 -> 0 | Z18: ='4. Billing Det. for Def-Var'!W19 -> 0
B19: ='4. Billing Det. for Def-Var'!B20 -> GENERAL SERVICE 1,000 to 4,999 KW SERVICE CLASSIFICATION | C19: =IFERROR('4. Billing Det. for Def-Var'!D20/'4. Billing Det. for Def-Var'!D$29,"") -> 0.3219725462 | D19: =IFERROR('4. Billing Det. for Def-Var'!F20/'4. Billing Det. for Def-Var'!F$29,"") -> 0.4740392222 | E19: =IFERROR('4. Billing Det. for Def-Var'!X20/'4. Billing Det. for Def-Var'!X$29,"") -> 0 | F19: =IFERROR('4. Billing Det. for Def-Var'!J20/'4. Billing Det. for Def-Var'!J$29,"") -> 0.322931353 | G19: 22218.77841 | H19: 0 | I19: -88504.96421 | L19: -13392.55559 | M19: 224571.6947 | N19: -15129.31174 | O19: ='4. Billing Det. for Def-Var'!L20*O$28 -> 0 | P19: ='4. Billing Det. for Def-Var'!M20*P$28 -> 0 | Q19: ='4. Billing Det. for Def-Var'!N20*Q$28 -> 0 | R19: ='4. Billing Det. for Def-Var'!O20*R$28 -> 0 | S19: ='4. Billing Det. for Def-Var'!P20*S$28 -> 0 | T19: ='4. Billing Det. for Def-Var'!Q20*T$28 -> 0 | U19: ='4. Billing Det. for Def-Var'!R20*U$28 -> -0.05774840759 | V19: ='4. Billing Det. for Def-Var'!S20*V$28 -> 0 | W19: ='4. Billing Det. for Def-Var'!T20*W$28 -> -88701.96434 | X19: ='4. Billing Det. for Def-Var'!U20*X$28 -> 0 | Y19: ='4. Billing Det. for Def-Var'!V20*Y$28 -> 0 | Z19: ='4. Billing Det. for Def-Var'!W20 -> 0
B20: ='4. Billing Det. for Def-Var'!B21 -> LARGE USE SERVICE CLASSIFICATION | C20: =IFERROR('4. Billing Det. for Def-Var'!D21/'4. Billing Det. for Def-Var'!D$29,"") -> 0.1176250975 | D20: =IFERROR('4. Billing Det. for Def-Var'!F21/'4. Billing Det. for Def-Var'!F$29,"") -> 0.1733422809 | E20: =IFERROR('4. Billing Det. for Def-Var'!X21/'4. Billing Det. for Def-Var'!X$29,"") -> 0 | F20: =IFERROR('4. Billing Det. for Def-Var'!J21/'4. Billing Det. for Def-Var'!J$29,"") -> 0.1180865521 | G20: 8117.108145 | H20: 0 | I20: -32363.67719 | L20: -4892.655216 | M20: 82041.98712 | N20: -5532.346865 | O20: ='4. Billing Det. for Def-Var'!L21*O$28 -> 0 | P20: ='4. Billing Det. for Def-Var'!M21*P$28 -> 0 | Q20: ='4. Billing Det. for Def-Var'!N21*Q$28 -> 0 | R20: ='4. Billing Det. for Def-Var'!O21*R$28 -> 0 | S20: ='4. Billing Det. for Def-Var'!P21*S$28 -> 0 | T20: ='4. Billing Det. for Def-Var'!Q21*T$28 -> 0 | U20: ='4. Billing Det. for Def-Var'!R21*U$28 -> -0.07688922736 | V20: ='4. Billing Det. for Def-Var'!S21*V$28 -> 0 | W20: ='4. Billing Det. for Def-Var'!T21*W$28 -> -47616.23082 | X20: ='4. Billing Det. for Def-Var'!U21*X$28 -> 0 | Y20: ='4. Billing Det. for Def-Var'!V21*Y$28 -> 0 | Z20: ='4. Billing Det. for Def-Var'!W21 -> 0
B21: ='4. Billing Det. for Def-Var'!B22 -> UNMETERED SCATTERED LOAD SERVICE CLASSIFICATION | C21: =IFERROR('4. Billing Det. for Def-Var'!D22/'4. Billing Det. for Def-Var'!D$29,"") -> 0.001078773647 | D21: =IFERROR('4. Billing Det. for Def-Var'!F22/'4. Billing Det. for Def-Var'!F$29,"") -> 0.0003304560509 | E21: =IFERROR('4. Billing Det. for Def-Var'!X22/'4. Billing Det. for Def-Var'!X$29,"") -> 0 | F21: =IFERROR('4. Billing Det. for Def-Var'!J22/'4. Billing Det. for Def-Var'!J$29,"") -> 0.00108300578 | G21: 74.44433666 | H21: 0 | I21: -296.8166048 | L21: -44.87195015 | M21: 752.4306934 | N21: -50.73874651 | O21: ='4. Billing Det. for Def-Var'!L22*O$28 -> 0 | P21: ='4. Billing Det. for Def-Var'!M22*P$28 -> 0 | Q21: ='4. Billing Det. for Def-Var'!N22*Q$28 -> 0 | R21: ='4. Billing Det. for Def-Var'!O22*R$28 -> 0 | S21: ='4. Billing Det. for Def-Var'!P22*S$28 -> 0 | T21: ='4. Billing Det. for Def-Var'!Q22*T$28 -> 0 | U21: ='4. Billing Det. for Def-Var'!R22*U$28 -> 0 | V21: ='4. Billing Det. for Def-Var'!S22*V$28 -> 0 | W21: ='4. Billing Det. for Def-Var'!T22*W$28 -> -308.8716555 | X21: ='4. Billing Det. for Def-Var'!U22*X$28 -> 0 | Y21: ='4. Billing Det. for Def-Var'!V22*Y$28 -> 0 | Z21: ='4. Billing Det. for Def-Var'!W22 -> 0
B22: ='4. Billing Det. for Def-Var'!B23 -> STANDBY POWER SERVICE CLASSIFICATION | C22: =IFERROR('4. Billing Det. for Def-Var'!D23/'4. Billing Det. for Def-Var'!D$29,"") -> 0 | D22: =IFERROR('4. Billing Det. for Def-Var'!F23/'4. Billing Det. for Def-Var'!F$29,"") -> 0 | E22: =IFERROR('4. Billing Det. for Def-Var'!X23/'4. Billing Det. for Def-Var'!X$29,"") -> 0 | F22: =IFERROR('4. Billing Det. for Def-Var'!J23/'4. Billing Det. for Def-Var'!J$29,"") -> 0 | G22: 0 | H22: 0 | I22: 0 | L22: 0 | M22: 0 | N22: 0 | O22: ='4. Billing Det. for Def-Var'!L23*O$28 -> 0 | P22: ='4. Billing Det. for Def-Var'!M23*P$28 -> 0 | Q22: ='4. Billing Det. for Def-Var'!N23*Q$28 -> 0 | R22: ='4. Billing Det. for Def-Var'!O23*R$28 -> 0 | S22: ='4. Billing Det. for Def-Var'!P23*S$28 -> 0 | T22: ='4. Billing Det. for Def-Var'!Q23*T$28 -> 0 | U22: ='4. Billing Det. for Def-Var'!R23*U$28 -> -0.0008913639044 | V22: ='4. Billing Det. for Def-Var'!S23*V$28 -> 0 | W22: ='4. Billing Det. for Def-Var'!T23*W$28 -> 0 | X22: ='4. Billing Det. for Def-Var'!U23*X$28 -> 0 | Y22: ='4. Billing Det. for Def-Var'!V23*Y$28 -> 0 | Z22: ='4. Billing Det. for Def-Var'!W23 -> 0
B23: ='4. Billing Det. for Def-Var'!B24 -> SENTINEL LIGHTING SERVICE CLASSIFICATION | C23: =IFERROR('4. Billing Det. for Def-Var'!D24/'4. Billing Det. for Def-Var'!D$29,"") -> 1.083670475e-05 | D23: =IFERROR('4. Billing Det. for Def-Var'!F24/'4. Billing Det. for Def-Var'!F$29,"") -> 0 | E23: =IFERROR('4. Billing Det. for Def-Var'!X24/'4. Billing Det. for Def-Var'!X$29,"") -> 0 | F23: =IFERROR('4. Billing Det. for Def-Var'!J24/'4. Billing Det. for Def-Var'!J$29,"") -> 1.087921819e-05 | G23: 0.7478225844 | H23: 0 | I23: -2.981639309 | L23: -0.4507563534 | M23: 7.558461676 | N23: -0.5096906258 | O23: ='4. Billing Det. for Def-Var'!L24*O$28 -> 0 | P23: ='4. Billing Det. for Def-Var'!M24*P$28 -> 0 | Q23: ='4. Billing Det. for Def-Var'!N24*Q$28 -> 0 | R23: ='4. Billing Det. for Def-Var'!O24*R$28 -> 0 | S23: ='4. Billing Det. for Def-Var'!P24*S$28 -> 0 | T23: ='4. Billing Det. for Def-Var'!Q24*T$28 -> 0 | U23: ='4. Billing Det. for Def-Var'!R24*U$28 -> -0.0005044499123 | V23: ='4. Billing Det. for Def-Var'!S24*V$28 -> 0 | W23: ='4. Billing Det. for Def-Var'!T24*W$28 -> -3.289226884 | X23: ='4. Billing Det. for Def-Var'!U24*X$28 -> 0 | Y23: ='4. Billing Det. for Def-Var'!V24*Y$28 -> 0 | Z23: ='4. Billing Det. for Def-Var'!W24 -> 0
B24: ='4. Billing Det. for Def-Var'!B25 -> STREET LIGHTING SERVICE CLASSIFICATION | C24: =IFERROR('4. Billing Det. for Def-Var'!D25/'4. Billing Det. for Def-Var'!D$29,"") -> 0.006066723488 | D24: =IFERROR('4. Billing Det. for Def-Var'!F25/'4. Billing Det. for Def-Var'!F$29,"") -> 0.00894043626 | E24: =IFERROR('4. Billing Det. for Def-Var'!X25/'4. Billing Det. for Def-Var'!X$29,"") -> 0 | F24: =IFERROR('4. Billing Det. for Def-Var'!J25/'4. Billing Det. for Def-Var'!J$29,"") -> 0.006090523827 | G24: =IFERROR(G$28*C24,"") -> 418.6542811 | H24: =IFERROR(H$28*E24,"") -> 0 | I24: =IFERROR(I$28*F24,"") -> -1669.214179 | L24: -252.3473896 | M24: 4231.461319 | N24: -285.3406236 | O24: ='4. Billing Det. for Def-Var'!L25*O$28 -> 0 | P24: ='4. Billing Det. for Def-Var'!M25*P$28 -> 0 | Q24: ='4. Billing Det. for Def-Var'!N25*Q$28 -> 0 | R24: ='4. Billing Det. for Def-Var'!O25*R$28 -> 0 | S24: ='4. Billing Det. for Def-Var'!P25*S$28 -> 0 | T24: ='4. Billing Det. for Def-Var'!Q25*T$28 -> 0 | U24: ='4. Billing Det. for Def-Var'!R25*U$28 -> 0 | V24: ='4. Billing Det. for Def-Var'!S25*V$28 -> 0 | W24: ='4. Billing Det. for Def-Var'!T25*W$28 -> -1634.809691 | X24: ='4. Billing Det. for Def-Var'!U25*X$28 -> 0 | Y24: ='4. Billing Det. for Def-Var'!V25*Y$28 -> 0 | Z24: ='4. Billing Det. for Def-Var'!W25 -> 0
C28: =SUM(C16:C27) -> 1 | D28: =SUM(D16:D27) -> 1 | E28: =SUM(E16:E27) -> 1 | F28: =SUM(F16:F27) -> 1 | G28: ='3. Continuity Schedule'!BU21 -> 69008.30109 | H28: ='3. Continuity Schedule'!BU22 -> -67736.75671 | I28: ='3. Continuity Schedule'!BU23+(IF('6.2 CBR B'!$U$18="TRUE",'6.2a CBR B_Allocation'!D25,0)) -> -274067.4245 | L28: ='3. Continuity Schedule'!BU26 -> -41595.33398 | M28: ='3. Continuity Schedule'!BU27 -> 697487.0913 | N28: ='3. Continuity Schedule'!BU28 -> -46849.93141 | O28: =IF('3. Continuity Schedule'!$BT30="Yes",'3. Continuity Schedule'!$BU30,0) -> 0 | P28: =IF('3. Continuity Schedule'!$BT31="Yes",'3. Continuity Schedule'!$BU31,0) -> 0 | Q28: =IF('3. Continuity Schedule'!$BT32="Yes",'3. Continuity Schedule'!$BU32,0) -> 0 | R28: =IF('3. Continuity Schedule'!$BT33="Yes",'3. Continuity Schedule'!$BU33,0) -> 0 | S28: =IF('3. Continuity Schedule'!$BT34="Yes",'3. Continuity Schedule'!$BU34,0) -> 0 | T28: =IF('3. Continuity Schedule'!$BT35="Yes",'3. Continuity Schedule'!$BU35,0) -> 0 | U28: =IF('3. Continuity Schedule'!$BT36="Yes",'3. Continuity Schedule'!$BU36,0) -> -0.3729217499 | V28: =IF('3. Continuity Schedule'!$BT37="Yes",'3. Continuity Schedule'!$BU37,0) -> 0 | W28: =IF('3. Continuity Schedule'!$BT38="Yes",'3. Continuity Schedule'!$BU38,0) -> -288599.7585 | X28: =IF('3. Continuity Schedule'!$BT39="Yes",'3. Continuity Schedule'!$BU39,0) -> 0 | Y28: =IF('3. Continuity Schedule'!$BT40="Yes",'3. Continuity Schedule'!$BU40,0) -> 0 | Z28: =SUM(Z16:Z27) -> 0
G29: =SUM(G16:G27)-G28 -> 0 | H29: =SUM(H16:H27)-H28 -> 0 | I29: 0 | J29: 0 | K29: 0 | L29: 0 | M29: 0 | N29: 0 | P29: 0 | Q29: 0 | R29: 0 | S29: 0 | T29: 0 | U29: 0 | V29: 0 | Z29: 0
B32: ** Used to allocate Account 1551 as this account records the variances arising from the Smart Metering Entity Charges to Residential and GS<50 customers.

Sheet 6. Class A Consumption Data
A1: Back to Index
B2: =+'1. Information Sheet'!B2 -> INCENTIVE REGULATION MODEL FOR 2020 FILERS
A12: 1 | B12: Please select the Year the Account 1580 CBR Class B was Last Disposed. | C12: 2017 | D12: (e.g. If in the 2018 EDR process, you received approval to dispose the GA variance account balance as at December 31, 2016, enter 2016.)
C14: Years since Account 1589 GA balance was last disposed (up to 2016) | E14: =C12 -> 2017 | F14: =E14-1 -> 2016
A17: 2a | B17: Did you have any customers who transitioned between Class A and Class B (transition customers) during the period the Account 1589 GA balance accumulated (i.e. from the year after the balance was last disposed to 2017)? | C17: Yes | D17: (e.g. If you received approval to dispose of the GA variance account balance as at December 31, 2015, the period the GA variance accumulated would be 2016 and 2017.)
A19: 2b | B19: Did you have any customers who transitioned between Class A and Class B (transition customers) during the period the Account 1580, sub-account CBR Class B balance accumulated (i.e. from the year after the balance was last disposed to 2017)? | C19: Yes | D19: (e.g. If you received approval to dispose of the CBR Class B balance as at December 31, 2016, the period the CBR Class B variance accumulated would be 2017.)
A23: 3a | B23: Enter the number of transition customers you had during the period the Account 1589 GA balance accumulated. | C23: 10
C26: Transition Customers - Non-loss Adjusted Billing Determinants by Customer
C27: Customer | D27: Rate Class | E27: 2018 kWh | H27: 2018 kW | K27: Class A/B
E28: Jan to Jun | F28: Jul to Dec | H28: Jan to Jun | I28: Jul to Dec | K28: Jan to Jun | L28: Jul to Dec | M28: July to December
C29: Customer 1 | D29: GENERAL SERVICE 1,000 to 4,999 KW SERVICE CLASSIFICATION | E29: 3930950.5 | F29: 4418795.56 | G29: 2018 kWh | H29: 7769.47 | I29: 8446.98 | J29: 2018 kW | K29: A | L29: B
C30: Customer 2 | D30: GENERAL SERVICE 50 to 999 KW SERVICE CLASSIFICATION | E30: 847879.65 | F30: 160286.53 | G30: 2018 kWh | H30: 2865.72 | I30: 911.64 | J30: 2018 kW | K30: A | L30: B
C31: Customer 3 | D31: GENERAL SERVICE 1,000 to 4,999 KW SERVICE CLASSIFICATION | E31: 6106895.88 | F31: 5080051.44 | G31: 2018 kWh | H31: 17605.9 | I31: 17542.63 | J31: 2018 kW | K31: B | L31: A
C32: Customer 4 | D32: GENERAL SERVICE 1,000 to 4,999 KW SERVICE CLASSIFICATION | E32: 3755624.76 | F32: 3701216.4 | G32: 2018 kWh | H32: 10045.43 | I32: 9617.41 | J32: 2018 kW | K32: B | L32: A
C33: Customer 5 | D33: GENERAL SERVICE 50 to 999 KW SERVICE CLASSIFICATION | E33: 1957741.29 | F33: 1920476.25 | G33: 2018 kWh | H33: 4353.52 | I33: 4267.42 | J33: 2018 kW | K33: B | L33: A
C34: Customer 6 | D34: GENERAL SERVICE 50 to 999 KW SERVICE CLASSIFICATION | E34: 2508468 | F34: 2110608 | G34: 2018 kWh | H34: 4555.79 | I34: 5227.33 | J34: 2018 kW | K34: B | L34: A
C35: Customer 7 | D35: GENERAL SERVICE 50 to 999 KW SERVICE CLASSIFICATION | E35: 1872609.8 | F35: 2141191.42 | G35: 2018 kWh | H35: 4904.8 | I35: 5652.23 | J35: 2018 kW | K35: B | L35: A
C36: Customer 8 | D36: GENERAL SERVICE 50 to 999 KW SERVICE CLASSIFICATION | E36: 1598698.26 | F36: 1603097.94 | G36: 2018 kWh | H36: 3690.27 | I36: 3759.12 | J36: 2018 kW | K36: B | L36: A
C37: Customer 9 | D37: GENERAL SERVICE 50 to 999 KW SERVICE CLASSIFICATION | E37: 1100719.48 | F37: 1068657.16 | G37: 2018 kWh | H37: 3575.97 | I37: 3546.45 | J37: 2018 kW | K37: B | L37: A
C38: Customer 10 | D38: GENERAL SERVICE 50 to 999 KW SERVICE CLASSIFICATION | E38: 413780.19 | F38: 377579.88 | G38: 2018 kWh | H38: 2936.64 | I38: 3005.28 | J38: 2018 kW | K38: B | L38: A
C39: Customer 11
C40: Customer 12
C41: Customer 13
C42: Customer 14 | G42: =IF(D42<>"",E$27,"") -> 
C43: Customer 15
C44: Customer 16
C45: Customer 17
C46: Customer 18
C47: Customer 19
C48: Customer 20
C49: Customer 21
C50: Customer 22
C51: Customer 23
C52: Customer 24
C53: Customer 25
C54: Customer 26
C55: Customer 27
C56: Customer 28
C57: Customer 29
C58: Customer 30
C59: Customer 31
C60: Customer 32
C61: Customer 33
C62: Customer 34
C63: Customer 35
C64: Customer 36
C65: Customer 37
C66: Customer 38
C67: Customer 39
C68: Customer 40
C69: Customer 41
C70: Customer 42
C71: Customer 43
C72: Customer 44
C73: Customer 45
C74: Customer 46
C75: Customer 47
C76: Customer 48
C77: Customer 49
C78: Customer 50
C79: Customer 51
C80: Customer 52
C81: Customer 53
C82: Customer 54
C83: Customer 55
C84: Customer 56
C85: Customer 57
C86: Customer 58
C87: Customer 59
C88: Customer 60
C89: Customer 61
C90: Customer 62
C91: Customer 63
C92: Customer 64
C93: Customer 65
C94: Customer 66 | G94: =IF(D94<>"",E$27,"") -> 
C95: Customer 67
C96: Customer 68
C97: Customer 69
C98: Customer 70
C99: Customer 71
C100: Customer 72
C101: Customer 73
C102: Customer 74
C103: Customer 75
C104: Customer 76
C105: Customer 77
C106: Customer 78
C107: Customer 79
C108: Customer 80
C109: Customer 81
C110: Customer 82
C111: Customer 83
C112: Customer 84
C113: Customer 85
C114: Customer 86
C115: Customer 87
C116: Customer 88
C117: Customer 89
C118: Customer 90
C119: Customer 91
C120: Customer 92
C121: Customer 93
C122: Customer 94
C123: Customer 95
C124: Customer 96
C125: Customer 97
C126: Customer 98
C127: Customer 99
C128: Customer 100
C129: Customer 101
C130: Customer 102 | G130: =IF(D130<>"",E$27,"") -> 
C131: Customer 103
C132: Customer 104
C133: Customer 105
C134: Customer 106
C135: Customer 107
C136: Customer 108
C137: Customer 109
C138: Customer 110
C139: Customer 111
C140: Customer 112
C141: Customer 113
C142: Customer 114
C143: Customer 115
C144: Customer 116
C145: Customer 117
C146: Customer 118
C147: Customer 119
C148: Customer 120
C149: Customer 121
C150: Customer 122
C151: Customer 123
C152: Customer 124
C153: Customer 125
C154: Customer 126
C155: Customer 127
C156: Customer 128
C157: Customer 129
C158: Customer 130
C159: Customer 131
C160: Customer 132
C161: Customer 133
C162: Customer 134
C163: Customer 135
C164: Customer 136
C165: Customer 137
C166: Customer 138
C167: Customer 139
C168: Customer 140
C169: Customer 141
C170: Customer 142
C171: Customer 143
C172: Customer 144
C173: Customer 145
C174: Customer 146
C175: Customer 147
C176: Customer 148
C177: Customer 149
C178: Customer 150
A186: 3b | B186: Enter the number of customers who were Class A during the entire period since the Account 1589 GA balance accumulated (i.e. did not transition between Class A and B). | C186: 53
C189: Class A Customers - Billing Determinants by Customer
C190: Customer | D190: Rate Class | E190: kWh | H190: kW
C191: Customer A1 | D191: LARGE USE SERVICE CLASSIFICATION | E191: 96205705.41 | H191: 187918.6299
C192: Customer A2 | D192: GENERAL SERVICE 1,000 to 4,999 KW SERVICE CLASSIFICATION | E192: 27751894.14 | H192: 54695.24
C193: Customer A3 | D193: GENERAL SERVICE 1,000 to 4,999 KW SERVICE CLASSIFICATION | E193: 39875948.54 | H193: 59626.21
C194: Customer A4 | D194: GENERAL SERVICE 1,000 to 4,999 KW SERVICE CLASSIFICATION | E194: 21932157.21 | H194: 51763.73
C195: Customer A5 | D195: GENERAL SERVICE 1,000 to 4,999 KW SERVICE CLASSIFICATION | E195: 22958789.04 | H195: 44577.03
C196: Customer A6 | D196: LARGE USE SERVICE CLASSIFICATION | E196: 35064464.76 | H196: 69684.45921
C197: Customer A7 | D197: LARGE USE SERVICE CLASSIFICATION | E197: 38620176.54 | H197: 73304.92598
C198: Customer A8 | D198: GENERAL SERVICE 1,000 to 4,999 KW SERVICE CLASSIFICATION | E198: 19001983.68 | H198: 41444.77
C199: Customer A9 | D199: GENERAL SERVICE 1,000 to 4,999 KW SERVICE CLASSIFICATION | E199: 22083709.68 | H199: 40038.69
C200: Customer A10 | D200: GENERAL SERVICE 1,000 to 4,999 KW SERVICE CLASSIFICATION | E200: 30149688.98 | H200: 51123.8
C201: Customer A11 | D201: GENERAL SERVICE 1,000 to 4,999 KW SERVICE CLASSIFICATION | E201: 27343650.08 | H201: 65363.27
C202: Customer A12 | D202: LARGE USE SERVICE CLASSIFICATION | E202: 27538615.22 | H202: 92271.99487
C203: Customer A13 | D203: GENERAL SERVICE 1,000 to 4,999 KW SERVICE CLASSIFICATION | E203: 13898250.63 | H203: 23052.45
C204: Customer A14 | D204: GENERAL SERVICE 1,000 to 4,999 KW SERVICE CLASSIFICATION | E204: 10482560.21 | H204: 25627.9
C205: Customer A15 | D205: GENERAL SERVICE 1,000 to 4,999 KW SERVICE CLASSIFICATION | E205: 17817229.32 | H205: 38951.06
C206: Customer A16 | D206: GENERAL SERVICE 1,000 to 4,999 KW SERVICE CLASSIFICATION | E206: 12416417.4 | H206: 28959.89
C207: Customer A17 | D207: GENERAL SERVICE 1,000 to 4,999 KW SERVICE CLASSIFICATION | E207: 13806157.44 | H207: 28334.34
C208: Customer A18 | D208: GENERAL SERVICE 1,000 to 4,999 KW SERVICE CLASSIFICATION | E208: 13084587.12 | H208: 27789.05
C209: Customer A19 | D209: GENERAL SERVICE 1,000 to 4,999 KW SERVICE CLASSIFICATION | E209: 9917417.28 | H209: 23910.28
C210: Customer A20 | D210: GENERAL SERVICE 1,000 to 4,999 KW SERVICE CLASSIFICATION | E210: 11868611.64 | H210: 23521.82
C211: Customer A21 | D211: GENERAL SERVICE 1,000 to 4,999 KW SERVICE CLASSIFICATION | E211: 14612362.3 | H211: 28323.52
C212: Customer A22 | D212: GENERAL SERVICE 1,000 to 4,999 KW SERVICE CLASSIFICATION | E212: 12260254.08 | H212: 23943.18
C213: Customer A23 | D213: GENERAL SERVICE 1,000 to 4,999 KW SERVICE CLASSIFICATION | E213: 10297598.22 | H213: 20852.43
C214: Customer A24 | D214: GENERAL SERVICE 1,000 to 4,999 KW SERVICE CLASSIFICATION | E214: 7515453.72 | H214: 14933.85
C215: Customer A25 | D215: GENERAL SERVICE 1,000 to 4,999 KW SERVICE CLASSIFICATION | E215: 12142188 | H215: 27240.36
C216: Customer A26 | D216: GENERAL SERVICE 1,000 to 4,999 KW SERVICE CLASSIFICATION | E216: 8702687.16 | H216: 18186.28
C217: Customer A27 | D217: GENERAL SERVICE 1,000 to 4,999 KW SERVICE CLASSIFICATION | E217: 8511956.52 | H217: 19206.93
C218: Customer A28 | D218: GENERAL SERVICE 1,000 to 4,999 KW SERVICE CLASSIFICATION | E218: 9591443.52 | H218: 21840.26
C219: Customer A29 | D219: GENERAL SERVICE 1,000 to 4,999 KW SERVICE CLASSIFICATION | E219: 8074821.35 | H219: 16603.91
C220: Customer A30 | D220: GENERAL SERVICE 1,000 to 4,999 KW SERVICE CLASSIFICATION | E220: 8093832.69 | H220: 16628.28
C221: Customer A31 | D221: GENERAL SERVICE 1,000 to 4,999 KW SERVICE CLASSIFICATION | E221: 6258037.12 | H221: 14291.71
C222: Customer A32 | D222: GENERAL SERVICE 50 to 999 KW SERVICE CLASSIFICATION | E222: 12603472.65 | H222: 28985.17
C223: Customer A33 | D223: GENERAL SERVICE 50 to 999 KW SERVICE CLASSIFICATION | E223: 7466019.12 | H223: 14815.45
C224: Customer A34 | D224: GENERAL SERVICE 1,000 to 4,999 KW SERVICE CLASSIFICATION | E224: 12442924.78 | H224: 28903.87
C225: Customer A35 | D225: GENERAL SERVICE 1,000 to 4,999 KW SERVICE CLASSIFICATION | E225: 11359871.47 | H225: 24194.5
C226: Customer A36 | D226: GENERAL SERVICE 1,000 to 4,999 KW SERVICE CLASSIFICATION | E226: 13485859.92 | H226: 23630.55
C227: Customer A37 | D227: GENERAL SERVICE 50 to 999 KW SERVICE CLASSIFICATION | E227: 4774892.28 | H227: 10079.05
... 113 more rows

Sheet 6.1a GA Allocation
A1: Back to Index
B2: =+'1. Information Sheet'!B2 -> INCENTIVE REGULATION MODEL FOR 2020 FILERS
B11: This tab allocates the GA balance to former Class B non-interval customers who contributed to the current GA balance but are now Class A customers. The tables below calculate specific amounts for each customer who made the change. Consistent with both decisions for 2016 rates and EDDVAR, distributors are generally expected to settle the amount through 12 equal adjustments to bills. A one-time settlement is acceptable if the affected customer has expressed a clear preference for this approach. (see Filing Requirements section 3.2.5.2)
B14: Year of Group 1 Account Balance Last Disposed | C14: 2017 | D14: (e.g. If in the 2019 EDR process, you received approval to dispose the GA variance account balance as of December 31, 2016, please enter 2016 in cell C14.)
B16: Allocation of total Non-RPP Consumption (kWh) between Current Class B and Class A/B Transition Customers
D17: Total | E17: =C14+1 -> 2018 | F17: =E17-1 -> 2017 | G17: =F17-1 -> 2016
B18: Total Non-RPP Class B Consumption for Years During Balance Accumulation (Non-RPP Consumption LESS WMP Consumption and Consumption for Class A customers who were Class A for partial or full year) | C18: A | D18: =SUM(E18:G18) -> 359737458.6 | E18: =N25 -> 359737458.6 | H18: from Cell N25
B19: Transition Customers' Class B Consumption (i.e. full year or partial year) | C19: B | D19: =SUM(E19:G19) -> 23893619.75 | E19: =E189 -> 23893619.75 | F19: =F189 -> 0 | G19: 0
B20: Transition Customers' Portion of Total Consumption | C20: C=B/A | D20: =IFERROR(+D19/D18,0) -> 0.06641960457
L21: Sheet 4 | M21: total non-RPP kWh | N21: ='4. Billing Det. for Def-Var'!F29+'4. Billing Det. for Def-Var'!H29 -> 1145513475
L22: Sheet 4 | M22: WMP kWh | N22: ='4. Billing Det. for Def-Var'!H29 -> 6559026.09
B23: Allocation of Total GA Balance $ | L23: Sheet 6.1 | M23: Class A (full) | N23: ='6.1 GA'!E29 -> 756435281.3
L24: Sheet 6.1 | M24: Class A (partial) | N24: =SUM(IF('6. Class A Consumption Data'!$K$28:$L$38="a",'6. Class A Consumption Data'!$E$28:$F$38)) -> 22781708.64
B25: Total GA Balance | C25: D | D25: ='3. Continuity Schedule'!BU29 -> -1273928.95 | N25: =N21-N22-N23-N24 -> 359737458.6
B26: Transition Customers Portion of GA Balance | C26: E=C*D | D26: =+D20*D25 -> -84613.85714
B27: GA Balance to be disposed to Current Class B Customers through Rate Rider | C27: F=D-E | D27: =+D25-D26 -> -1189315.093
B30: Allocation of GA Balances to Class A/B Transition Customers
B32: Default Monthly Equal Payments Recovery Period (in months) | D32: 12
B34: Proposed Monthly Equal Payments Recovery Period (in months) | D34: 12
B37: # of Class A/B Transition Customers | C37: 0
B38: Customer | D38: Total Metered Consumption (kWh) for Transition Customers During the Period WhenThey Were Class B Customers | E38: Metered Consumption (kWh) for Transition Customers During the Period When They Were Class B Customers in 2018 | F38: Metered Consumption (kWh) for Transition Customers During the Period When They Were Class B Customers in 2017 | G38: Metered Consumption (kWh) for Transition Customers During the Period When They Were Class B Customers in 2016 | H38: % of kWh | I38: Customer Specific GA Allocation for the Period When They Were a Class B customer | J38: Monthly Equal Payments
B39: Customer 1 | D39: =SUM(E39:G39) -> 4418795.56 | E39: =SUM(IF('6. Class A Consumption Data'!K29:L29="B",'6. Class A Consumption Data'!E29:F29)) -> 4418795.56 | H39: =IFERROR(+D39/$D$189,0) -> 0.1849362134 | I39: =H39*$D$26 -> -15648.16634 | J39: =ROUND(IF(ISERROR(I39),0,IF(OR(ISBLANK($D$34), OR($D$34=0, $D$34="")), I39/($D$32), I39/($D$34))),2) -> -1304.01
B40: Customer 2 | D40: 160286.53 | E40: =SUM(IF('6. Class A Consumption Data'!K30:L30="B",'6. Class A Consumption Data'!E30:F30)) -> 160286.53 | H40: =IFERROR(+D40/$D$189,0) -> 0.006708340205 | I40: =H40*$D$26 -> -567.6185397 | J40: =ROUND(IF(ISERROR(I40),0,IF(OR(ISBLANK($D$34), OR($D$34=0, $D$34="")), I40/($D$32), I40/($D$34))),2) -> -47.3
B41: Customer 3 | D41: 6106895.88 | E41: =SUM(IF('6. Class A Consumption Data'!K31:L31="B",'6. Class A Consumption Data'!E31:F31)) -> 6106895.88 | H41: 0.2555868865 | I41: -21626.1923 | J41: -1802.18
B42: Customer 4 | D42: 3755624.76 | E42: =SUM(IF('6. Class A Consumption Data'!K32:L32="B",'6. Class A Consumption Data'!E32:F32)) -> 3755624.76 | H42: 0.1571810717 | I42: -13299.69675 | J42: -1108.31
B43: Customer 5 | D43: 1957741.29 | E43: =SUM(IF('6. Class A Consumption Data'!K33:L33="B",'6. Class A Consumption Data'!E33:F33)) -> 1957741.29 | H43: 0.08193573475 | I43: -6932.898554 | J43: -577.74
B44: Customer 6 | D44: 2508468 | E44: =SUM(IF('6. Class A Consumption Data'!K34:L34="B",'6. Class A Consumption Data'!E34:F34)) -> 2508468 | H44: 0.1049848464 | I44: -8883.172797 | J44: -740.26
B45: Customer 7 | D45: 1872609.8 | E45: =SUM(IF('6. Class A Consumption Data'!K35:L35="B",'6. Class A Consumption Data'!E35:F35)) -> 1872609.8 | H45: 0.07837279657 | I45: -6631.424613 | J45: -552.62
B46: Customer 8 | D46: 1598698.26 | E46: =SUM(IF('6. Class A Consumption Data'!K36:L36="B",'6. Class A Consumption Data'!E36:F36)) -> 1598698.26 | H46: 0.06690900235 | I46: -5661.428766 | J46: -471.79
B47: Customer 9 | D47: 1100719.48 | E47: =SUM(IF('6. Class A Consumption Data'!K37:L37="B",'6. Class A Consumption Data'!E37:F37)) -> 1100719.48 | H47: 0.04606750637 | I47: -3897.949403 | J47: -324.83
B48: Customer 10 | D48: 413780.19 | E48: =SUM(IF('6. Class A Consumption Data'!K38:L38="B",'6. Class A Consumption Data'!E38:F38)) -> 413780.19 | H48: 0.0173176017 | I48: -1465.309076 | J48: -122.11
B49: Customer 11 | D49: 0 | E49: =SUM(IF('6. Class A Consumption Data'!K39:L39="B",'6. Class A Consumption Data'!E39:F39)) -> 0 | H49: 0 | I49: 0 | J49: 0
B50: Customer 12 | D50: 0 | E50: =SUM(IF('6. Class A Consumption Data'!K40:L40="B",'6. Class A Consumption Data'!E40:F40)) -> 0 | H50: 0 | I50: 0 | J50: 0
B51: Customer 13 | D51: 0 | E51: =SUM(IF('6. Class A Consumption Data'!K41:L41="B",'6. Class A Consumption Data'!E41:F41)) -> 0 | H51: 0 | I51: 0 | J51: 0
B52: Customer 14 | D52: 0 | E52: =SUM(IF('6. Class A Consumption Data'!K42:L42="B",'6. Class A Consumption Data'!E42:F42)) -> 0 | H52: 0 | I52: 0 | J52: 0
B53: Customer 15 | D53: 0 | E53: =SUM(IF('6. Class A Consumption Data'!K43:L43="B",'6. Class A Consumption Data'!E43:F43)) -> 0 | H53: 0 | I53: 0 | J53: 0
B54: Customer 16 | D54: 0 | E54: =SUM(IF('6. Class A Consumption Data'!K44:L44="B",'6. Class A Consumption Data'!E44:F44)) -> 0 | H54: 0 | I54: 0 | J54: 0
B55: Customer 17 | D55: 0 | E55: =SUM(IF('6. Class A Consumption Data'!K45:L45="B",'6. Class A Consumption Data'!E45:F45)) -> 0 | H55: 0 | I55: 0 | J55: 0
B56: Customer 18 | D56: 0 | E56: =SUM(IF('6. Class A Consumption Data'!K46:L46="B",'6. Class A Consumption Data'!E46:F46)) -> 0 | H56: 0 | I56: 0 | J56: 0
B57: Customer 19 | D57: 0 | E57: =SUM(IF('6. Class A Consumption Data'!K47:L47="B",'6. Class A Consumption Data'!E47:F47)) -> 0 | H57: 0 | I57: 0 | J57: 0
B58: Customer 20 | D58: 0 | E58: =SUM(IF('6. Class A Consumption Data'!K48:L48="B",'6. Class A Consumption Data'!E48:F48)) -> 0 | H58: 0 | I58: 0 | J58: 0
B59: Customer 21 | D59: 0 | E59: =SUM(IF('6. Class A Consumption Data'!K49:L49="B",'6. Class A Consumption Data'!E49:F49)) -> 0 | H59: 0 | I59: 0 | J59: 0
B60: Customer 22 | D60: 0 | E60: =SUM(IF('6. Class A Consumption Data'!K50:L50="B",'6. Class A Consumption Data'!E50:F50)) -> 0 | H60: 0 | I60: 0 | J60: 0
B61: Customer 23 | D61: 0 | E61: =SUM(IF('6. Class A Consumption Data'!K51:L51="B",'6. Class A Consumption Data'!E51:F51)) -> 0 | H61: 0 | I61: 0 | J61: 0
B62: Customer 24 | D62: 0 | E62: =SUM(IF('6. Class A Consumption Data'!K52:L52="B",'6. Class A Consumption Data'!E52:F52)) -> 0 | H62: 0 | I62: 0 | J62: 0
B63: Customer 25 | D63: 0 | E63: =SUM(IF('6. Class A Consumption Data'!K53:L53="B",'6. Class A Consumption Data'!E53:F53)) -> 0 | H63: 0 | I63: 0 | J63: 0
B64: Customer 26 | D64: 0 | E64: =SUM(IF('6. Class A Consumption Data'!K54:L54="B",'6. Class A Consumption Data'!E54:F54)) -> 0 | H64: 0 | I64: 0 | J64: 0
B65: Customer 27 | D65: 0 | E65: =SUM(IF('6. Class A Consumption Data'!K55:L55="B",'6. Class A Consumption Data'!E55:F55)) -> 0 | H65: 0 | I65: 0 | J65: 0
B66: Customer 28 | D66: 0 | E66: =SUM(IF('6. Class A Consumption Data'!K56:L56="B",'6. Class A Consumption Data'!E56:F56)) -> 0 | H66: 0 | I66: 0 | J66: 0
B67: Customer 29 | D67: 0 | E67: =SUM(IF('6. Class A Consumption Data'!K57:L57="B",'6. Class A Consumption Data'!E57:F57)) -> 0 | H67: 0 | I67: 0 | J67: 0
B68: Customer 30 | D68: 0 | E68: =SUM(IF('6. Class A Consumption Data'!K58:L58="B",'6. Class A Consumption Data'!E58:F58)) -> 0 | H68: 0 | I68: 0 | J68: 0
B69: Customer 31 | D69: 0 | E69: =SUM(IF('6. Class A Consumption Data'!K59:L59="B",'6. Class A Consumption Data'!E59:F59)) -> 0 | H69: 0 | I69: 0 | J69: 0
B70: Customer 32 | D70: 0 | E70: =SUM(IF('6. Class A Consumption Data'!K60:L60="B",'6. Class A Consumption Data'!E60:F60)) -> 0 | H70: 0 | I70: 0 | J70: 0
B71: Customer 33 | D71: =SUM(E71:G71) -> 0 | E71: =SUM(IF('6. Class A Consumption Data'!K61:L61="B",'6. Class A Consumption Data'!E61:F61)) -> 0 | H71: 0 | I71: 0 | J71: 0
B72: Customer 34 | D72: 0 | E72: =SUM(IF('6. Class A Consumption Data'!K62:L62="B",'6. Class A Consumption Data'!E62:F62)) -> 0 | H72: 0 | I72: 0 | J72: 0
B73: Customer 35 | D73: 0 | E73: =SUM(IF('6. Class A Consumption Data'!K63:L63="B",'6. Class A Consumption Data'!E63:F63)) -> 0 | H73: 0 | I73: 0 | J73: 0
B74: Customer 36 | D74: 0 | E74: =SUM(IF('6. Class A Consumption Data'!K64:L64="B",'6. Class A Consumption Data'!E64:F64)) -> 0 | H74: 0 | I74: 0 | J74: 0
B75: Customer 37 | D75: 0 | E75: =SUM(IF('6. Class A Consumption Data'!K65:L65="B",'6. Class A Consumption Data'!E65:F65)) -> 0 | H75: 0 | I75: 0 | J75: 0
B76: Customer 38 | D76: 0 | E76: =SUM(IF('6. Class A Consumption Data'!K66:L66="B",'6. Class A Consumption Data'!E66:F66)) -> 0 | H76: 0 | I76: 0 | J76: 0
B77: Customer 39 | D77: 0 | E77: =SUM(IF('6. Class A Consumption Data'!K67:L67="B",'6. Class A Consumption Data'!E67:F67)) -> 0 | H77: 0 | I77: 0 | J77: 0
B78: Customer 40 | D78: 0 | E78: =SUM(IF('6. Class A Consumption Data'!K68:L68="B",'6. Class A Consumption Data'!E68:F68)) -> 0 | H78: 0 | I78: 0 | J78: 0
B79: Customer 41 | D79: 0 | E79: =SUM(IF('6. Class A Consumption Data'!K69:L69="B",'6. Class A Consumption Data'!E69:F69)) -> 0 | H79: 0 | I79: 0 | J79: 0
B80: Customer 42 | D80: 0 | E80: =SUM(IF('6. Class A Consumption Data'!K70:L70="B",'6. Class A Consumption Data'!E70:F70)) -> 0 | H80: 0 | I80: 0 | J80: 0
B81: Customer 43 | D81: 0 | E81: =SUM(IF('6. Class A Consumption Data'!K71:L71="B",'6. Class A Consumption Data'!E71:F71)) -> 0 | H81: 0 | I81: 0 | J81: 0
B82: Customer 44 | D82: 0 | E82: =SUM(IF('6. Class A Consumption Data'!K72:L72="B",'6. Class A Consumption Data'!E72:F72)) -> 0 | H82: 0 | I82: 0 | J82: 0
B83: Customer 45 | D83: 0 | E83: =SUM(IF('6. Class A Consumption Data'!K73:L73="B",'6. Class A Consumption Data'!E73:F73)) -> 0 | H83: 0 | I83: 0 | J83: 0
B84: Customer 46 | D84: 0 | E84: =SUM(IF('6. Class A Consumption Data'!K74:L74="B",'6. Class A Consumption Data'!E74:F74)) -> 0 | H84: 0 | I84: 0 | J84: 0
B85: Customer 47 | D85: 0 | E85: =SUM(IF('6. Class A Consumption Data'!K75:L75="B",'6. Class A Consumption Data'!E75:F75)) -> 0 | H85: 0 | I85: 0 | J85: 0
B86: Customer 48 | D86: 0 | E86: =SUM(IF('6. Class A Consumption Data'!K76:L76="B",'6. Class A Consumption Data'!E76:F76)) -> 0 | H86: 0 | I86: 0 | J86: 0
B87: Customer 49 | D87: 0 | E87: =SUM(IF('6. Class A Consumption Data'!K77:L77="B",'6. Class A Consumption Data'!E77:F77)) -> 0 | H87: 0 | I87: 0 | J87: 0
B88: Customer 50 | D88: 0 | E88: =SUM(IF('6. Class A Consumption Data'!K78:L78="B",'6. Class A Consumption Data'!E78:F78)) -> 0 | H88: 0 | I88: 0 | J88: 0
B89: Customer 51 | D89: 0 | E89: =SUM(IF('6. Class A Consumption Data'!K79:L79="B",'6. Class A Consumption Data'!E79:F79)) -> 0 | H89: 0 | I89: 0 | J89: 0
B90: Customer 52 | D90: 0 | E90: =SUM(IF('6. Class A Consumption Data'!K80:L80="B",'6. Class A Consumption Data'!E80:F80)) -> 0 | H90: 0 | I90: 0 | J90: 0
B91: Customer 53 | D91: 0 | E91: =SUM(IF('6. Class A Consumption Data'!K81:L81="B",'6. Class A Consumption Data'!E81:F81)) -> 0 | H91: 0 | I91: 0 | J91: 0
B92: Customer 54 | D92: 0 | E92: =SUM(IF('6. Class A Consumption Data'!K82:L82="B",'6. Class A Consumption Data'!E82:F82)) -> 0 | H92: 0 | I92: 0 | J92: 0
B93: Customer 55 | D93: 0 | E93: =SUM(IF('6. Class A Consumption Data'!K83:L83="B",'6. Class A Consumption Data'!E83:F83)) -> 0 | H93: 0 | I93: 0 | J93: 0
B94: Customer 56 | D94: 0 | E94: =SUM(IF('6. Class A Consumption Data'!K84:L84="B",'6. Class A Consumption Data'!E84:F84)) -> 0 | H94: 0 | I94: 0 | J94: 0
B95: Customer 57 | D95: 0 | E95: =SUM(IF('6. Class A Consumption Data'!K85:L85="B",'6. Class A Consumption Data'!E85:F85)) -> 0 | H95: 0 | I95: 0 | J95: 0
B96: Customer 58 | D96: 0 | E96: =SUM(IF('6. Class A Consumption Data'!K86:L86="B",'6. Class A Consumption Data'!E86:F86)) -> 0 | H96: 0 | I96: 0 | J96: 0
B97: Customer 59 | D97: 0 | E97: =SUM(IF('6. Class A Consumption Data'!K87:L87="B",'6. Class A Consumption Data'!E87:F87)) -> 0 | H97: 0 | I97: 0 | J97: 0
B98: Customer 60 | D98: 0 | E98: =SUM(IF('6. Class A Consumption Data'!K88:L88="B",'6. Class A Consumption Data'!E88:F88)) -> 0 | H98: 0 | I98: 0 | J98: 0
B99: Customer 61 | D99: 0 | E99: =SUM(IF('6. Class A Consumption Data'!K89:L89="B",'6. Class A Consumption Data'!E89:F89)) -> 0 | H99: 0 | I99: 0 | J99: 0
B100: Customer 62 | D100: 0 | E100: =SUM(IF('6. Class A Consumption Data'!K90:L90="B",'6. Class A Consumption Data'!E90:F90)) -> 0 | H100: 0 | I100: 0 | J100: 0
B101: Customer 63 | D101: 0 | E101: =SUM(IF('6. Class A Consumption Data'!K91:L91="B",'6. Class A Consumption Data'!E91:F91)) -> 0 | H101: 0 | I101: 0 | J101: 0
B102: Customer 64 | D102: 0 | E102: =SUM(IF('6. Class A Consumption Data'!K92:L92="B",'6. Class A Consumption Data'!E92:F92)) -> 0 | H102: 0 | I102: 0 | J102: 0
B103: Customer 65 | D103: =SUM(E103:G103) -> 0 | E103: =SUM(IF('6. Class A Consumption Data'!K93:L93="B",'6. Class A Consumption Data'!E93:F93)) -> 0 | H103: 0 | I103: 0 | J103: 0
B104: Customer 66 | D104: 0 | E104: =SUM(IF('6. Class A Consumption Data'!K94:L94="B",'6. Class A Consumption Data'!E94:F94)) -> 0 | H104: =IFERROR(+D104/$D$189,0) -> 0 | I104: =H104*$D$26 -> 0 | J104: =ROUND(IF(ISERROR(I104),0,IF(OR(ISBLANK($D$34), OR($D$34=0, $D$34="")), I104/($D$32), I104/($D$34))),2) -> 0
B105: Customer 67 | D105: 0 | E105: =SUM(IF('6. Class A Consumption Data'!K95:L95="B",'6. Class A Consumption Data'!E95:F95)) -> 0 | H105: 0 | I105: 0 | J105: 0
B106: Customer 68 | D106: 0 | E106: =SUM(IF('6. Class A Consumption Data'!K96:L96="B",'6. Class A Consumption Data'!E96:F96)) -> 0 | H106: 0 | I106: 0 | J106: 0
B107: Customer 69 | D107: 0 | E107: =SUM(IF('6. Class A Consumption Data'!K97:L97="B",'6. Class A Consumption Data'!E97:F97)) -> 0 | H107: 0 | I107: 0 | J107: 0
B108: Customer 70 | D108: 0 | E108: =SUM(IF('6. Class A Consumption Data'!K98:L98="B",'6. Class A Consumption Data'!E98:F98)) -> 0 | H108: 0 | I108: 0 | J108: 0
B109: Customer 71 | D109: 0 | E109: =SUM(IF('6. Class A Consumption Data'!K99:L99="B",'6. Class A Consumption Data'!E99:F99)) -> 0 | H109: 0 | I109: 0 | J109: 0
B110: Customer 72 | D110: 0 | E110: =SUM(IF('6. Class A Consumption Data'!K100:L100="B",'6. Class A Consumption Data'!E100:F100)) -> 0 | H110: 0 | I110: 0 | J110: 0
B111: Customer 73 | D111: 0 | E111: =SUM(IF('6. Class A Consumption Data'!K101:L101="B",'6. Class A Consumption Data'!E101:F101)) -> 0 | H111: 0 | I111: 0 | J111: 0
B112: Customer 74 | D112: 0 | E112: =SUM(IF('6. Class A Consumption Data'!K102:L102="B",'6. Class A Consumption Data'!E102:F102)) -> 0 | H112: 0 | I112: 0 | J112: 0
B113: Customer 75 | D113: 0 | E113: =SUM(IF('6. Class A Consumption Data'!K103:L103="B",'6. Class A Consumption Data'!E103:F103)) -> 0 | H113: 0 | I113: 0 | J113: 0
B114: Customer 76 | D114: 0 | E114: =SUM(IF('6. Class A Consumption Data'!K104:L104="B",'6. Class A Consumption Data'!E104:F104)) -> 0 | H114: 0 | I114: 0 | J114: 0
B115: Customer 77 | D115: 0 | E115: =SUM(IF('6. Class A Consumption Data'!K105:L105="B",'6. Class A Consumption Data'!E105:F105)) -> 0 | H115: 0 | I115: 0 | J115: 0
B116: Customer 78 | D116: 0 | E116: =SUM(IF('6. Class A Consumption Data'!K106:L106="B",'6. Class A Consumption Data'!E106:F106)) -> 0 | H116: 0 | I116: 0 | J116: 0
B117: Customer 79 | D117: 0 | E117: =SUM(IF('6. Class A Consumption Data'!K107:L107="B",'6. Class A Consumption Data'!E107:F107)) -> 0 | H117: 0 | I117: 0 | J117: 0
B118: Customer 80 | D118: 0 | E118: =SUM(IF('6. Class A Consumption Data'!K108:L108="B",'6. Class A Consumption Data'!E108:F108)) -> 0 | H118: 0 | I118: 0 | J118: 0
B119: Customer 81 | D119: 0 | E119: =SUM(IF('6. Class A Consumption Data'!K109:L109="B",'6. Class A Consumption Data'!E109:F109)) -> 0 | H119: 0 | I119: 0 | J119: 0
B120: Customer 82 | D120: 0 | E120: =SUM(IF('6. Class A Consumption Data'!K110:L110="B",'6. Class A Consumption Data'!E110:F110)) -> 0 | H120: 0 | I120: 0 | J120: 0
B121: Customer 83 | D121: 0 | E121: =SUM(IF('6. Class A Consumption Data'!K111:L111="B",'6. Class A Consumption Data'!E111:F111)) -> 0 | H121: 0 | I121: 0 | J121: 0
B122: Customer 84 | D122: 0 | E122: =SUM(IF('6. Class A Consumption Data'!K112:L112="B",'6. Class A Consumption Data'!E112:F112)) -> 0 | H122: 0 | I122: 0 | J122: 0
B123: Customer 85 | D123: 0 | E123: =SUM(IF('6. Class A Consumption Data'!K113:L113="B",'6. Class A Consumption Data'!E113:F113)) -> 0 | H123: 0 | I123: 0 | J123: 0
B124: Customer 86 | D124: 0 | E124: =SUM(IF('6. Class A Consumption Data'!K114:L114="B",'6. Class A Consumption Data'!E114:F114)) -> 0 | H124: 0 | I124: 0 | J124: 0
B125: Customer 87 | D125: 0 | E125: =SUM(IF('6. Class A Consumption Data'!K115:L115="B",'6. Class A Consumption Data'!E115:F115)) -> 0 | H125: 0 | I125: 0 | J125: 0
B126: Customer 88 | D126: 0 | E126: =SUM(IF('6. Class A Consumption Data'!K116:L116="B",'6. Class A Consumption Data'!E116:F116)) -> 0 | H126: 0 | I126: 0 | J126: 0
B127: Customer 89 | D127: 0 | E127: =SUM(IF('6. Class A Consumption Data'!K117:L117="B",'6. Class A Consumption Data'!E117:F117)) -> 0 | H127: 0 | I127: 0 | J127: 0
B128: Customer 90 | D128: 0 | E128: =SUM(IF('6. Class A Consumption Data'!K118:L118="B",'6. Class A Consumption Data'!E118:F118)) -> 0 | H128: 0 | I128: 0 | J128: 0
B129: Customer 91 | D129: 0 | E129: =SUM(IF('6. Class A Consumption Data'!K119:L119="B",'6. Class A Consumption Data'!E119:F119)) -> 0 | H129: 0 | I129: 0 | J129: 0
B130: Customer 92 | D130: 0 | E130: =SUM(IF('6. Class A Consumption Data'!K120:L120="B",'6. Class A Consumption Data'!E120:F120)) -> 0 | H130: 0 | I130: 0 | J130: 0
B131: Customer 93 | D131: 0 | E131: =SUM(IF('6. Class A Consumption Data'!K121:L121="B",'6. Class A Consumption Data'!E121:F121)) -> 0 | H131: 0 | I131: 0 | J131: 0
B132: Customer 94 | D132: 0 | E132: =SUM(IF('6. Class A Consumption Data'!K122:L122="B",'6. Class A Consumption Data'!E122:F122)) -> 0 | H132: 0 | I132: 0 | J132: 0
B133: Customer 95 | D133: 0 | E133: =SUM(IF('6. Class A Consumption Data'!K123:L123="B",'6. Class A Consumption Data'!E123:F123)) -> 0 | H133: 0 | I133: 0 | J133: 0
B134: Customer 96 | D134: 0 | E134: =SUM(IF('6. Class A Consumption Data'!K124:L124="B",'6. Class A Consumption Data'!E124:F124)) -> 0 | H134: 0 | I134: 0 | J134: 0
B135: Customer 97 | D135: =SUM(E135:G135) -> 0 | E135: =SUM(IF('6. Class A Consumption Data'!K125:L125="B",'6. Class A Consumption Data'!E125:F125)) -> 0 | H135: 0 | I135: 0 | J135: 0
B136: Customer 98 | D136: 0 | E136: =SUM(IF('6. Class A Consumption Data'!K126:L126="B",'6. Class A Consumption Data'!E126:F126)) -> 0 | H136: 0 | I136: 0 | J136: 0
B137: Customer 99 | D137: 0 | E137: =SUM(IF('6. Class A Consumption Data'!K127:L127="B",'6. Class A Consumption Data'!E127:F127)) -> 0 | H137: 0 | I137: 0 | J137: 0
B138: Customer 100 | D138: 0 | E138: =SUM(IF('6. Class A Consumption Data'!K128:L128="B",'6. Class A Consumption Data'!E128:F128)) -> 0 | H138: 0 | I138: 0 | J138: 0
B139: Customer 101 | D139: 0 | E139: =SUM(IF('6. Class A Consumption Data'!K129:L129="B",'6. Class A Consumption Data'!E129:F129)) -> 0 | H139: 0 | I139: 0 | J139: 0
B140: Customer 102 | D140: =SUM(E140:G140) -> 0 | E140: =SUM(IF('6. Class A Consumption Data'!K130:L130="B",'6. Class A Consumption Data'!E130:F130)) -> 0 | H140: 0 | I140: 0 | J140: 0
B141: Customer 103 | D141: 0 | E141: =SUM(IF('6. Class A Consumption Data'!K131:L131="B",'6. Class A Consumption Data'!E131:F131)) -> 0 | H141: 0 | I141: 0 | J141: 0
B142: Customer 104 | D142: 0 | E142: =SUM(IF('6. Class A Consumption Data'!K132:L132="B",'6. Class A Consumption Data'!E132:F132)) -> 0 | H142: 0 | I142: 0 | J142: 0
B143: Customer 105 | D143: 0 | E143: =SUM(IF('6. Class A Consumption Data'!K133:L133="B",'6. Class A Consumption Data'!E133:F133)) -> 0 | H143: 0 | I143: 0 | J143: 0
B144: Customer 106 | D144: 0 | E144: =SUM(IF('6. Class A Consumption Data'!K134:L134="B",'6. Class A Consumption Data'!E134:F134)) -> 0 | H144: 0 | I144: 0 | J144: 0
B145: Customer 107 | D145: 0 | E145: =SUM(IF('6. Class A Consumption Data'!K135:L135="B",'6. Class A Consumption Data'!E135:F135)) -> 0 | H145: 0 | I145: 0 | J145: 0
B146: Customer 108 | D146: 0 | E146: =SUM(IF('6. Class A Consumption Data'!K136:L136="B",'6. Class A Consumption Data'!E136:F136)) -> 0 | H146: 0 | I146: 0 | J146: 0
B147: Customer 109 | D147: 0 | E147: =SUM(IF('6. Class A Consumption Data'!K137:L137="B",'6. Class A Consumption Data'!E137:F137)) -> 0 | H147: 0 | I147: 0 | J147: 0
B148: Customer 110 | D148: 0 | E148: =SUM(IF('6. Class A Consumption Data'!K138:L138="B",'6. Class A Consumption Data'!E138:F138)) -> 0 | H148: 0 | I148: 0 | J148: 0
B149: Customer 111 | D149: 0 | E149: =SUM(IF('6. Class A Consumption Data'!K139:L139="B",'6. Class A Consumption Data'!E139:F139)) -> 0 | H149: 0 | I149: 0 | J149: 0
B150: Customer 112 | D150: 0 | E150: =SUM(IF('6. Class A Consumption Data'!K140:L140="B",'6. Class A Consumption Data'!E140:F140)) -> 0 | H150: 0 | I150: 0 | J150: 0
B151: Customer 113 | D151: 0 | E151: =SUM(IF('6. Class A Consumption Data'!K141:L141="B",'6. Class A Consumption Data'!E141:F141)) -> 0 | H151: 0 | I151: 0 | J151: 0
B152: Customer 114 | D152: 0 | E152: =SUM(IF('6. Class A Consumption Data'!K142:L142="B",'6. Class A Consumption Data'!E142:F142)) -> 0 | H152: 0 | I152: 0 | J152: 0
B153: Customer 115 | D153: 0 | E153: =SUM(IF('6. Class A Consumption Data'!K143:L143="B",'6. Class A Consumption Data'!E143:F143)) -> 0 | H153: 0 | I153: 0 | J153: 0
B154: Customer 116 | D154: 0 | E154: =SUM(IF('6. Class A Consumption Data'!K144:L144="B",'6. Class A Consumption Data'!E144:F144)) -> 0 | H154: 0 | I154: 0 | J154: 0
B155: Customer 117 | D155: 0 | E155: =SUM(IF('6. Class A Consumption Data'!K145:L145="B",'6. Class A Consumption Data'!E145:F145)) -> 0 | H155: 0 | I155: 0 | J155: 0
B156: Customer 118 | D156: 0 | E156: =SUM(IF('6. Class A Consumption Data'!K146:L146="B",'6. Class A Consumption Data'!E146:F146)) -> 0 | H156: 0 | I156: 0 | J156: 0
B157: Customer 119 | D157: 0 | E157: =SUM(IF('6. Class A Consumption Data'!K147:L147="B",'6. Class A Consumption Data'!E147:F147)) -> 0 | H157: 0 | I157: 0 | J157: 0
B158: Customer 120 | D158: 0 | E158: =SUM(IF('6. Class A Consumption Data'!K148:L148="B",'6. Class A Consumption Data'!E148:F148)) -> 0 | H158: 0 | I158: 0 | J158: 0
B159: Customer 121 | D159: 0 | E159: =SUM(IF('6. Class A Consumption Data'!K149:L149="B",'6. Class A Consumption Data'!E149:F149)) -> 0 | H159: 0 | I159: 0 | J159: 0
B160: Customer 122 | D160: 0 | E160: =SUM(IF('6. Class A Consumption Data'!K150:L150="B",'6. Class A Consumption Data'!E150:F150)) -> 0 | H160: 0 | I160: 0 | J160: 0
B161: Customer 123 | D161: 0 | E161: =SUM(IF('6. Class A Consumption Data'!K151:L151="B",'6. Class A Consumption Data'!E151:F151)) -> 0 | H161: 0 | I161: 0 | J161: 0
B162: Customer 124 | D162: 0 | E162: =SUM(IF('6. Class A Consumption Data'!K152:L152="B",'6. Class A Consumption Data'!E152:F152)) -> 0 | H162: 0 | I162: 0 | J162: 0
B163: Customer 125 | D163: 0 | E163: =SUM(IF('6. Class A Consumption Data'!K153:L153="B",'6. Class A Consumption Data'!E153:F153)) -> 0 | H163: 0 | I163: 0 | J163: 0
B164: Customer 126 | D164: 0 | E164: =SUM(IF('6. Class A Consumption Data'!K154:L154="B",'6. Class A Consumption Data'!E154:F154)) -> 0 | H164: 0 | I164: 0 | J164: 0
B165: Customer 127 | D165: 0 | E165: =SUM(IF('6. Class A Consumption Data'!K155:L155="B",'6. Class A Consumption Data'!E155:F155)) -> 0 | H165: 0 | I165: 0 | J165: 0
B166: Customer 128 | D166: 0 | E166: =SUM(IF('6. Class A Consumption Data'!K156:L156="B",'6. Class A Consumption Data'!E156:F156)) -> 0 | H166: 0 | I166: 0 | J166: 0
B167: Customer 129 | D167: 0 | E167: =SUM(IF('6. Class A Consumption Data'!K157:L157="B",'6. Class A Consumption Data'!E157:F157)) -> 0 | H167: 0 | I167: 0 | J167: 0
B168: Customer 130 | D168: 0 | E168: =SUM(IF('6. Class A Consumption Data'!K158:L158="B",'6. Class A Consumption Data'!E158:F158)) -> 0 | H168: =IFERROR(+D168/$D$189,0) -> 0 | I168: =H168*$D$26 -> 0 | J168: =ROUND(IF(ISERROR(I168),0,IF(OR(ISBLANK($D$34), OR($D$34=0, $D$34="")), I168/($D$32), I168/($D$34))),2) -> 0
B169: Customer 131 | D169: 0 | E169: =SUM(IF('6. Class A Consumption Data'!K159:L159="B",'6. Class A Consumption Data'!E159:F159)) -> 0 | H169: 0 | I169: 0 | J169: 0
B170: Customer 132 | D170: 0 | E170: =SUM(IF('6. Class A Consumption Data'!K160:L160="B",'6. Class A Consumption Data'!E160:F160)) -> 0 | H170: 0 | I170: 0 | J170: 0
B171: Customer 133 | D171: 0 | E171: =SUM(IF('6. Class A Consumption Data'!K161:L161="B",'6. Class A Consumption Data'!E161:F161)) -> 0 | H171: 0 | I171: 0 | J171: 0
B172: Customer 134 | D172: 0 | E172: =SUM(IF('6. Class A Consumption Data'!K162:L162="B",'6. Class A Consumption Data'!E162:F162)) -> 0 | H172: 0 | I172: 0 | J172: 0
B173: Customer 135 | D173: 0 | E173: =SUM(IF('6. Class A Consumption Data'!K163:L163="B",'6. Class A Consumption Data'!E163:F163)) -> 0 | H173: 0 | I173: 0 | J173: 0
B174: Customer 136 | D174: 0 | E174: =SUM(IF('6. Class A Consumption Data'!K164:L164="B",'6. Class A Consumption Data'!E164:F164)) -> 0 | H174: 0 | I174: 0 | J174: 0
B175: Customer 137 | D175: 0 | E175: =SUM(IF('6. Class A Consumption Data'!K165:L165="B",'6. Class A Consumption Data'!E165:F165)) -> 0 | H175: 0 | I175: 0 | J175: 0
B176: Customer 138 | D176: 0 | E176: =SUM(IF('6. Class A Consumption Data'!K166:L166="B",'6. Class A Consumption Data'!E166:F166)) -> 0 | H176: 0 | I176: 0 | J176: 0
B177: Customer 139 | D177: 0 | E177: =SUM(IF('6. Class A Consumption Data'!K167:L167="B",'6. Class A Consumption Data'!E167:F167)) -> 0 | H177: 0 | I177: 0 | J177: 0
B178: Customer 140 | D178: 0 | E178: =SUM(IF('6. Class A Consumption Data'!K168:L168="B",'6. Class A Consumption Data'!E168:F168)) -> 0 | H178: 0 | I178: 0 | J178: 0
B179: Customer 141 | D179: 0 | E179: =SUM(IF('6. Class A Consumption Data'!K169:L169="B",'6. Class A Consumption Data'!E169:F169)) -> 0 | H179: 0 | I179: 0 | J179: 0
B180: Customer 142 | D180: 0 | E180: =SUM(IF('6. Class A Consumption Data'!K170:L170="B",'6. Class A Consumption Data'!E170:F170)) -> 0 | H180: 0 | I180: 0 | J180: 0
B181: Customer 143 | D181: 0 | E181: =SUM(IF('6. Class A Consumption Data'!K171:L171="B",'6. Class A Consumption Data'!E171:F171)) -> 0 | H181: 0 | I181: 0 | J181: 0
B182: Customer 144 | D182: 0 | E182: =SUM(IF('6. Class A Consumption Data'!K172:L172="B",'6. Class A Consumption Data'!E172:F172)) -> 0 | H182: 0 | I182: 0 | J182: 0
B183: Customer 145 | D183: 0 | E183: =SUM(IF('6. Class A Consumption Data'!K173:L173="B",'6. Class A Consumption Data'!E173:F173)) -> 0 | H183: 0 | I183: 0 | J183: 0
B184: Customer 146 | D184: 0 | E184: =SUM(IF('6. Class A Consumption Data'!K174:L174="B",'6. Class A Consumption Data'!E174:F174)) -> 0 | H184: 0 | I184: 0 | J184: 0
B185: Customer 147 | D185: 0 | E185: =SUM(IF('6. Class A Consumption Data'!K175:L175="B",'6. Class A Consumption Data'!E175:F175)) -> 0 | H185: 0 | I185: 0 | J185: 0
B186: Customer 148 | D186: 0 | E186: =SUM(IF('6. Class A Consumption Data'!K176:L176="B",'6. Class A Consumption Data'!E176:F176)) -> 0 | H186: 0 | I186: 0 | J186: 0
B187: Customer 149 | D187: 0 | E187: =SUM(IF('6. Class A Consumption Data'!K177:L177="B",'6. Class A Consumption Data'!E177:F177)) -> 0 | H187: 0 | I187: 0 | J187: 0
B188: Customer 150 | D188: 0 | E188: =SUM(IF('6. Class A Consumption Data'!K178:L178="B",'6. Class A Consumption Data'!E178:F178)) -> 0 | H188: 0 | I188: 0 | J188: 0
B189: Total for all Customers | D189: =SUM(D39:D188) -> 23893619.75 | E189: =SUM(E39:E188) -> 23893619.75 | F189: 0 | G189: 0 | H189: =SUM(H39:H188) -> 1 | I189: =SUM(I39:I188) -> -84613.85714

Sheet 6.1 GA
A1: Back to Index
B2: =+'1. Information Sheet'!B2 -> INCENTIVE REGULATION MODEL FOR 2020 FILERS
K6: Default Rate Rider Recovery Period (in months) | M6: 12
K8: Proposed Rate Rider Recovery Period (in months) | M8: 12 | N8: =IF(M8>0, "Rate Rider Recovery to be used below", "If no rate rider recovery period is proposed then the default recovery period of 12 months will be used") -> Rate Rider Recovery to be used below
B12: The purpose of this tab is to calculate the GA rate riders for all current Class B customers who did not transition between Class A and B in the period since the Account 1589 GA was last disposed. Calculations in this tab will be modified upon completion of tab 6.1a, which allocates a portion of the GA balance to transition customers, if applicable. Effective January 2017, the billing determinant and all rate riders for the disposition of GA balances will be calculated on an energy basis (kWhs) regardless of the billing determinant used for distribution rates for the particular class (see Chapter 3, Filing Requirements, section 3.2.5.2)
C14: Total Metered Non-RPP 2018 Consumption excluding WMP | E14: Total Metered 2018 Consumption for Class A Customers that were Class A for the entire period GA blance accumulated | G14: Total Metered 2018 Consumption for Customers that Transitioned Between Class A and B during the period GA balance accumulated | I14: Non-RPP Metered Consumption for Current Class B Customers (Non-RPP Consumption excluding WMP, Class A and Transition Customers' Consumption) | K14: % of total kWh | L14: Total GA $ allocated to Current Class B Customers | M14: GA Rate Rider | O14: Revenue Reconciliation | P14: Variance
C15: kWh | D15: kW | E15: kWh | F15: kW | G15: kWh | H15: kW | I15: kWh | J15: kW
B17: ='4. Billing Det. for Def-Var'!B17 -> RESIDENTIAL SERVICE CLASSIFICATION | C17: ='4. Billing Det. for Def-Var'!F17 -> 11061065.16 | D17: ='4. Billing Det. for Def-Var'!G17 -> 0 | E17: =SUM(IF('6. Class A Consumption Data'!$D$191:$D$340=$B17,'6. Class A Consumption Data'!E$191:E$340)) -> 0 | G17: =SUM(IF('6. Class A Consumption Data'!$D$29:$D$178=$B17,'6. Class A Consumption Data'!E$29:F$178)) -> 0 | I17: =ROUND(C17-E17-G17,0) -> 11061065 | K17: =IFERROR(I17/I$29,"") -> 0.03293514341 | L17: =IFERROR(L$29*K17,"") -> -39170.26315 | M17: =IF('4. Billing Det. for Def-Var'!$D$37="no",0,ROUND(IF(ISERROR(L17/I17),0,IF(OR(ISBLANK($M$8),OR($M$8=0,$M$8="")),L17/I17/($M$6/12),L17/I17/($M$8/12))),4)) -> 0 | N17: kwh | O17: =ROUND(M17,4)*I17 -> 0 | P17: =L17-O17 -> -39170.26315
B18: ='4. Billing Det. for Def-Var'!B18 -> GENERAL SERVICE LESS THAN 50 kW SERVICE CLASSIFICATION | C18: ='4. Billing Det. for Def-Var'!F18 -> 24681088.86 | D18: ='4. Billing Det. for Def-Var'!G18 -> 0 | E18: =SUM(IF('6. Class A Consumption Data'!$D$191:$D$340=$B18,'6. Class A Consumption Data'!E$191:E$340)) -> 0 | G18: =SUM(IF('6. Class A Consumption Data'!$D$29:$D$178=$B18,'6. Class A Consumption Data'!E$29:F$178)) -> 0 | I18: =ROUND(C18-E18-G18,0) -> 24681089 | K18: =IFERROR(I18/I$29,"") -> 0.07348977749 | L18: =IFERROR(L$29*K18,"") -> -87402.50157 | M18: =IF('4. Billing Det. for Def-Var'!$D$37="no",0,ROUND(IF(ISERROR(L18/I18),0,IF(OR(ISBLANK($M$8),OR($M$8=0,$M$8="")),L18/I18/($M$6/12),L18/I18/($M$8/12))),4)) -> 0 | N18: kwh | O18: =ROUND(M18,4)*I18 -> 0 | P18: =L18-O18 -> -87402.50157
B19: ='4. Billing Det. for Def-Var'!B19 -> GENERAL SERVICE 50 to 999 KW SERVICE CLASSIFICATION | C19: ='4. Billing Det. for Def-Var'!F19 -> 355315127.6 | D19: ='4. Billing Det. for Def-Var'!G19 -> 967344.0694 | E19: =SUM(IF('6. Class A Consumption Data'!$D$191:$D$340=$B19,'6. Class A Consumption Data'!E$191:E$340)) -> 50711625.48 | G19: =SUM(IF('6. Class A Consumption Data'!$D$29:$D$178=$B19,'6. Class A Consumption Data'!E$29:F$178)) -> 19681793.85 | I19: 284921708 | K19: 0.848375569 | L19: =IFERROR(L$29*K19,"") -> -1008985.869 | M19: =IF('4. Billing Det. for Def-Var'!$D$37="no",0,ROUND(IF(ISERROR(L19/I19),0,IF(OR(ISBLANK($M$8),OR($M$8=0,$M$8="")),L19/I19/($M$6/12),L19/I19/($M$8/12))),4)) -> 0 | N19: kwh | O19: 0 | P19: -1008985.869
B20: ='4. Billing Det. for Def-Var'!B20 -> GENERAL SERVICE 1,000 to 4,999 KW SERVICE CLASSIFICATION | C20: ='4. Billing Det. for Def-Var'!F20 -> 539909080.9 | D20: ='4. Billing Det. for Def-Var'!G20 -> 1127782.76 | E20: =SUM(IF('6. Class A Consumption Data'!$D$191:$D$340=$B20,'6. Class A Consumption Data'!E$191:E$340)) -> 508294693.9 | G20: =SUM(IF('6. Class A Consumption Data'!$D$29:$D$178=$B20,'6. Class A Consumption Data'!E$29:F$178)) -> 26993534.54 | I20: 4620853 | K20: 0.01375893336 | L20: =IFERROR(L$29*K20,"") -> -16363.70711 | M20: =IF('4. Billing Det. for Def-Var'!$D$37="no",0,ROUND(IF(ISERROR(L20/I20),0,IF(OR(ISBLANK($M$8),OR($M$8=0,$M$8="")),L20/I20/($M$6/12),L20/I20/($M$8/12))),4)) -> 0 | N20: kwh | O20: 0 | P20: -16363.70711
B21: ='4. Billing Det. for Def-Var'!B21 -> LARGE USE SERVICE CLASSIFICATION | C21: ='4. Billing Det. for Def-Var'!F21 -> 197428961.9 | D21: ='4. Billing Det. for Def-Var'!G21 -> 423180.01 | E21: =SUM(IF('6. Class A Consumption Data'!$D$191:$D$340=$B21,'6. Class A Consumption Data'!E$191:E$340)) -> 197428961.9 | G21: =SUM(IF('6. Class A Consumption Data'!$D$29:$D$178=$B21,'6. Class A Consumption Data'!E$29:F$178)) -> 0 | I21: 0 | K21: =IFERROR(I21/I$29,"") -> 0 | L21: 0 | M21: =IF('4. Billing Det. for Def-Var'!$D$37="no",0,ROUND(IF(ISERROR(L21/I21),0,IF(OR(ISBLANK($M$8),OR($M$8=0,$M$8="")),L21/I21/($M$6/12),L21/I21/($M$8/12))),4)) -> 0 | N21: kwh | O21: 0 | P21: 0
B22: ='4. Billing Det. for Def-Var'!B22 -> UNMETERED SCATTERED LOAD SERVICE CLASSIFICATION | C22: ='4. Billing Det. for Def-Var'!F22 -> 376374.3893 | D22: ='4. Billing Det. for Def-Var'!G22 -> 0 | E22: =SUM(IF('6. Class A Consumption Data'!$D$191:$D$340=$B22,'6. Class A Consumption Data'!E$191:E$340)) -> 0 | G22: =SUM(IF('6. Class A Consumption Data'!$D$29:$D$178=$B22,'6. Class A Consumption Data'!E$29:F$178)) -> 0 | I22: 376374 | K22: 0.001120681568 | L22: -1332.843503 | M22: =IF('4. Billing Det. for Def-Var'!$D$37="no",0,ROUND(IF(ISERROR(L22/I22),0,IF(OR(ISBLANK($M$8),OR($M$8=0,$M$8="")),L22/I22/($M$6/12),L22/I22/($M$8/12))),4)) -> 0 | N22: kwh | O22: 0 | P22: -1332.843503
B23: ='4. Billing Det. for Def-Var'!B23 -> STANDBY POWER SERVICE CLASSIFICATION | C23: ='4. Billing Det. for Def-Var'!F23 -> 0 | D23: ='4. Billing Det. for Def-Var'!G23 -> 0 | E23: =SUM(IF('6. Class A Consumption Data'!$D$191:$D$340=$B23,'6. Class A Consumption Data'!E$191:E$340)) -> 0 | G23: =SUM(IF('6. Class A Consumption Data'!$D$29:$D$178=$B23,'6. Class A Consumption Data'!E$29:F$178)) -> 0 | I23: 0 | K23: 0 | L23: 0 | M23: =IF('4. Billing Det. for Def-Var'!$D$37="no",0,ROUND(IF(ISERROR(L23/I23),0,IF(OR(ISBLANK($M$8),OR($M$8=0,$M$8="")),L23/I23/($M$6/12),L23/I23/($M$8/12))),4)) -> 0 | O23: 0 | P23: 0
B24: ='4. Billing Det. for Def-Var'!B24 -> SENTINEL LIGHTING SERVICE CLASSIFICATION | C24: ='4. Billing Det. for Def-Var'!F24 -> 0 | D24: ='4. Billing Det. for Def-Var'!G24 -> 0 | E24: =SUM(IF('6. Class A Consumption Data'!$D$191:$D$340=$B24,'6. Class A Consumption Data'!E$191:E$340)) -> 0 | G24: =SUM(IF('6. Class A Consumption Data'!$D$29:$D$178=$B24,'6. Class A Consumption Data'!E$29:F$178)) -> 0 | I24: 0 | K24: 0 | L24: 0 | M24: =IF('4. Billing Det. for Def-Var'!$D$37="no",0,ROUND(IF(ISERROR(L24/I24),0,IF(OR(ISBLANK($M$8),OR($M$8=0,$M$8="")),L24/I24/($M$6/12),L24/I24/($M$8/12))),4)) -> 0 | N24: kwh | O24: 0 | P24: 0
B25: ='4. Billing Det. for Def-Var'!B25 -> STREET LIGHTING SERVICE CLASSIFICATION | C25: ='4. Billing Det. for Def-Var'!F25 -> 10182749.65 | D25: ='4. Billing Det. for Def-Var'!G25 -> 28424.58 | E25: =SUM(IF('6. Class A Consumption Data'!$D$191:$D$340=$B25,'6. Class A Consumption Data'!E$191:E$340)) -> 0 | G25: =SUM(IF('6. Class A Consumption Data'!$D$29:$D$178=$B25,'6. Class A Consumption Data'!E$29:F$178)) -> 0 | I25: =ROUND(C25-E25-G25,0) -> 10182750 | K25: =IFERROR(I25/I$29,"") -> 0.03031989519 | L25: =IFERROR(L$29*K25,"") -> -36059.90898 | M25: =IF('4. Billing Det. for Def-Var'!$D$37="no",0,ROUND(IF(ISERROR(L25/I25),0,IF(OR(ISBLANK($M$8),OR($M$8=0,$M$8="")),L25/I25/($M$6/12),L25/I25/($M$8/12))),4)) -> 0 | N25: kwh | O25: =ROUND(M25,4)*I25 -> 0 | P25: =L25-O25 -> -36059.90898
C29: =SUM(C17:C28) -> 1138954448 | D29: =SUM(D17:D28) -> 2546731.419 | E29: 756435281.3 | F29: 0 | G29: 46675328.39 | H29: 0 | I29: 335843839 | J29: 0 | K29: 1 | L29: ='6.1a GA Allocation'!D27 -> -1189315.093 | O29: =SUM(O17:O28) -> 0 | P29: =SUM(P17:P28) -> -1189315.093
L30: from Sheet 6.1a
O31: NOTE: if rate rider is at 5 decimal places, then the balance dispostion is in full
B32: *For new Class A customers (who became Class A in 2016), add their consumption only related to July to December period.
B33: All Class A customers are interval-metered. They consumption is included in Column D.
B34: **PowerStream bills Class B non-RPP interval billed customers at the actual monthly GA rate (no GA variance) and non-interval customers at the first estimate rate.

Sheet 6.2a CBR B_Allocation
A1: Back to Index
B2: =+'1. Information Sheet'!B2 -> INCENTIVE REGULATION MODEL FOR 2020 FILERS
B11: This tab allocates the CBR Class B balance to transition customers (i.e Class A customers who were former Class B customers and Class B customers who were former Class A customers) who contributed to the current CBR Class B balance. The tables below calculate specific amounts for each customer who made the change. The general CBR Class B rate rider is not to be charged to the transition customers that are allocated amounts in the table below. Consistent with prior decisions, distributors are generally expected to settle the amount through 12 equal adjustments to bills.
B14: Please enter the Year the Account 1580 CBR Class B was Last Disposed. | C14: 2017 | D14: (Note: Account 1580, Sub-account CBR Class B was established starting in 2015)
B16: Allocation of totalConsumption (kWh) between Current Class B and Class A/B Transition Customers
D17: Total | E17: =C14+1 -> 2018 | F17: =E17-1 -> 2017 | G17: =F17-1 -> 2016
B18: Total Class B Consumption for Years During Balance Accumulation (Total Consumption LESS WMP Consumption and Consumption for Class A customers who were Class A for partial or full year) | C18: A | D18: =SUM(E18:G18) -> 892683480.3 | E18: =N25 -> 892683480.3 | H18: from Cell N25
B19: Transition Customers' Class B Consumption (i.e. full year or partial year) | C19: B | D19: =SUM(E19:G19) -> 23893619.75 | E19: =E183 -> 23893619.75 | F19: =F183 -> 0 | G19: 0
B20: Transition Customers' Portion of Total Consumption | C20: C=B/A | D20: =IFERROR(+D19/D18,0) -> 0.02676606017
L21: Sheet 4 | M21: total kWh | N21: ='4. Billing Det. for Def-Var'!D29 -> 1678459496
L22: Sheet 4 | M22: WMP kWh | N22: ='4. Billing Det. for Def-Var'!H29 -> 6559026.09
B23: Allocation of Total CBR Class B Balance $ | L23: Sheet 6.1 | M23: Class A (full) | N23: ='6.1 GA'!E29 -> 756435281.3
L24: Sheet 6.1 | M24: Class A (partial) | N24: =SUM(IF('6. Class A Consumption Data'!$K$28:$L$38="a",'6. Class A Consumption Data'!$E$28:$F$38)) -> 22781708.64
B25: Total CBR Class B Balance | C25: D | D25: ='3. Continuity Schedule'!BU25 -> -17128.0936 | H25: =IF('6.2 CBR B'!U18="TRUE","NO MONTHLY EQUAL PAYMENTS. The entire OEB-approved CBR Class B amount is transferred into Account 1580 WMS control account to be disposed through the general purpose Group 1 DVA rate riders.","") -> NO MONTHLY EQUAL PAYMENTS. The entire OEB-approved CBR Class B amount is transferred into Account 1580 WMS control account to be disposed through the general purpose Group 1 DVA rate riders. | N25: =N21-N22-N23-N24 -> 892683480.3
B26: Transition Customers Portion of CBR Class B Balance | C26: E=D*C | D26: =+D20*D25 -> -458.4515839
B27: CBR Class B Balance to be disposed to Current Class B Customers through Rate Rider | C27: F=D-E | D27: =+D25-D26 -> -16669.64201
B29: Allocation of CBR Class B Balances to Transition Customers
B31: # of Class A/B Transition Customers | C31: ='6. Class A Consumption Data'!C23 -> 10
B32: Customer | D32: Total Metered Consumption (kWh) for Transition Customers During the Period WhenThey Were Class B Customers | E32: Metered Consumption (kWh) for Transition Customers During the Period When They Were Class B Customers in 2018 | F32: Metered Consumption (kWh) for Transition Customers During the Period When They Were Class B Customers in 2017 | G32: Metered Consumption (kWh) for Transition Customers During the Period When They Were Class B Customers in 2016 | H32: % of kWh | I32: Customer Specific CBR Class B Allocation for the Period When They Were a Class B Customer | J32: Monthly Equal Payments
B33: Customer 1 | D33: =SUM(E33:G33) -> 4418795.56 | E33: =SUM(IF('6. Class A Consumption Data'!K29:L29="B",'6. Class A Consumption Data'!E29:F29)) -> 4418795.56 | H33: =IFERROR(+D33/$D$183,0) -> 0.1849362134 | I33: =IF('6.2 CBR B'!U$18="TRUE","",+H33*$D$26) ->  | J33: =IF('6.2 CBR B'!U$18="TRUE","",+I33/12) -> 
B34: Customer 2 | D34: 160286.53 | E34: =SUM(IF('6. Class A Consumption Data'!K30:L30="B",'6. Class A Consumption Data'!E30:F30)) -> 160286.53 | H34: =IFERROR(+D34/$D$183,0) -> 0.006708340205 | I34: =IF('6.2 CBR B'!U$18="TRUE","",+H34*$D$26) ->  | J34: =IF('6.2 CBR B'!U$18="TRUE","",+I34/12) -> 
B35: Customer 3 | D35: 6106895.88 | E35: =SUM(IF('6. Class A Consumption Data'!K31:L31="B",'6. Class A Consumption Data'!E31:F31)) -> 6106895.88 | H35: 0.2555868865 | I35: =IF('6.2 CBR B'!U$18="TRUE","",+H35*$D$26) ->  | J35: =IF('6.2 CBR B'!U$18="TRUE","",+I35/12) -> 
B36: Customer 4 | D36: 3755624.76 | E36: =SUM(IF('6. Class A Consumption Data'!K32:L32="B",'6. Class A Consumption Data'!E32:F32)) -> 3755624.76 | H36: 0.1571810717 | I36: =IF('6.2 CBR B'!U$18="TRUE","",+H36*$D$26) ->  | J36: =IF('6.2 CBR B'!U$18="TRUE","",+I36/12) -> 
B37: Customer 5 | D37: 1957741.29 | E37: =SUM(IF('6. Class A Consumption Data'!K33:L33="B",'6. Class A Consumption Data'!E33:F33)) -> 1957741.29 | H37: 0.08193573475 | I37: =IF('6.2 CBR B'!U$18="TRUE","",+H37*$D$26) ->  | J37: =IF('6.2 CBR B'!U$18="TRUE","",+I37/12) -> 
B38: Customer 6 | D38: 2508468 | E38: =SUM(IF('6. Class A Consumption Data'!K34:L34="B",'6. Class A Consumption Data'!E34:F34)) -> 2508468 | H38: 0.1049848464 | I38: =IF('6.2 CBR B'!U$18="TRUE","",+H38*$D$26) ->  | J38: =IF('6.2 CBR B'!U$18="TRUE","",+I38/12) -> 
B39: Customer 7 | D39: 1872609.8 | E39: =SUM(IF('6. Class A Consumption Data'!K35:L35="B",'6. Class A Consumption Data'!E35:F35)) -> 1872609.8 | H39: 0.07837279657 | I39: =IF('6.2 CBR B'!U$18="TRUE","",+H39*$D$26) ->  | J39: =IF('6.2 CBR B'!U$18="TRUE","",+I39/12) -> 
B40: Customer 8 | D40: 1598698.26 | E40: =SUM(IF('6. Class A Consumption Data'!K36:L36="B",'6. Class A Consumption Data'!E36:F36)) -> 1598698.26 | H40: 0.06690900235 | I40: =IF('6.2 CBR B'!U$18="TRUE","",+H40*$D$26) ->  | J40: =IF('6.2 CBR B'!U$18="TRUE","",+I40/12) -> 
B41: Customer 9 | D41: 1100719.48 | E41: =SUM(IF('6. Class A Consumption Data'!K37:L37="B",'6. Class A Consumption Data'!E37:F37)) -> 1100719.48 | H41: 0.04606750637 | I41: =IF('6.2 CBR B'!U$18="TRUE","",+H41*$D$26) ->  | J41: =IF('6.2 CBR B'!U$18="TRUE","",+I41/12) -> 
B42: Customer 10 | D42: 413780.19 | E42: =SUM(IF('6. Class A Consumption Data'!K38:L38="B",'6. Class A Consumption Data'!E38:F38)) -> 413780.19 | H42: 0.0173176017 | I42: =IF('6.2 CBR B'!U$18="TRUE","",+H42*$D$26) ->  | J42: =IF('6.2 CBR B'!U$18="TRUE","",+I42/12) -> 
B43: Customer 11 | D43: 0 | E43: =SUM(IF('6. Class A Consumption Data'!K39:L39="B",'6. Class A Consumption Data'!E39:F39)) -> 0 | H43: 0 | I43: =IF('6.2 CBR B'!U$18="TRUE","",+H43*$D$26) ->  | J43: =IF('6.2 CBR B'!U$18="TRUE","",+I43/12) -> 
B44: Customer 12 | D44: 0 | E44: =SUM(IF('6. Class A Consumption Data'!K40:L40="B",'6. Class A Consumption Data'!E40:F40)) -> 0 | H44: 0 | I44: =IF('6.2 CBR B'!U$18="TRUE","",+H44*$D$26) ->  | J44: =IF('6.2 CBR B'!U$18="TRUE","",+I44/12) -> 
B45: Customer 13 | D45: 0 | E45: =SUM(IF('6. Class A Consumption Data'!K41:L41="B",'6. Class A Consumption Data'!E41:F41)) -> 0 | H45: 0 | I45: =IF('6.2 CBR B'!U$18="TRUE","",+H45*$D$26) ->  | J45: =IF('6.2 CBR B'!U$18="TRUE","",+I45/12) -> 
B46: Customer 14 | D46: 0 | E46: =SUM(IF('6. Class A Consumption Data'!K42:L42="B",'6. Class A Consumption Data'!E42:F42)) -> 0 | H46: 0 | I46: =IF('6.2 CBR B'!U$18="TRUE","",+H46*$D$26) ->  | J46: =IF('6.2 CBR B'!U$18="TRUE","",+I46/12) -> 
B47: Customer 15 | D47: 0 | E47: =SUM(IF('6. Class A Consumption Data'!K43:L43="B",'6. Class A Consumption Data'!E43:F43)) -> 0 | H47: 0 | I47: =IF('6.2 CBR B'!U$18="TRUE","",+H47*$D$26) ->  | J47: =IF('6.2 CBR B'!U$18="TRUE","",+I47/12) -> 
B48: Customer 16 | D48: 0 | E48: =SUM(IF('6. Class A Consumption Data'!K44:L44="B",'6. Class A Consumption Data'!E44:F44)) -> 0 | H48: 0 | I48: =IF('6.2 CBR B'!U$18="TRUE","",+H48*$D$26) ->  | J48: =IF('6.2 CBR B'!U$18="TRUE","",+I48/12) -> 
B49: Customer 17 | D49: 0 | E49: =SUM(IF('6. Class A Consumption Data'!K45:L45="B",'6. Class A Consumption Data'!E45:F45)) -> 0 | H49: 0 | I49: =IF('6.2 CBR B'!U$18="TRUE","",+H49*$D$26) ->  | J49: =IF('6.2 CBR B'!U$18="TRUE","",+I49/12) -> 
B50: Customer 18 | D50: 0 | E50: =SUM(IF('6. Class A Consumption Data'!K46:L46="B",'6. Class A Consumption Data'!E46:F46)) -> 0 | H50: 0 | I50: =IF('6.2 CBR B'!U$18="TRUE","",+H50*$D$26) ->  | J50: =IF('6.2 CBR B'!U$18="TRUE","",+I50/12) -> 
B51: Customer 19 | D51: 0 | E51: =SUM(IF('6. Class A Consumption Data'!K47:L47="B",'6. Class A Consumption Data'!E47:F47)) -> 0 | H51: 0 | I51: =IF('6.2 CBR B'!U$18="TRUE","",+H51*$D$26) ->  | J51: =IF('6.2 CBR B'!U$18="TRUE","",+I51/12) -> 
B52: Customer 20 | D52: 0 | E52: =SUM(IF('6. Class A Consumption Data'!K48:L48="B",'6. Class A Consumption Data'!E48:F48)) -> 0 | H52: 0 | I52: =IF('6.2 CBR B'!U$18="TRUE","",+H52*$D$26) ->  | J52: =IF('6.2 CBR B'!U$18="TRUE","",+I52/12) -> 
B53: Customer 21 | D53: 0 | E53: =SUM(IF('6. Class A Consumption Data'!K49:L49="B",'6. Class A Consumption Data'!E49:F49)) -> 0 | H53: 0 | I53: =IF('6.2 CBR B'!U$18="TRUE","",+H53*$D$26) ->  | J53: =IF('6.2 CBR B'!U$18="TRUE","",+I53/12) -> 
B54: Customer 22 | D54: 0 | E54: =SUM(IF('6. Class A Consumption Data'!K50:L50="B",'6. Class A Consumption Data'!E50:F50)) -> 0 | H54: 0 | I54: =IF('6.2 CBR B'!U$18="TRUE","",+H54*$D$26) ->  | J54: =IF('6.2 CBR B'!U$18="TRUE","",+I54/12) -> 
B55: Customer 23 | D55: 0 | E55: =SUM(IF('6. Class A Consumption Data'!K51:L51="B",'6. Class A Consumption Data'!E51:F51)) -> 0 | H55: 0 | I55: =IF('6.2 CBR B'!U$18="TRUE","",+H55*$D$26) ->  | J55: =IF('6.2 CBR B'!U$18="TRUE","",+I55/12) -> 
B56: Customer 24 | D56: 0 | E56: =SUM(IF('6. Class A Consumption Data'!K52:L52="B",'6. Class A Consumption Data'!E52:F52)) -> 0 | H56: 0 | I56: =IF('6.2 CBR B'!U$18="TRUE","",+H56*$D$26) ->  | J56: =IF('6.2 CBR B'!U$18="TRUE","",+I56/12) -> 
B57: Customer 25 | D57: 0 | E57: =SUM(IF('6. Class A Consumption Data'!K53:L53="B",'6. Class A Consumption Data'!E53:F53)) -> 0 | H57: 0 | I57: =IF('6.2 CBR B'!U$18="TRUE","",+H57*$D$26) ->  | J57: =IF('6.2 CBR B'!U$18="TRUE","",+I57/12) -> 
B58: Customer 26 | D58: 0 | E58: =SUM(IF('6. Class A Consumption Data'!K54:L54="B",'6. Class A Consumption Data'!E54:F54)) -> 0 | H58: 0 | I58: =IF('6.2 CBR B'!U$18="TRUE","",+H58*$D$26) ->  | J58: =IF('6.2 CBR B'!U$18="TRUE","",+I58/12) -> 
B59: Customer 27 | D59: 0 | E59: =SUM(IF('6. Class A Consumption Data'!K55:L55="B",'6. Class A Consumption Data'!E55:F55)) -> 0 | H59: 0 | I59: =IF('6.2 CBR B'!U$18="TRUE","",+H59*$D$26) ->  | J59: =IF('6.2 CBR B'!U$18="TRUE","",+I59/12) -> 
B60: Customer 28 | D60: 0 | E60: =SUM(IF('6. Class A Consumption Data'!K56:L56="B",'6. Class A Consumption Data'!E56:F56)) -> 0 | H60: 0 | I60: =IF('6.2 CBR B'!U$18="TRUE","",+H60*$D$26) ->  | J60: =IF('6.2 CBR B'!U$18="TRUE","",+I60/12) -> 
B61: Customer 29 | D61: 0 | E61: =SUM(IF('6. Class A Consumption Data'!K57:L57="B",'6. Class A Consumption Data'!E57:F57)) -> 0 | H61: 0 | I61: =IF('6.2 CBR B'!U$18="TRUE","",+H61*$D$26) ->  | J61: =IF('6.2 CBR B'!U$18="TRUE","",+I61/12) -> 
B62: Customer 30 | D62: 0 | E62: =SUM(IF('6. Class A Consumption Data'!K58:L58="B",'6. Class A Consumption Data'!E58:F58)) -> 0 | H62: 0 | I62: =IF('6.2 CBR B'!U$18="TRUE","",+H62*$D$26) ->  | J62: =IF('6.2 CBR B'!U$18="TRUE","",+I62/12) -> 
B63: Customer 31 | D63: 0 | E63: =SUM(IF('6. Class A Consumption Data'!K59:L59="B",'6. Class A Consumption Data'!E59:F59)) -> 0 | H63: 0 | I63: =IF('6.2 CBR B'!U$18="TRUE","",+H63*$D$26) ->  | J63: =IF('6.2 CBR B'!U$18="TRUE","",+I63/12) -> 
B64: Customer 32 | D64: 0 | E64: =SUM(IF('6. Class A Consumption Data'!K60:L60="B",'6. Class A Consumption Data'!E60:F60)) -> 0 | H64: 0 | I64: =IF('6.2 CBR B'!U$18="TRUE","",+H64*$D$26) ->  | J64: =IF('6.2 CBR B'!U$18="TRUE","",+I64/12) -> 
B65: Customer 33 | D65: 0 | E65: =SUM(IF('6. Class A Consumption Data'!K61:L61="B",'6. Class A Consumption Data'!E61:F61)) -> 0 | H65: 0 | I65: =IF('6.2 CBR B'!U$18="TRUE","",+H65*$D$26) ->  | J65: =IF('6.2 CBR B'!U$18="TRUE","",+I65/12) -> 
B66: Customer 34 | D66: 0 | E66: =SUM(IF('6. Class A Consumption Data'!K62:L62="B",'6. Class A Consumption Data'!E62:F62)) -> 0 | H66: 0 | I66: =IF('6.2 CBR B'!U$18="TRUE","",+H66*$D$26) ->  | J66: =IF('6.2 CBR B'!U$18="TRUE","",+I66/12) -> 
B67: Customer 35 | D67: 0 | E67: =SUM(IF('6. Class A Consumption Data'!K63:L63="B",'6. Class A Consumption Data'!E63:F63)) -> 0 | H67: 0 | I67: =IF('6.2 CBR B'!U$18="TRUE","",+H67*$D$26) ->  | J67: =IF('6.2 CBR B'!U$18="TRUE","",+I67/12) -> 
B68: Customer 36 | D68: 0 | E68: =SUM(IF('6. Class A Consumption Data'!K64:L64="B",'6. Class A Consumption Data'!E64:F64)) -> 0 | H68: 0 | I68: =IF('6.2 CBR B'!U$18="TRUE","",+H68*$D$26) ->  | J68: =IF('6.2 CBR B'!U$18="TRUE","",+I68/12) -> 
B69: Customer 37 | D69: 0 | E69: =SUM(IF('6. Class A Consumption Data'!K65:L65="B",'6. Class A Consumption Data'!E65:F65)) -> 0 | H69: 0 | I69: =IF('6.2 CBR B'!U$18="TRUE","",+H69*$D$26) ->  | J69: =IF('6.2 CBR B'!U$18="TRUE","",+I69/12) -> 
B70: Customer 38 | D70: 0 | E70: =SUM(IF('6. Class A Consumption Data'!K66:L66="B",'6. Class A Consumption Data'!E66:F66)) -> 0 | H70: 0 | I70: =IF('6.2 CBR B'!U$18="TRUE","",+H70*$D$26) ->  | J70: =IF('6.2 CBR B'!U$18="TRUE","",+I70/12) -> 
B71: Customer 39 | D71: 0 | E71: =SUM(IF('6. Class A Consumption Data'!K67:L67="B",'6. Class A Consumption Data'!E67:F67)) -> 0 | H71: 0 | I71: =IF('6.2 CBR B'!U$18="TRUE","",+H71*$D$26) ->  | J71: =IF('6.2 CBR B'!U$18="TRUE","",+I71/12) -> 
B72: Customer 40 | D72: 0 | E72: =SUM(IF('6. Class A Consumption Data'!K68:L68="B",'6. Class A Consumption Data'!E68:F68)) -> 0 | H72: 0 | I72: =IF('6.2 CBR B'!U$18="TRUE","",+H72*$D$26) ->  | J72: =IF('6.2 CBR B'!U$18="TRUE","",+I72/12) -> 
B73: Customer 41 | D73: 0 | E73: =SUM(IF('6. Class A Consumption Data'!K69:L69="B",'6. Class A Consumption Data'!E69:F69)) -> 0 | H73: 0 | I73: =IF('6.2 CBR B'!U$18="TRUE","",+H73*$D$26) ->  | J73: =IF('6.2 CBR B'!U$18="TRUE","",+I73/12) -> 
B74: Customer 42 | D74: 0 | E74: =SUM(IF('6. Class A Consumption Data'!K70:L70="B",'6. Class A Consumption Data'!E70:F70)) -> 0 | H74: 0 | I74: =IF('6.2 CBR B'!U$18="TRUE","",+H74*$D$26) ->  | J74: =IF('6.2 CBR B'!U$18="TRUE","",+I74/12) -> 
B75: Customer 43 | D75: 0 | E75: =SUM(IF('6. Class A Consumption Data'!K71:L71="B",'6. Class A Consumption Data'!E71:F71)) -> 0 | H75: 0 | I75: =IF('6.2 CBR B'!U$18="TRUE","",+H75*$D$26) ->  | J75: =IF('6.2 CBR B'!U$18="TRUE","",+I75/12) -> 
B76: Customer 44 | D76: 0 | E76: =SUM(IF('6. Class A Consumption Data'!K72:L72="B",'6. Class A Consumption Data'!E72:F72)) -> 0 | H76: 0 | I76: =IF('6.2 CBR B'!U$18="TRUE","",+H76*$D$26) ->  | J76: =IF('6.2 CBR B'!U$18="TRUE","",+I76/12) -> 
B77: Customer 45 | D77: 0 | E77: =SUM(IF('6. Class A Consumption Data'!K73:L73="B",'6. Class A Consumption Data'!E73:F73)) -> 0 | H77: 0 | I77: =IF('6.2 CBR B'!U$18="TRUE","",+H77*$D$26) ->  | J77: =IF('6.2 CBR B'!U$18="TRUE","",+I77/12) -> 
B78: Customer 46 | D78: 0 | E78: =SUM(IF('6. Class A Consumption Data'!K74:L74="B",'6. Class A Consumption Data'!E74:F74)) -> 0 | H78: 0 | I78: =IF('6.2 CBR B'!U$18="TRUE","",+H78*$D$26) ->  | J78: =IF('6.2 CBR B'!U$18="TRUE","",+I78/12) -> 
B79: Customer 47 | D79: 0 | E79: =SUM(IF('6. Class A Consumption Data'!K75:L75="B",'6. Class A Consumption Data'!E75:F75)) -> 0 | H79: 0 | I79: =IF('6.2 CBR B'!U$18="TRUE","",+H79*$D$26) ->  | J79: =IF('6.2 CBR B'!U$18="TRUE","",+I79/12) -> 
B80: Customer 48 | D80: 0 | E80: =SUM(IF('6. Class A Consumption Data'!K76:L76="B",'6. Class A Consumption Data'!E76:F76)) -> 0 | H80: 0 | I80: =IF('6.2 CBR B'!U$18="TRUE","",+H80*$D$26) ->  | J80: =IF('6.2 CBR B'!U$18="TRUE","",+I80/12) -> 
B81: Customer 49 | D81: 0 | E81: =SUM(IF('6. Class A Consumption Data'!K77:L77="B",'6. Class A Consumption Data'!E77:F77)) -> 0 | H81: 0 | I81: =IF('6.2 CBR B'!U$18="TRUE","",+H81*$D$26) ->  | J81: =IF('6.2 CBR B'!U$18="TRUE","",+I81/12) -> 
B82: Customer 50 | D82: 0 | E82: =SUM(IF('6. Class A Consumption Data'!K78:L78="B",'6. Class A Consumption Data'!E78:F78)) -> 0 | H82: 0 | I82: =IF('6.2 CBR B'!U$18="TRUE","",+H82*$D$26) ->  | J82: =IF('6.2 CBR B'!U$18="TRUE","",+I82/12) -> 
B83: Customer 51 | D83: 0 | E83: =SUM(IF('6. Class A Consumption Data'!K79:L79="B",'6. Class A Consumption Data'!E79:F79)) -> 0 | H83: 0 | I83: =IF('6.2 CBR B'!U$18="TRUE","",+H83*$D$26) ->  | J83: =IF('6.2 CBR B'!U$18="TRUE","",+I83/12) -> 
B84: Customer 52 | D84: 0 | E84: =SUM(IF('6. Class A Consumption Data'!K80:L80="B",'6. Class A Consumption Data'!E80:F80)) -> 0 | H84: 0 | I84: =IF('6.2 CBR B'!U$18="TRUE","",+H84*$D$26) ->  | J84: =IF('6.2 CBR B'!U$18="TRUE","",+I84/12) -> 
B85: Customer 53 | D85: 0 | E85: =SUM(IF('6. Class A Consumption Data'!K81:L81="B",'6. Class A Consumption Data'!E81:F81)) -> 0 | H85: 0 | I85: =IF('6.2 CBR B'!U$18="TRUE","",+H85*$D$26) ->  | J85: =IF('6.2 CBR B'!U$18="TRUE","",+I85/12) -> 
B86: Customer 54 | D86: 0 | E86: =SUM(IF('6. Class A Consumption Data'!K82:L82="B",'6. Class A Consumption Data'!E82:F82)) -> 0 | H86: 0 | I86: =IF('6.2 CBR B'!U$18="TRUE","",+H86*$D$26) ->  | J86: =IF('6.2 CBR B'!U$18="TRUE","",+I86/12) -> 
B87: Customer 55 | D87: 0 | E87: =SUM(IF('6. Class A Consumption Data'!K83:L83="B",'6. Class A Consumption Data'!E83:F83)) -> 0 | H87: 0 | I87: =IF('6.2 CBR B'!U$18="TRUE","",+H87*$D$26) ->  | J87: =IF('6.2 CBR B'!U$18="TRUE","",+I87/12) -> 
B88: Customer 56 | D88: 0 | E88: =SUM(IF('6. Class A Consumption Data'!K84:L84="B",'6. Class A Consumption Data'!E84:F84)) -> 0 | H88: 0 | I88: =IF('6.2 CBR B'!U$18="TRUE","",+H88*$D$26) ->  | J88: =IF('6.2 CBR B'!U$18="TRUE","",+I88/12) -> 
B89: Customer 57 | D89: 0 | E89: =SUM(IF('6. Class A Consumption Data'!K85:L85="B",'6. Class A Consumption Data'!E85:F85)) -> 0 | H89: 0 | I89: =IF('6.2 CBR B'!U$18="TRUE","",+H89*$D$26) ->  | J89: =IF('6.2 CBR B'!U$18="TRUE","",+I89/12) -> 
B90: Customer 58 | D90: 0 | E90: =SUM(IF('6. Class A Consumption Data'!K86:L86="B",'6. Class A Consumption Data'!E86:F86)) -> 0 | H90: 0 | I90: =IF('6.2 CBR B'!U$18="TRUE","",+H90*$D$26) ->  | J90: =IF('6.2 CBR B'!U$18="TRUE","",+I90/12) -> 
B91: Customer 59 | D91: 0 | E91: =SUM(IF('6. Class A Consumption Data'!K87:L87="B",'6. Class A Consumption Data'!E87:F87)) -> 0 | H91: 0 | I91: =IF('6.2 CBR B'!U$18="TRUE","",+H91*$D$26) ->  | J91: =IF('6.2 CBR B'!U$18="TRUE","",+I91/12) -> 
B92: Customer 60 | D92: 0 | E92: =SUM(IF('6. Class A Consumption Data'!K88:L88="B",'6. Class A Consumption Data'!E88:F88)) -> 0 | H92: 0 | I92: =IF('6.2 CBR B'!U$18="TRUE","",+H92*$D$26) ->  | J92: =IF('6.2 CBR B'!U$18="TRUE","",+I92/12) -> 
B93: Customer 61 | D93: 0 | E93: =SUM(IF('6. Class A Consumption Data'!K89:L89="B",'6. Class A Consumption Data'!E89:F89)) -> 0 | H93: 0 | I93: =IF('6.2 CBR B'!U$18="TRUE","",+H93*$D$26) ->  | J93: =IF('6.2 CBR B'!U$18="TRUE","",+I93/12) -> 
B94: Customer 62 | D94: 0 | E94: =SUM(IF('6. Class A Consumption Data'!K90:L90="B",'6. Class A Consumption Data'!E90:F90)) -> 0 | H94: 0 | I94: =IF('6.2 CBR B'!U$18="TRUE","",+H94*$D$26) ->  | J94: =IF('6.2 CBR B'!U$18="TRUE","",+I94/12) -> 
B95: Customer 63 | D95: 0 | E95: =SUM(IF('6. Class A Consumption Data'!K91:L91="B",'6. Class A Consumption Data'!E91:F91)) -> 0 | H95: 0 | I95: =IF('6.2 CBR B'!U$18="TRUE","",+H95*$D$26) ->  | J95: =IF('6.2 CBR B'!U$18="TRUE","",+I95/12) -> 
B96: Customer 64 | D96: 0 | E96: =SUM(IF('6. Class A Consumption Data'!K92:L92="B",'6. Class A Consumption Data'!E92:F92)) -> 0 | H96: 0 | I96: =IF('6.2 CBR B'!U$18="TRUE","",+H96*$D$26) ->  | J96: =IF('6.2 CBR B'!U$18="TRUE","",+I96/12) -> 
B97: Customer 65 | D97: =SUM(E97:G97) -> 0 | E97: =SUM(IF('6. Class A Consumption Data'!K93:L93="B",'6. Class A Consumption Data'!E93:F93)) -> 0 | H97: 0 | I97: =IF('6.2 CBR B'!U$18="TRUE","",+H97*$D$26) ->  | J97: =IF('6.2 CBR B'!U$18="TRUE","",+I97/12) -> 
B98: Customer 66 | D98: 0 | E98: =SUM(IF('6. Class A Consumption Data'!K94:L94="B",'6. Class A Consumption Data'!E94:F94)) -> 0 | H98: =IFERROR(+D98/$D$183,0) -> 0 | I98: =IF('6.2 CBR B'!U$18="TRUE","",+H98*$D$26) ->  | J98: =IF('6.2 CBR B'!U$18="TRUE","",+I98/12) -> 
B99: Customer 67 | D99: 0 | E99: =SUM(IF('6. Class A Consumption Data'!K95:L95="B",'6. Class A Consumption Data'!E95:F95)) -> 0 | H99: 0 | I99: =IF('6.2 CBR B'!U$18="TRUE","",+H99*$D$26) ->  | J99: =IF('6.2 CBR B'!U$18="TRUE","",+I99/12) -> 
B100: Customer 68 | D100: 0 | E100: =SUM(IF('6. Class A Consumption Data'!K96:L96="B",'6. Class A Consumption Data'!E96:F96)) -> 0 | H100: 0 | I100: =IF('6.2 CBR B'!U$18="TRUE","",+H100*$D$26) ->  | J100: =IF('6.2 CBR B'!U$18="TRUE","",+I100/12) -> 
B101: Customer 69 | D101: 0 | E101: =SUM(IF('6. Class A Consumption Data'!K97:L97="B",'6. Class A Consumption Data'!E97:F97)) -> 0 | H101: 0 | I101: =IF('6.2 CBR B'!U$18="TRUE","",+H101*$D$26) ->  | J101: =IF('6.2 CBR B'!U$18="TRUE","",+I101/12) -> 
B102: Customer 70 | D102: 0 | E102: =SUM(IF('6. Class A Consumption Data'!K98:L98="B",'6. Class A Consumption Data'!E98:F98)) -> 0 | H102: 0 | I102: =IF('6.2 CBR B'!U$18="TRUE","",+H102*$D$26) ->  | J102: =IF('6.2 CBR B'!U$18="TRUE","",+I102/12) -> 
B103: Customer 71 | D103: 0 | E103: =SUM(IF('6. Class A Consumption Data'!K99:L99="B",'6. Class A Consumption Data'!E99:F99)) -> 0 | H103: 0 | I103: =IF('6.2 CBR B'!U$18="TRUE","",+H103*$D$26) ->  | J103: =IF('6.2 CBR B'!U$18="TRUE","",+I103/12) -> 
B104: Customer 72 | D104: 0 | E104: =SUM(IF('6. Class A Consumption Data'!K100:L100="B",'6. Class A Consumption Data'!E100:F100)) -> 0 | H104: 0 | I104: =IF('6.2 CBR B'!U$18="TRUE","",+H104*$D$26) ->  | J104: =IF('6.2 CBR B'!U$18="TRUE","",+I104/12) -> 
B105: Customer 73 | D105: 0 | E105: =SUM(IF('6. Class A Consumption Data'!K101:L101="B",'6. Class A Consumption Data'!E101:F101)) -> 0 | H105: 0 | I105: =IF('6.2 CBR B'!U$18="TRUE","",+H105*$D$26) ->  | J105: =IF('6.2 CBR B'!U$18="TRUE","",+I105/12) -> 
B106: Customer 74 | D106: 0 | E106: =SUM(IF('6. Class A Consumption Data'!K102:L102="B",'6. Class A Consumption Data'!E102:F102)) -> 0 | H106: 0 | I106: =IF('6.2 CBR B'!U$18="TRUE","",+H106*$D$26) ->  | J106: =IF('6.2 CBR B'!U$18="TRUE","",+I106/12) -> 
B107: Customer 75 | D107: 0 | E107: =SUM(IF('6. Class A Consumption Data'!K103:L103="B",'6. Class A Consumption Data'!E103:F103)) -> 0 | H107: 0 | I107: =IF('6.2 CBR B'!U$18="TRUE","",+H107*$D$26) ->  | J107: =IF('6.2 CBR B'!U$18="TRUE","",+I107/12) -> 
B108: Customer 76 | D108: 0 | E108: =SUM(IF('6. Class A Consumption Data'!K104:L104="B",'6. Class A Consumption Data'!E104:F104)) -> 0 | H108: 0 | I108: =IF('6.2 CBR B'!U$18="TRUE","",+H108*$D$26) ->  | J108: =IF('6.2 CBR B'!U$18="TRUE","",+I108/12) -> 
B109: Customer 77 | D109: 0 | E109: =SUM(IF('6. Class A Consumption Data'!K105:L105="B",'6. Class A Consumption Data'!E105:F105)) -> 0 | H109: 0 | I109: =IF('6.2 CBR B'!U$18="TRUE","",+H109*$D$26) ->  | J109: =IF('6.2 CBR B'!U$18="TRUE","",+I109/12) -> 
B110: Customer 78 | D110: 0 | E110: =SUM(IF('6. Class A Consumption Data'!K106:L106="B",'6. Class A Consumption Data'!E106:F106)) -> 0 | H110: 0 | I110: =IF('6.2 CBR B'!U$18="TRUE","",+H110*$D$26) ->  | J110: =IF('6.2 CBR B'!U$18="TRUE","",+I110/12) -> 
B111: Customer 79 | D111: 0 | E111: =SUM(IF('6. Class A Consumption Data'!K107:L107="B",'6. Class A Consumption Data'!E107:F107)) -> 0 | H111: 0 | I111: =IF('6.2 CBR B'!U$18="TRUE","",+H111*$D$26) ->  | J111: =IF('6.2 CBR B'!U$18="TRUE","",+I111/12) -> 
B112: Customer 80 | D112: 0 | E112: =SUM(IF('6. Class A Consumption Data'!K108:L108="B",'6. Class A Consumption Data'!E108:F108)) -> 0 | H112: 0 | I112: =IF('6.2 CBR B'!U$18="TRUE","",+H112*$D$26) ->  | J112: =IF('6.2 CBR B'!U$18="TRUE","",+I112/12) -> 
B113: Customer 81 | D113: 0 | E113: =SUM(IF('6. Class A Consumption Data'!K109:L109="B",'6. Class A Consumption Data'!E109:F109)) -> 0 | H113: 0 | I113: =IF('6.2 CBR B'!U$18="TRUE","",+H113*$D$26) ->  | J113: =IF('6.2 CBR B'!U$18="TRUE","",+I113/12) -> 
B114: Customer 82 | D114: 0 | E114: =SUM(IF('6. Class A Consumption Data'!K110:L110="B",'6. Class A Consumption Data'!E110:F110)) -> 0 | H114: 0 | I114: =IF('6.2 CBR B'!U$18="TRUE","",+H114*$D$26) ->  | J114: =IF('6.2 CBR B'!U$18="TRUE","",+I114/12) -> 
B115: Customer 83 | D115: 0 | E115: =SUM(IF('6. Class A Consumption Data'!K111:L111="B",'6. Class A Consumption Data'!E111:F111)) -> 0 | H115: 0 | I115: =IF('6.2 CBR B'!U$18="TRUE","",+H115*$D$26) ->  | J115: =IF('6.2 CBR B'!U$18="TRUE","",+I115/12) -> 
B116: Customer 84 | D116: 0 | E116: =SUM(IF('6. Class A Consumption Data'!K112:L112="B",'6. Class A Consumption Data'!E112:F112)) -> 0 | H116: 0 | I116: =IF('6.2 CBR B'!U$18="TRUE","",+H116*$D$26) ->  | J116: =IF('6.2 CBR B'!U$18="TRUE","",+I116/12) -> 
B117: Customer 85 | D117: 0 | E117: =SUM(IF('6. Class A Consumption Data'!K113:L113="B",'6. Class A Consumption Data'!E113:F113)) -> 0 | H117: 0 | I117: =IF('6.2 CBR B'!U$18="TRUE","",+H117*$D$26) ->  | J117: =IF('6.2 CBR B'!U$18="TRUE","",+I117/12) -> 
B118: Customer 86 | D118: 0 | E118: =SUM(IF('6. Class A Consumption Data'!K114:L114="B",'6. Class A Consumption Data'!E114:F114)) -> 0 | H118: 0 | I118: =IF('6.2 CBR B'!U$18="TRUE","",+H118*$D$26) ->  | J118: =IF('6.2 CBR B'!U$18="TRUE","",+I118/12) -> 
B119: Customer 87 | D119: 0 | E119: =SUM(IF('6. Class A Consumption Data'!K115:L115="B",'6. Class A Consumption Data'!E115:F115)) -> 0 | H119: 0 | I119: =IF('6.2 CBR B'!U$18="TRUE","",+H119*$D$26) ->  | J119: =IF('6.2 CBR B'!U$18="TRUE","",+I119/12) -> 
B120: Customer 88 | D120: 0 | E120: =SUM(IF('6. Class A Consumption Data'!K116:L116="B",'6. Class A Consumption Data'!E116:F116)) -> 0 | H120: 0 | I120: =IF('6.2 CBR B'!U$18="TRUE","",+H120*$D$26) ->  | J120: =IF('6.2 CBR B'!U$18="TRUE","",+I120/12) -> 
B121: Customer 89 | D121: 0 | E121: =SUM(IF('6. Class A Consumption Data'!K117:L117="B",'6. Class A Consumption Data'!E117:F117)) -> 0 | H121: 0 | I121: =IF('6.2 CBR B'!U$18="TRUE","",+H121*$D$26) ->  | J121: =IF('6.2 CBR B'!U$18="TRUE","",+I121/12) -> 
B122: Customer 90 | D122: 0 | E122: =SUM(IF('6. Class A Consumption Data'!K118:L118="B",'6. Class A Consumption Data'!E118:F118)) -> 0 | H122: 0 | I122: =IF('6.2 CBR B'!U$18="TRUE","",+H122*$D$26) ->  | J122: =IF('6.2 CBR B'!U$18="TRUE","",+I122/12) -> 
B123: Customer 91 | D123: 0 | E123: =SUM(IF('6. Class A Consumption Data'!K119:L119="B",'6. Class A Consumption Data'!E119:F119)) -> 0 | H123: 0 | I123: =IF('6.2 CBR B'!U$18="TRUE","",+H123*$D$26) ->  | J123: =IF('6.2 CBR B'!U$18="TRUE","",+I123/12) -> 
B124: Customer 92 | D124: 0 | E124: =SUM(IF('6. Class A Consumption Data'!K120:L120="B",'6. Class A Consumption Data'!E120:F120)) -> 0 | H124: 0 | I124: =IF('6.2 CBR B'!U$18="TRUE","",+H124*$D$26) ->  | J124: =IF('6.2 CBR B'!U$18="TRUE","",+I124/12) -> 
B125: Customer 93 | D125: 0 | E125: =SUM(IF('6. Class A Consumption Data'!K121:L121="B",'6. Class A Consumption Data'!E121:F121)) -> 0 | H125: 0 | I125: =IF('6.2 CBR B'!U$18="TRUE","",+H125*$D$26) ->  | J125: =IF('6.2 CBR B'!U$18="TRUE","",+I125/12) -> 
B126: Customer 94 | D126: 0 | E126: =SUM(IF('6. Class A Consumption Data'!K122:L122="B",'6. Class A Consumption Data'!E122:F122)) -> 0 | H126: 0 | I126: =IF('6.2 CBR B'!U$18="TRUE","",+H126*$D$26) ->  | J126: =IF('6.2 CBR B'!U$18="TRUE","",+I126/12) -> 
B127: Customer 95 | D127: 0 | E127: =SUM(IF('6. Class A Consumption Data'!K123:L123="B",'6. Class A Consumption Data'!E123:F123)) -> 0 | H127: 0 | I127: =IF('6.2 CBR B'!U$18="TRUE","",+H127*$D$26) ->  | J127: =IF('6.2 CBR B'!U$18="TRUE","",+I127/12) -> 
B128: Customer 96 | D128: 0 | E128: =SUM(IF('6. Class A Consumption Data'!K124:L124="B",'6. Class A Consumption Data'!E124:F124)) -> 0 | H128: 0 | I128: =IF('6.2 CBR B'!U$18="TRUE","",+H128*$D$26) ->  | J128: =IF('6.2 CBR B'!U$18="TRUE","",+I128/12) -> 
B129: Customer 97 | D129: 0 | E129: =SUM(IF('6. Class A Consumption Data'!K125:L125="B",'6. Class A Consumption Data'!E125:F125)) -> 0 | H129: 0 | I129: =IF('6.2 CBR B'!U$18="TRUE","",+H129*$D$26) ->  | J129: =IF('6.2 CBR B'!U$18="TRUE","",+I129/12) -> 
B130: Customer 98 | D130: 0 | E130: =SUM(IF('6. Class A Consumption Data'!K126:L126="B",'6. Class A Consumption Data'!E126:F126)) -> 0 | H130: 0 | I130: =IF('6.2 CBR B'!U$18="TRUE","",+H130*$D$26) ->  | J130: =IF('6.2 CBR B'!U$18="TRUE","",+I130/12) -> 
B131: Customer 99 | D131: 0 | E131: =SUM(IF('6. Class A Consumption Data'!K127:L127="B",'6. Class A Consumption Data'!E127:F127)) -> 0 | H131: 0 | I131: =IF('6.2 CBR B'!U$18="TRUE","",+H131*$D$26) ->  | J131: =IF('6.2 CBR B'!U$18="TRUE","",+I131/12) -> 
B132: Customer 100 | D132: 0 | E132: =SUM(IF('6. Class A Consumption Data'!K128:L128="B",'6. Class A Consumption Data'!E128:F128)) -> 0 | H132: 0 | I132: =IF('6.2 CBR B'!U$18="TRUE","",+H132*$D$26) ->  | J132: =IF('6.2 CBR B'!U$18="TRUE","",+I132/12) -> 
B133: Customer 101 | D133: 0 | E133: =SUM(IF('6. Class A Consumption Data'!K129:L129="B",'6. Class A Consumption Data'!E129:F129)) -> 0 | H133: 0 | I133: =IF('6.2 CBR B'!U$18="TRUE","",+H133*$D$26) ->  | J133: =IF('6.2 CBR B'!U$18="TRUE","",+I133/12) -> 
B134: Customer 102 | D134: =SUM(E134:G134) -> 0 | E134: =SUM(IF('6. Class A Consumption Data'!K130:L130="B",'6. Class A Consumption Data'!E130:F130)) -> 0 | H134: 0 | I134: =IF('6.2 CBR B'!U$18="TRUE","",+H134*$D$26) ->  | J134: =IF('6.2 CBR B'!U$18="TRUE","",+I134/12) -> 
B135: Customer 103 | D135: 0 | E135: =SUM(IF('6. Class A Consumption Data'!K131:L131="B",'6. Class A Consumption Data'!E131:F131)) -> 0 | H135: 0 | I135: =IF('6.2 CBR B'!U$18="TRUE","",+H135*$D$26) ->  | J135: =IF('6.2 CBR B'!U$18="TRUE","",+I135/12) -> 
B136: Customer 104 | D136: 0 | E136: =SUM(IF('6. Class A Consumption Data'!K132:L132="B",'6. Class A Consumption Data'!E132:F132)) -> 0 | H136: 0 | I136: =IF('6.2 CBR B'!U$18="TRUE","",+H136*$D$26) ->  | J136: =IF('6.2 CBR B'!U$18="TRUE","",+I136/12) -> 
B137: Customer 105 | D137: 0 | E137: =SUM(IF('6. Class A Consumption Data'!K133:L133="B",'6. Class A Consumption Data'!E133:F133)) -> 0 | H137: 0 | I137: =IF('6.2 CBR B'!U$18="TRUE","",+H137*$D$26) ->  | J137: =IF('6.2 CBR B'!U$18="TRUE","",+I137/12) -> 
B138: Customer 106 | D138: 0 | E138: =SUM(IF('6. Class A Consumption Data'!K134:L134="B",'6. Class A Consumption Data'!E134:F134)) -> 0 | H138: 0 | I138: =IF('6.2 CBR B'!U$18="TRUE","",+H138*$D$26) ->  | J138: =IF('6.2 CBR B'!U$18="TRUE","",+I138/12) -> 
B139: Customer 107 | D139: 0 | E139: =SUM(IF('6. Class A Consumption Data'!K135:L135="B",'6. Class A Consumption Data'!E135:F135)) -> 0 | H139: 0 | I139: =IF('6.2 CBR B'!U$18="TRUE","",+H139*$D$26) ->  | J139: =IF('6.2 CBR B'!U$18="TRUE","",+I139/12) -> 
B140: Customer 108 | D140: 0 | E140: =SUM(IF('6. Class A Consumption Data'!K136:L136="B",'6. Class A Consumption Data'!E136:F136)) -> 0 | H140: 0 | I140: =IF('6.2 CBR B'!U$18="TRUE","",+H140*$D$26) ->  | J140: =IF('6.2 CBR B'!U$18="TRUE","",+I140/12) -> 
B141: Customer 109 | D141: 0 | E141: =SUM(IF('6. Class A Consumption Data'!K137:L137="B",'6. Class A Consumption Data'!E137:F137)) -> 0 | H141: 0 | I141: =IF('6.2 CBR B'!U$18="TRUE","",+H141*$D$26) ->  | J141: =IF('6.2 CBR B'!U$18="TRUE","",+I141/12) -> 
B142: Customer 110 | D142: 0 | E142: =SUM(IF('6. Class A Consumption Data'!K138:L138="B",'6. Class A Consumption Data'!E138:F138)) -> 0 | H142: 0 | I142: =IF('6.2 CBR B'!U$18="TRUE","",+H142*$D$26) ->  | J142: =IF('6.2 CBR B'!U$18="TRUE","",+I142/12) -> 
B143: Customer 111 | D143: 0 | E143: =SUM(IF('6. Class A Consumption Data'!K139:L139="B",'6. Class A Consumption Data'!E139:F139)) -> 0 | H143: 0 | I143: =IF('6.2 CBR B'!U$18="TRUE","",+H143*$D$26) ->  | J143: =IF('6.2 CBR B'!U$18="TRUE","",+I143/12) -> 
B144: Customer 112 | D144: 0 | E144: =SUM(IF('6. Class A Consumption Data'!K140:L140="B",'6. Class A Consumption Data'!E140:F140)) -> 0 | H144: 0 | I144: =IF('6.2 CBR B'!U$18="TRUE","",+H144*$D$26) ->  | J144: =IF('6.2 CBR B'!U$18="TRUE","",+I144/12) -> 
B145: Customer 113 | D145: 0 | E145: =SUM(IF('6. Class A Consumption Data'!K141:L141="B",'6. Class A Consumption Data'!E141:F141)) -> 0 | H145: 0 | I145: =IF('6.2 CBR B'!U$18="TRUE","",+H145*$D$26) ->  | J145: =IF('6.2 CBR B'!U$18="TRUE","",+I145/12) -> 
B146: Customer 114 | D146: 0 | E146: =SUM(IF('6. Class A Consumption Data'!K142:L142="B",'6. Class A Consumption Data'!E142:F142)) -> 0 | H146: 0 | I146: =IF('6.2 CBR B'!U$18="TRUE","",+H146*$D$26) ->  | J146: =IF('6.2 CBR B'!U$18="TRUE","",+I146/12) -> 
B147: Customer 115 | D147: 0 | E147: =SUM(IF('6. Class A Consumption Data'!K143:L143="B",'6. Class A Consumption Data'!E143:F143)) -> 0 | H147: 0 | I147: =IF('6.2 CBR B'!U$18="TRUE","",+H147*$D$26) ->  | J147: =IF('6.2 CBR B'!U$18="TRUE","",+I147/12) -> 
B148: Customer 116 | D148: 0 | E148: =SUM(IF('6. Class A Consumption Data'!K144:L144="B",'6. Class A Consumption Data'!E144:F144)) -> 0 | H148: 0 | I148: =IF('6.2 CBR B'!U$18="TRUE","",+H148*$D$26) ->  | J148: =IF('6.2 CBR B'!U$18="TRUE","",+I148/12) -> 
B149: Customer 117 | D149: 0 | E149: =SUM(IF('6. Class A Consumption Data'!K145:L145="B",'6. Class A Consumption Data'!E145:F145)) -> 0 | H149: 0 | I149: =IF('6.2 CBR B'!U$18="TRUE","",+H149*$D$26) ->  | J149: =IF('6.2 CBR B'!U$18="TRUE","",+I149/12) -> 
B150: Customer 118 | D150: 0 | E150: =SUM(IF('6. Class A Consumption Data'!K146:L146="B",'6. Class A Consumption Data'!E146:F146)) -> 0 | H150: 0 | I150: =IF('6.2 CBR B'!U$18="TRUE","",+H150*$D$26) ->  | J150: =IF('6.2 CBR B'!U$18="TRUE","",+I150/12) -> 
B151: Customer 119 | D151: 0 | E151: =SUM(IF('6. Class A Consumption Data'!K147:L147="B",'6. Class A Consumption Data'!E147:F147)) -> 0 | H151: 0 | I151: =IF('6.2 CBR B'!U$18="TRUE","",+H151*$D$26) ->  | J151: =IF('6.2 CBR B'!U$18="TRUE","",+I151/12) -> 
B152: Customer 120 | D152: 0 | E152: =SUM(IF('6. Class A Consumption Data'!K148:L148="B",'6. Class A Consumption Data'!E148:F148)) -> 0 | H152: 0 | I152: =IF('6.2 CBR B'!U$18="TRUE","",+H152*$D$26) ->  | J152: =IF('6.2 CBR B'!U$18="TRUE","",+I152/12) -> 
B153: Customer 121 | D153: 0 | E153: =SUM(IF('6. Class A Consumption Data'!K149:L149="B",'6. Class A Consumption Data'!E149:F149)) -> 0 | H153: 0 | I153: =IF('6.2 CBR B'!U$18="TRUE","",+H153*$D$26) ->  | J153: =IF('6.2 CBR B'!U$18="TRUE","",+I153/12) -> 
B154: Customer 122 | D154: 0 | E154: =SUM(IF('6. Class A Consumption Data'!K150:L150="B",'6. Class A Consumption Data'!E150:F150)) -> 0 | H154: 0 | I154: =IF('6.2 CBR B'!U$18="TRUE","",+H154*$D$26) ->  | J154: =IF('6.2 CBR B'!U$18="TRUE","",+I154/12) -> 
B155: Customer 123 | D155: 0 | E155: =SUM(IF('6. Class A Consumption Data'!K151:L151="B",'6. Class A Consumption Data'!E151:F151)) -> 0 | H155: 0 | I155: =IF('6.2 CBR B'!U$18="TRUE","",+H155*$D$26) ->  | J155: =IF('6.2 CBR B'!U$18="TRUE","",+I155/12) -> 
B156: Customer 124 | D156: 0 | E156: =SUM(IF('6. Class A Consumption Data'!K152:L152="B",'6. Class A Consumption Data'!E152:F152)) -> 0 | H156: 0 | I156: =IF('6.2 CBR B'!U$18="TRUE","",+H156*$D$26) ->  | J156: =IF('6.2 CBR B'!U$18="TRUE","",+I156/12) -> 
B157: Customer 125 | D157: 0 | E157: =SUM(IF('6. Class A Consumption Data'!K153:L153="B",'6. Class A Consumption Data'!E153:F153)) -> 0 | H157: 0 | I157: =IF('6.2 CBR B'!U$18="TRUE","",+H157*$D$26) ->  | J157: =IF('6.2 CBR B'!U$18="TRUE","",+I157/12) -> 
B158: Customer 126 | D158: 0 | E158: =SUM(IF('6. Class A Consumption Data'!K154:L154="B",'6. Class A Consumption Data'!E154:F154)) -> 0 | H158: 0 | I158: =IF('6.2 CBR B'!U$18="TRUE","",+H158*$D$26) ->  | J158: =IF('6.2 CBR B'!U$18="TRUE","",+I158/12) -> 
B159: Customer 127 | D159: 0 | E159: =SUM(IF('6. Class A Consumption Data'!K155:L155="B",'6. Class A Consumption Data'!E155:F155)) -> 0 | H159: 0 | I159: =IF('6.2 CBR B'!U$18="TRUE","",+H159*$D$26) ->  | J159: =IF('6.2 CBR B'!U$18="TRUE","",+I159/12) -> 
B160: Customer 128 | D160: 0 | E160: =SUM(IF('6. Class A Consumption Data'!K156:L156="B",'6. Class A Consumption Data'!E156:F156)) -> 0 | H160: 0 | I160: =IF('6.2 CBR B'!U$18="TRUE","",+H160*$D$26) ->  | J160: =IF('6.2 CBR B'!U$18="TRUE","",+I160/12) -> 
B161: Customer 129 | D161: 0 | E161: =SUM(IF('6. Class A Consumption Data'!K157:L157="B",'6. Class A Consumption Data'!E157:F157)) -> 0 | H161: 0 | I161: =IF('6.2 CBR B'!U$18="TRUE","",+H161*$D$26) ->  | J161: =IF('6.2 CBR B'!U$18="TRUE","",+I161/12) -> 
B162: Customer 130 | D162: 0 | E162: =SUM(IF('6. Class A Consumption Data'!K158:L158="B",'6. Class A Consumption Data'!E158:F158)) -> 0 | H162: =IFERROR(+D162/$D$183,0) -> 0 | I162: =IF('6.2 CBR B'!U$18="TRUE","",+H162*$D$26) ->  | J162: =IF('6.2 CBR B'!U$18="TRUE","",+I162/12) -> 
B163: Customer 131 | D163: 0 | E163: =SUM(IF('6. Class A Consumption Data'!K159:L159="B",'6. Class A Consumption Data'!E159:F159)) -> 0 | H163: 0 | I163: =IF('6.2 CBR B'!U$18="TRUE","",+H163*$D$26) ->  | J163: =IF('6.2 CBR B'!U$18="TRUE","",+I163/12) -> 
B164: Customer 132 | D164: 0 | E164: =SUM(IF('6. Class A Consumption Data'!K160:L160="B",'6. Class A Consumption Data'!E160:F160)) -> 0 | H164: 0 | I164: =IF('6.2 CBR B'!U$18="TRUE","",+H164*$D$26) ->  | J164: =IF('6.2 CBR B'!U$18="TRUE","",+I164/12) -> 
B165: Customer 133 | D165: 0 | E165: =SUM(IF('6. Class A Consumption Data'!K161:L161="B",'6. Class A Consumption Data'!E161:F161)) -> 0 | H165: 0 | I165: =IF('6.2 CBR B'!U$18="TRUE","",+H165*$D$26) ->  | J165: =IF('6.2 CBR B'!U$18="TRUE","",+I165/12) -> 
B166: Customer 134 | D166: 0 | E166: =SUM(IF('6. Class A Consumption Data'!K162:L162="B",'6. Class A Consumption Data'!E162:F162)) -> 0 | H166: 0 | I166: =IF('6.2 CBR B'!U$18="TRUE","",+H166*$D$26) ->  | J166: =IF('6.2 CBR B'!U$18="TRUE","",+I166/12) -> 
B167: Customer 135 | D167: 0 | E167: =SUM(IF('6. Class A Consumption Data'!K163:L163="B",'6. Class A Consumption Data'!E163:F163)) -> 0 | H167: 0 | I167: =IF('6.2 CBR B'!U$18="TRUE","",+H167*$D$26) ->  | J167: =IF('6.2 CBR B'!U$18="TRUE","",+I167/12) -> 
B168: Customer 136 | D168: 0 | E168: =SUM(IF('6. Class A Consumption Data'!K164:L164="B",'6. Class A Consumption Data'!E164:F164)) -> 0 | H168: 0 | I168: =IF('6.2 CBR B'!U$18="TRUE","",+H168*$D$26) ->  | J168: =IF('6.2 CBR B'!U$18="TRUE","",+I168/12) -> 
B169: Customer 137 | D169: 0 | E169: =SUM(IF('6. Class A Consumption Data'!K165:L165="B",'6. Class A Consumption Data'!E165:F165)) -> 0 | H169: 0 | I169: =IF('6.2 CBR B'!U$18="TRUE","",+H169*$D$26) ->  | J169: =IF('6.2 CBR B'!U$18="TRUE","",+I169/12) -> 
B170: Customer 138 | D170: 0 | E170: =SUM(IF('6. Class A Consumption Data'!K166:L166="B",'6. Class A Consumption Data'!E166:F166)) -> 0 | H170: 0 | I170: =IF('6.2 CBR B'!U$18="TRUE","",+H170*$D$26) ->  | J170: =IF('6.2 CBR B'!U$18="TRUE","",+I170/12) -> 
B171: Customer 139 | D171: 0 | E171: =SUM(IF('6. Class A Consumption Data'!K167:L167="B",'6. Class A Consumption Data'!E167:F167)) -> 0 | H171: 0 | I171: =IF('6.2 CBR B'!U$18="TRUE","",+H171*$D$26) ->  | J171: =IF('6.2 CBR B'!U$18="TRUE","",+I171/12) -> 
B172: Customer 140 | D172: 0 | E172: =SUM(IF('6. Class A Consumption Data'!K168:L168="B",'6. Class A Consumption Data'!E168:F168)) -> 0 | H172: 0 | I172: =IF('6.2 CBR B'!U$18="TRUE","",+H172*$D$26) ->  | J172: =IF('6.2 CBR B'!U$18="TRUE","",+I172/12) -> 
B173: Customer 141 | D173: 0 | E173: =SUM(IF('6. Class A Consumption Data'!K169:L169="B",'6. Class A Consumption Data'!E169:F169)) -> 0 | H173: 0 | I173: =IF('6.2 CBR B'!U$18="TRUE","",+H173*$D$26) ->  | J173: =IF('6.2 CBR B'!U$18="TRUE","",+I173/12) -> 
B174: Customer 142 | D174: 0 | E174: =SUM(IF('6. Class A Consumption Data'!K170:L170="B",'6. Class A Consumption Data'!E170:F170)) -> 0 | H174: 0 | I174: =IF('6.2 CBR B'!U$18="TRUE","",+H174*$D$26) ->  | J174: =IF('6.2 CBR B'!U$18="TRUE","",+I174/12) -> 
B175: Customer 143 | D175: 0 | E175: =SUM(IF('6. Class A Consumption Data'!K171:L171="B",'6. Class A Consumption Data'!E171:F171)) -> 0 | H175: 0 | I175: =IF('6.2 CBR B'!U$18="TRUE","",+H175*$D$26) ->  | J175: =IF('6.2 CBR B'!U$18="TRUE","",+I175/12) -> 
B176: Customer 144 | D176: 0 | E176: =SUM(IF('6. Class A Consumption Data'!K172:L172="B",'6. Class A Consumption Data'!E172:F172)) -> 0 | H176: 0 | I176: =IF('6.2 CBR B'!U$18="TRUE","",+H176*$D$26) ->  | J176: =IF('6.2 CBR B'!U$18="TRUE","",+I176/12) -> 
B177: Customer 145 | D177: 0 | E177: =SUM(IF('6. Class A Consumption Data'!K173:L173="B",'6. Class A Consumption Data'!E173:F173)) -> 0 | H177: 0 | I177: =IF('6.2 CBR B'!U$18="TRUE","",+H177*$D$26) ->  | J177: =IF('6.2 CBR B'!U$18="TRUE","",+I177/12) -> 
B178: Customer 146 | D178: 0 | E178: =SUM(IF('6. Class A Consumption Data'!K174:L174="B",'6. Class A Consumption Data'!E174:F174)) -> 0 | H178: 0 | I178: =IF('6.2 CBR B'!U$18="TRUE","",+H178*$D$26) ->  | J178: =IF('6.2 CBR B'!U$18="TRUE","",+I178/12) -> 
B179: Customer 147 | D179: 0 | E179: =SUM(IF('6. Class A Consumption Data'!K175:L175="B",'6. Class A Consumption Data'!E175:F175)) -> 0 | H179: 0 | I179: =IF('6.2 CBR B'!U$18="TRUE","",+H179*$D$26) ->  | J179: =IF('6.2 CBR B'!U$18="TRUE","",+I179/12) -> 
B180: Customer 148 | D180: 0 | E180: =SUM(IF('6. Class A Consumption Data'!K176:L176="B",'6. Class A Consumption Data'!E176:F176)) -> 0 | H180: 0 | I180: =IF('6.2 CBR B'!U$18="TRUE","",+H180*$D$26) ->  | J180: =IF('6.2 CBR B'!U$18="TRUE","",+I180/12) -> 
B181: Customer 149 | D181: 0 | E181: =SUM(IF('6. Class A Consumption Data'!K177:L177="B",'6. Class A Consumption Data'!E177:F177)) -> 0 | H181: 0 | I181: =IF('6.2 CBR B'!U$18="TRUE","",+H181*$D$26) ->  | J181: =IF('6.2 CBR B'!U$18="TRUE","",+I181/12) -> 
B182: Customer 150 | D182: 0 | E182: =SUM(IF('6. Class A Consumption Data'!K178:L178="B",'6. Class A Consumption Data'!E178:F178)) -> 0 | H182: 0 | I182: =IF('6.2 CBR B'!U$18="TRUE","",+H182*$D$26) ->  | J182: =IF('6.2 CBR B'!U$18="TRUE","",+I182/12) -> 
B183: Total for all Customers | D183: =SUM(D33:D182) -> 23893619.75 | E183: =SUM(E33:E182) -> 23893619.75 | F183: 0 | G183: 0 | H183: =SUM(H33:H182) -> 1 | I183: =SUM(I33:I182) -> 0

Sheet 6.2 CBR B
A1: Back to Index
B2: =+'1. Information Sheet'!B2 -> INCENTIVE REGULATION MODEL FOR 2020 FILERS
K11: If the allocated Account 1580 sub-account CBR Class B amount does not produce a rate rider in one or more rate class (except for the Standby rate class), a distributor is to transfer the entire OEB-approved CBR Class B amount into Account 1580 WMS control account to be disposed through the general purpose Group 1 DVA rate riders. (see Accounting Guidance, Capacity Based Recovery xxxxx, 2018)
B13: The purpose of this tab is to calculate the CBR rate riders for all current Class B customers who did not transition between Class A and B in the period since the Account 1580, sub-account CBR Class B balance accumulated.
B15: Please select the Year the Account 1580 CBR Class B was Last Disposed. | C15: 2017 | D15: (Note: Account 1580, Sub-account CBR Class B was established starting in 2015)
U18: =IF(MIN(U22:U27,U29:U30)<0.0001,"TRUE","FALSE") -> TRUE
C19: Total Metered Minus WMP | E19: Total Metered 2018 Consumption for Class A customers that were Class A for the entire period CBR Class B balance accumulated | G19: Total Metered 2018 Consumption for Customers that Transitioned Between Class A and B during the period CBR Class B balance accumulated | I19: Metered Consumption for Current Class B Customers (Total Consumption LESS WMP, Class A and Transition Customers' Consumption) | K19: % of total kWh | L19: Total CBR $ allocated to Current Class B Customers | M19: CBR Rate Rider | O19: Revenue Reconciliation | P19: Variance | U19: CBR Rate Rider
C20: kWh | D20: kW | E20: kWh | F20: kW | G20: kWh | H20: kW | I20: kWh | J20: kW
B22: ='4. Billing Det. for Def-Var'!B17 -> RESIDENTIAL SERVICE CLASSIFICATION | C22: ='4. Billing Det. for Def-Var'!D17-'4. Billing Det. for Def-Var'!H17 -> 384041745.3 | D22: ='4. Billing Det. for Def-Var'!E17-'4. Billing Det. for Def-Var'!I17 -> 0 | E22: =SUM(IF('6. Class A Consumption Data'!$D$191:$D$340=$B22,'6. Class A Consumption Data'!E$191:E$340)) -> 0 | F22: =SUM(IF('6. Class A Consumption Data'!$D$191:$D$340=$B22,'6. Class A Consumption Data'!H$191:H$340)) -> 0 | G22: =SUM(IF('6. Class A Consumption Data'!$D$29:$D$178=$B22,'6. Class A Consumption Data'!E$29:F$178)) -> 0 | H22: =SUM(IF('6. Class A Consumption Data'!$D$29:$D$178=$B22,'6. Class A Consumption Data'!H$29:I$178)) -> 0 | I22: =ROUND(C22-E22-G22,0) -> 384041745 | J22: =ROUND(D22-F22-H22,0) -> 0 | K22: =IFERROR(I22/I$34,"") -> 0.442042158 | L22: =IFERROR(L$34*K22,"") -> -7368.684529 | M22: =IF(U$18="TRUE",0,U22) -> 0 | N22: kwh | O22: =IFERROR(IF(J22=0,ROUND(M22,4)*I22,ROUND(M22,4)*J22),"") -> 0 | P22: =L22-O22 -> -7368.684529 | U22: =IFERROR(IF($J22=0,$L22/$I22,$L22/$J22),"") -> -1.918719677e-05 | V22: kwh
B23: ='4. Billing Det. for Def-Var'!B18 -> GENERAL SERVICE LESS THAN 50 kW SERVICE CLASSIFICATION | C23: ='4. Billing Det. for Def-Var'!D18-'4. Billing Det. for Def-Var'!H18 -> 142209076.4 | D23: ='4. Billing Det. for Def-Var'!E18-'4. Billing Det. for Def-Var'!I18 -> 0 | E23: =SUM(IF('6. Class A Consumption Data'!$D$191:$D$340=$B23,'6. Class A Consumption Data'!E$191:E$340)) -> 0 | F23: =SUM(IF('6. Class A Consumption Data'!$D$191:$D$340=$B23,'6. Class A Consumption Data'!H$191:H$340)) -> 0 | G23: =SUM(IF('6. Class A Consumption Data'!$D$29:$D$178=$B23,'6. Class A Consumption Data'!E$29:F$178)) -> 0 | H23: =SUM(IF('6. Class A Consumption Data'!$D$29:$D$178=$B23,'6. Class A Consumption Data'!H$29:I$178)) -> 0 | I23: =ROUND(C23-E23-G23,0) -> 142209076 | J23: 0 | K23: =IFERROR(I23/I$34,"") -> 0.16368639 | L23: =IFERROR(L$34*K23,"") -> -2728.593523 | M23: =IF(U$18="TRUE",0,U23) -> 0 | N23: kwh | O23: =IFERROR(IF(J23=0,ROUND(M23,4)*I23,ROUND(M23,4)*J23),"") -> 0 | P23: =L23-O23 -> -2728.593523 | U23: =IFERROR(IF($J23=0,$L23/$I23,$L23/$J23),"") -> -1.918719677e-05 | V23: kwh
B24: ='4. Billing Det. for Def-Var'!B19 -> GENERAL SERVICE 50 to 999 KW SERVICE CLASSIFICATION | C24: ='4. Billing Det. for Def-Var'!D19-'4. Billing Det. for Def-Var'!H19 -> 396299989.1 | D24: ='4. Billing Det. for Def-Var'!E19-'4. Billing Det. for Def-Var'!I19 -> 1084587.8 | E24: =SUM(IF('6. Class A Consumption Data'!$D$191:$D$340=$B24,'6. Class A Consumption Data'!E$191:E$340)) -> 50711625.48 | F24: =SUM(IF('6. Class A Consumption Data'!$D$191:$D$340=$B24,'6. Class A Consumption Data'!H$191:H$340)) -> 124621.39 | G24: =SUM(IF('6. Class A Consumption Data'!$D$29:$D$178=$B24,'6. Class A Consumption Data'!E$29:F$178)) -> 19681793.85 | H24: =SUM(IF('6. Class A Consumption Data'!$D$29:$D$178=$B24,'6. Class A Consumption Data'!H$29:I$178)) -> 53252.18 | I24: 325906570 | J24: 906714 | K24: 0.3751270412 | L24: -6253.233487 | M24: 0 | N24: kW | O24: 0 | P24: -6253.233487 | U24: -0.006896588656 | V24: kW
B25: ='4. Billing Det. for Def-Var'!B20 -> GENERAL SERVICE 1,000 to 4,999 KW SERVICE CLASSIFICATION | C25: ='4. Billing Det. for Def-Var'!D20-'4. Billing Det. for Def-Var'!H20 -> 539909080.9 | D25: ='4. Billing Det. for Def-Var'!E20-'4. Billing Det. for Def-Var'!I20 -> 1127782.76 | E25: =SUM(IF('6. Class A Consumption Data'!$D$191:$D$340=$B25,'6. Class A Consumption Data'!E$191:E$340)) -> 508294693.9 | F25: =SUM(IF('6. Class A Consumption Data'!$D$191:$D$340=$B25,'6. Class A Consumption Data'!H$191:H$340)) -> 1038399.4 | G25: =SUM(IF('6. Class A Consumption Data'!$D$29:$D$178=$B25,'6. Class A Consumption Data'!E$29:F$178)) -> 26993534.54 | H25: =SUM(IF('6. Class A Consumption Data'!$D$29:$D$178=$B25,'6. Class A Consumption Data'!H$29:I$178)) -> 71027.82 | I25: 4620853 | J25: 18356 | K25: 0.005318723442 | L25: -88.66121575 | M25: 0 | N25: kW | O25: 0 | P25: -88.66121575 | U25: -0.00483009456 | V25: kW
B26: ='4. Billing Det. for Def-Var'!B21 -> LARGE USE SERVICE CLASSIFICATION | C26: ='4. Billing Det. for Def-Var'!D21-'4. Billing Det. for Def-Var'!H21 -> 197428961.9 | D26: ='4. Billing Det. for Def-Var'!E21-'4. Billing Det. for Def-Var'!I21 -> 423180.01 | E26: =SUM(IF('6. Class A Consumption Data'!$D$191:$D$340=$B26,'6. Class A Consumption Data'!E$191:E$340)) -> 197428961.9 | F26: =SUM(IF('6. Class A Consumption Data'!$D$191:$D$340=$B26,'6. Class A Consumption Data'!H$191:H$340)) -> 423180.01 | G26: =SUM(IF('6. Class A Consumption Data'!$D$29:$D$178=$B26,'6. Class A Consumption Data'!E$29:F$178)) -> 0 | H26: =SUM(IF('6. Class A Consumption Data'!$D$29:$D$178=$B26,'6. Class A Consumption Data'!H$29:I$178)) -> 0 | I26: 0 | J26: 0 | K26: 0 | L26: 0 | M26: 0 | N26: kW | O26: 0 | P26: 0 | V26: kW
B27: ='4. Billing Det. for Def-Var'!B22 -> UNMETERED SCATTERED LOAD SERVICE CLASSIFICATION | C27: ='4. Billing Det. for Def-Var'!D22-'4. Billing Det. for Def-Var'!H22 -> 1810677.873 | D27: ='4. Billing Det. for Def-Var'!E22-'4. Billing Det. for Def-Var'!I22 -> 0 | E27: =SUM(IF('6. Class A Consumption Data'!$D$191:$D$340=$B27,'6. Class A Consumption Data'!E$191:E$340)) -> 0 | F27: =SUM(IF('6. Class A Consumption Data'!$D$191:$D$340=$B27,'6. Class A Consumption Data'!H$191:H$340)) -> 0 | G27: =SUM(IF('6. Class A Consumption Data'!$D$29:$D$178=$B27,'6. Class A Consumption Data'!E$29:F$178)) -> 0 | H27: =SUM(IF('6. Class A Consumption Data'!$D$29:$D$178=$B27,'6. Class A Consumption Data'!H$29:I$178)) -> 0 | I27: 1810678 | J27: 0 | K27: 0.002084138042 | L27: -34.74183507 | M27: 0 | N27: kwh | O27: 0 | P27: -34.74183507 | U27: -1.918719677e-05 | V27: kwh
B28: ='4. Billing Det. for Def-Var'!B23 -> STANDBY POWER SERVICE CLASSIFICATION | C28: ='4. Billing Det. for Def-Var'!D23-'4. Billing Det. for Def-Var'!H23 -> 0 | D28: ='4. Billing Det. for Def-Var'!E23-'4. Billing Det. for Def-Var'!I23 -> 0 | E28: =SUM(IF('6. Class A Consumption Data'!$D$191:$D$340=$B28,'6. Class A Consumption Data'!E$191:E$340)) -> 0 | F28: =SUM(IF('6. Class A Consumption Data'!$D$191:$D$340=$B28,'6. Class A Consumption Data'!H$191:H$340)) -> 0 | G28: =SUM(IF('6. Class A Consumption Data'!$D$29:$D$178=$B28,'6. Class A Consumption Data'!E$29:F$178)) -> 0 | H28: =SUM(IF('6. Class A Consumption Data'!$D$29:$D$178=$B28,'6. Class A Consumption Data'!H$29:I$178)) -> 0 | I28: 0 | J28: 0 | K28: 0 | L28: 0 | M28: 0 | N28: kW | O28: 0 | P28: 0 | V28: kW
B29: ='4. Billing Det. for Def-Var'!B24 -> SENTINEL LIGHTING SERVICE CLASSIFICATION | C29: ='4. Billing Det. for Def-Var'!D24-'4. Billing Det. for Def-Var'!H24 -> 18188.97 | D29: ='4. Billing Det. for Def-Var'!E24-'4. Billing Det. for Def-Var'!I24 -> 50.75873103 | E29: =SUM(IF('6. Class A Consumption Data'!$D$191:$D$340=$B29,'6. Class A Consumption Data'!E$191:E$340)) -> 0 | F29: =SUM(IF('6. Class A Consumption Data'!$D$191:$D$340=$B29,'6. Class A Consumption Data'!H$191:H$340)) -> 0 | G29: =SUM(IF('6. Class A Consumption Data'!$D$29:$D$178=$B29,'6. Class A Consumption Data'!E$29:F$178)) -> 0 | H29: =SUM(IF('6. Class A Consumption Data'!$D$29:$D$178=$B29,'6. Class A Consumption Data'!H$29:I$178)) -> 0 | I29: 18189 | J29: 51 | K29: 2.093601781e-05 | L29: -0.348995922 | M29: 0 | N29: kW | O29: 0 | P29: -0.348995922 | U29: -0.006843057295 | V29: kW
B30: ='4. Billing Det. for Def-Var'!B25 -> STREET LIGHTING SERVICE CLASSIFICATION | C30: ='4. Billing Det. for Def-Var'!D25-'4. Billing Det. for Def-Var'!H25 -> 10182749.65 | D30: ='4. Billing Det. for Def-Var'!E25-'4. Billing Det. for Def-Var'!I25 -> 28424.58 | E30: =SUM(IF('6. Class A Consumption Data'!$D$191:$D$340=$B30,'6. Class A Consumption Data'!E$191:E$340)) -> 0 | F30: =SUM(IF('6. Class A Consumption Data'!$D$191:$D$340=$B30,'6. Class A Consumption Data'!H$191:H$340)) -> 0 | G30: =SUM(IF('6. Class A Consumption Data'!$D$29:$D$178=$B30,'6. Class A Consumption Data'!E$29:F$178)) -> 0 | H30: =SUM(IF('6. Class A Consumption Data'!$D$29:$D$178=$B30,'6. Class A Consumption Data'!H$29:I$178)) -> 0 | I30: =ROUND(C30-E30-G30,0) -> 10182750 | J30: =ROUND(D30-F30-H30,0) -> 28425 | K30: =IFERROR(I30/I$34,"") -> 0.0117206133 | L30: =IFERROR(L$34*K30,"") -> -195.3784279 | M30: =IF(U$18="TRUE",0,U30) -> 0 | N30: kW | O30: 0 | P30: -195.3784279 | U30: -0.006873471518 | V30: kW
C34: =SUM(C22:C33) -> 1671900470 | D34: =SUM(D22:D33) -> 2664025.909 | E34: 756435281.3 | F34: 1586200.8 | G34: 46675328.39 | H34: 124280 | I34: 868789861 | J34: 953546 | K34: 1 | L34: ='6.2a CBR B_Allocation'!D27 -> -16669.64201 | O34: =SUM(O22:O33) -> 0 | P34: =SUM(P22:P33) -> -16669.64201
L35: from Sheet 6.2a
O36: NOTE: if rate rider is at 5 decimal places, then the balance dispostion is in full

Sheet 8. Calculation of Def-Var RR
A1: Back to Index
B2: =+'1. Information Sheet'!B2 -> INCENTIVE REGULATION MODEL FOR 2020 FILERS
B11: IInput required at cells D14 and D15. This workshseet calculates rate riders related to the Deferral/Variance Account Disposition (if applicable) and rate riders for Account 1568. Rate Riders will not be generated for the microFIT class.
B13: Default Rate Rider Recovery Period (in months) | D13: 12
B14: DVA Proposed Rate Rider Recovery Period (in months) | D14: 12 | E14: =IF(D14>0, "Rate Rider Recovery to be used below", "If no rate rider recovery period is proposed then the default recovery period of 12 months will be used") -> Rate Rider Recovery to be used below
B15: LRAM Proposed Rate Rider Recovery Period (in months) | D15: 12 | E15: =IF(D15>0, "Rate Rider Recovery to be used below", "If no rate rider recovery period is proposed then the default recovery period of 12 months will be used") -> Rate Rider Recovery to be used below
D17: Total Metered kWh | E17: Metered kW or kVA | F17: Total Metered kWh less WMP consumption | G17: Total Metered kW less WMP consumption | H17: Allocation of Group 1 Account Balances to All Classes 2 | I17: Allocation of Group 1 Account Balances to Non-WMP Classes Only (if Applicable) 2 | J17: Deferral/Variance Account Rate Rider 2 | K17: Deferral/Variance Account Rate Rider for Non-WMP (if applicable) 2 | L17: Account 1568 Rate Rider
B18: Rate Class | C18: Unit | M18: Revenue Reconciliation: | O18: Revenue Reconcilation 1
B19: ='4. Billing Det. for Def-Var'!B17 -> RESIDENTIAL SERVICE CLASSIFICATION | C19: ='4. Billing Det. for Def-Var'!C17 -> kWh | D19: ='4. Billing Det. for Def-Var'!D17 -> 384041745.3 | E19: ='4. Billing Det. for Def-Var'!E17 -> 0 | F19: ='4. Billing Det. for Def-Var'!J17 -> 384041745.3 | G19: ='4. Billing Det. for Def-Var'!K17 -> 0 | H19: =IFERROR(SUM('5. Allocating Def-Var Balances'!G16:Y16)-I19,"") -> -33767.32969 | J19: =IF('4. Billing Det. for Def-Var'!$D$37="no",0,ROUND(IF(C19="kWh",IF(ISERROR(H19/D19),0,IF(OR(ISBLANK(D$14),OR(D$14=0,D$14="")),H19/D19/(D$13/12),H19/D19/(D$14/12))),IF(ISERROR(H19/E19),0,IF(OR(ISBLANK(D$14),OR(D$14=0,D$14="")),H19/E19/(D$13/12),H19/E19/(D$14/12)))),4)) -> 0 | K19: =IF('4. Billing Det. for Def-Var'!$D$37="no",0,ROUND(IF(C19="kWh",IF(ISERROR(I19/F19),0,IF(OR(ISBLANK(D$14),OR(D$14=0,D$14="")),I19/F19/(D$13/12),I19/F19/(D$14/12))),IF(ISERROR(I19/G19),0,IF(OR(ISBLANK(D$14),OR(D$14=0,D$14="")),I19/G19/(D$13/12),I19/G19/(D$14/12)))),4)) -> 0 | L19: =IF(C19="kWh",ROUND(IF(ISERROR('4. Billing Det. for Def-Var'!W17/D19), 0, IF(OR(ISBLANK(D$15), OR(D$15=0, D$15="")), ('4. Billing Det. for Def-Var'!W17/D19)/(D$13/12), ('4. Billing Det. for Def-Var'!W17/D19)/(D$15/12))),4),ROUND(IF(ISERROR('4. Billing Det. for Def-Var'!W17/E19), 0, IF(OR(ISBLANK(D$15), OR(D$15=0, D$15="")), ('4. Billing Det. for Def-Var'!W17/E19)/(D$13/12), ('4. Billing Det. for Def-Var'!W17/E19)/(D$15/12))),4)) -> 0 | M19: =IF(C19="kWh",J19*D19,E19*J19) -> 0 | N19: =IF(C19="kWh",K19*F19,G19*K19) -> 0
B20: ='4. Billing Det. for Def-Var'!B18 -> GENERAL SERVICE LESS THAN 50 kW SERVICE CLASSIFICATION | C20: ='4. Billing Det. for Def-Var'!C18 -> kWh | D20: ='4. Billing Det. for Def-Var'!D18 -> 142209076.4 | E20: ='4. Billing Det. for Def-Var'!E18 -> 0 | F20: ='4. Billing Det. for Def-Var'!J18 -> 142209076.4 | G20: ='4. Billing Det. for Def-Var'!K18 -> 0 | H20: =IFERROR(SUM('5. Allocating Def-Var Balances'!G17:Y17)-I20,"") -> 5492.951795 | J20: =IF('4. Billing Det. for Def-Var'!$D$37="no",0,ROUND(IF(C20="kWh",IF(ISERROR(H20/D20),0,IF(OR(ISBLANK(D$14),OR(D$14=0,D$14="")),H20/D20/(D$13/12),H20/D20/(D$14/12))),IF(ISERROR(H20/E20),0,IF(OR(ISBLANK(D$14),OR(D$14=0,D$14="")),H20/E20/(D$13/12),H20/E20/(D$14/12)))),4)) -> 0 | K20: =IF('4. Billing Det. for Def-Var'!$D$37="no",0,ROUND(IF(C20="kWh",IF(ISERROR(I20/F20),0,IF(OR(ISBLANK(D$14),OR(D$14=0,D$14="")),I20/F20/(D$13/12),I20/F20/(D$14/12))),IF(ISERROR(I20/G20),0,IF(OR(ISBLANK(D$14),OR(D$14=0,D$14="")),I20/G20/(D$13/12),I20/G20/(D$14/12)))),4)) -> 0 | L20: =IF(C20="kWh",ROUND(IF(ISERROR('4. Billing Det. for Def-Var'!W18/D20), 0, IF(OR(ISBLANK(D$15), OR(D$15=0, D$15="")), ('4. Billing Det. for Def-Var'!W18/D20)/(D$13/12), ('4. Billing Det. for Def-Var'!W18/D20)/(D$15/12))),4),ROUND(IF(ISERROR('4. Billing Det. for Def-Var'!W18/E20), 0, IF(OR(ISBLANK(D$15), OR(D$15=0, D$15="")), ('4. Billing Det. for Def-Var'!W18/E20)/(D$13/12), ('4. Billing Det. for Def-Var'!W18/E20)/(D$15/12))),4)) -> 0 | M20: =IF(C20="kWh",J20*D20,E20*J20) -> 0 | N20: =IF(C20="kWh",K20*F20,G20*K20) -> 0
B21: ='4. Billing Det. for Def-Var'!B19 -> GENERAL SERVICE 50 to 999 KW SERVICE CLASSIFICATION | C21: ='4. Billing Det. for Def-Var'!C19 -> kW | D21: ='4. Billing Det. for Def-Var'!D19 -> 402350218.4 | E21: ='4. Billing Det. for Def-Var'!E19 -> 1097498.68 | F21: ='4. Billing Det. for Def-Var'!J19 -> 396299989.1 | G21: ='4. Billing Det. for Def-Var'!K19 -> 1084587.8 | H21: =IFERROR(SUM('5. Allocating Def-Var Balances'!G18:Y18)-I21,"") -> 110238.2602 | I21: =IFERROR('5. Allocating Def-Var Balances'!I18+'5. Allocating Def-Var Balances'!N18,0) -> -76068.84915 | J21: =IF('4. Billing Det. for Def-Var'!$D$37="no",0,ROUND(IF(C21="kWh",IF(ISERROR(H21/D21),0,IF(OR(ISBLANK(D$14),OR(D$14=0,D$14="")),H21/D21/(D$13/12),H21/D21/(D$14/12))),IF(ISERROR(H21/E21),0,IF(OR(ISBLANK(D$14),OR(D$14=0,D$14="")),H21/E21/(D$13/12),H21/E21/(D$14/12)))),4)) -> 0 | K21: =IF('4. Billing Det. for Def-Var'!$D$37="no",0,ROUND(IF(C21="kWh",IF(ISERROR(I21/F21),0,IF(OR(ISBLANK(D$14),OR(D$14=0,D$14="")),I21/F21/(D$13/12),I21/F21/(D$14/12))),IF(ISERROR(I21/G21),0,IF(OR(ISBLANK(D$14),OR(D$14=0,D$14="")),I21/G21/(D$13/12),I21/G21/(D$14/12)))),4)) -> 0 | L21: =IF(C21="kWh",ROUND(IF(ISERROR('4. Billing Det. for Def-Var'!W19/D21), 0, IF(OR(ISBLANK(D$15), OR(D$15=0, D$15="")), ('4. Billing Det. for Def-Var'!W19/D21)/(D$13/12), ('4. Billing Det. for Def-Var'!W19/D21)/(D$15/12))),4),ROUND(IF(ISERROR('4. Billing Det. for Def-Var'!W19/E21), 0, IF(OR(ISBLANK(D$15), OR(D$15=0, D$15="")), ('4. Billing Det. for Def-Var'!W19/E21)/(D$13/12), ('4. Billing Det. for Def-Var'!W19/E21)/(D$15/12))),4)) -> 0 | M21: 0 | N21: 0
B22: ='4. Billing Det. for Def-Var'!B20 -> GENERAL SERVICE 1,000 to 4,999 KW SERVICE CLASSIFICATION | C22: ='4. Billing Det. for Def-Var'!C20 -> kW | D22: ='4. Billing Det. for Def-Var'!D20 -> 540417877.7 | E22: ='4. Billing Det. for Def-Var'!E20 -> 1135424.51 | F22: ='4. Billing Det. for Def-Var'!J20 -> 539909080.9 | G22: ='4. Billing Det. for Def-Var'!K20 -> 1127782.76 | H22: =IFERROR(SUM('5. Allocating Def-Var Balances'!G19:Y19)-I22,"") -> 144695.8954 | I22: =IFERROR('5. Allocating Def-Var Balances'!I19+'5. Allocating Def-Var Balances'!N19,0) -> -103634.2759 | J22: =IF('4. Billing Det. for Def-Var'!$D$37="no",0,ROUND(IF(C22="kWh",IF(ISERROR(H22/D22),0,IF(OR(ISBLANK(D$14),OR(D$14=0,D$14="")),H22/D22/(D$13/12),H22/D22/(D$14/12))),IF(ISERROR(H22/E22),0,IF(OR(ISBLANK(D$14),OR(D$14=0,D$14="")),H22/E22/(D$13/12),H22/E22/(D$14/12)))),4)) -> 0 | K22: =IF('4. Billing Det. for Def-Var'!$D$37="no",0,ROUND(IF(C22="kWh",IF(ISERROR(I22/F22),0,IF(OR(ISBLANK(D$14),OR(D$14=0,D$14="")),I22/F22/(D$13/12),I22/F22/(D$14/12))),IF(ISERROR(I22/G22),0,IF(OR(ISBLANK(D$14),OR(D$14=0,D$14="")),I22/G22/(D$13/12),I22/G22/(D$14/12)))),4)) -> 0 | L22: =IF(C22="kWh",ROUND(IF(ISERROR('4. Billing Det. for Def-Var'!W20/D22), 0, IF(OR(ISBLANK(D$15), OR(D$15=0, D$15="")), ('4. Billing Det. for Def-Var'!W20/D22)/(D$13/12), ('4. Billing Det. for Def-Var'!W20/D22)/(D$15/12))),4),ROUND(IF(ISERROR('4. Billing Det. for Def-Var'!W20/E22), 0, IF(OR(ISBLANK(D$15), OR(D$15=0, D$15="")), ('4. Billing Det. for Def-Var'!W20/E22)/(D$13/12), ('4. Billing Det. for Def-Var'!W20/E22)/(D$15/12))),4)) -> 0 | M22: 0 | N22: 0
B23: ='4. Billing Det. for Def-Var'!B21 -> LARGE USE SERVICE CLASSIFICATION | C23: ='4. Billing Det. for Def-Var'!C21 -> kW | D23: ='4. Billing Det. for Def-Var'!D21 -> 197428961.9 | E23: ='4. Billing Det. for Def-Var'!E21 -> 423180.01 | F23: ='4. Billing Det. for Def-Var'!J21 -> 197428961.9 | G23: ='4. Billing Det. for Def-Var'!K21 -> 423180.01 | H23: =IFERROR(SUM('5. Allocating Def-Var Balances'!G20:Y20)-I23,"") -> -245.891713 | J23: =IF('4. Billing Det. for Def-Var'!$D$37="no",0,ROUND(IF(C23="kWh",IF(ISERROR(H23/D23),0,IF(OR(ISBLANK(D$14),OR(D$14=0,D$14="")),H23/D23/(D$13/12),H23/D23/(D$14/12))),IF(ISERROR(H23/E23),0,IF(OR(ISBLANK(D$14),OR(D$14=0,D$14="")),H23/E23/(D$13/12),H23/E23/(D$14/12)))),4)) -> 0 | K23: =IF('4. Billing Det. for Def-Var'!$D$37="no",0,ROUND(IF(C23="kWh",IF(ISERROR(I23/F23),0,IF(OR(ISBLANK(D$14),OR(D$14=0,D$14="")),I23/F23/(D$13/12),I23/F23/(D$14/12))),IF(ISERROR(I23/G23),0,IF(OR(ISBLANK(D$14),OR(D$14=0,D$14="")),I23/G23/(D$13/12),I23/G23/(D$14/12)))),4)) -> 0 | L23: =IF(C23="kWh",ROUND(IF(ISERROR('4. Billing Det. for Def-Var'!W21/D23), 0, IF(OR(ISBLANK(D$15), OR(D$15=0, D$15="")), ('4. Billing Det. for Def-Var'!W21/D23)/(D$13/12), ('4. Billing Det. for Def-Var'!W21/D23)/(D$15/12))),4),ROUND(IF(ISERROR('4. Billing Det. for Def-Var'!W21/E23), 0, IF(OR(ISBLANK(D$15), OR(D$15=0, D$15="")), ('4. Billing Det. for Def-Var'!W21/E23)/(D$13/12), ('4. Billing Det. for Def-Var'!W21/E23)/(D$15/12))),4)) -> 0 | M23: 0 | N23: 0
B24: ='4. Billing Det. for Def-Var'!B22 -> UNMETERED SCATTERED LOAD SERVICE CLASSIFICATION | C24: ='4. Billing Det. for Def-Var'!C22 -> kWh | D24: ='4. Billing Det. for Def-Var'!D22 -> 1810677.873 | E24: ='4. Billing Det. for Def-Var'!E22 -> 0 | F24: ='4. Billing Det. for Def-Var'!J22 -> 1810677.873 | G24: ='4. Billing Det. for Def-Var'!K22 -> 0 | H24: =IFERROR(SUM('5. Allocating Def-Var Balances'!G21:Y21)-I24,"") -> 125.576073 | J24: =IF('4. Billing Det. for Def-Var'!$D$37="no",0,ROUND(IF(C24="kWh",IF(ISERROR(H24/D24),0,IF(OR(ISBLANK(D$14),OR(D$14=0,D$14="")),H24/D24/(D$13/12),H24/D24/(D$14/12))),IF(ISERROR(H24/E24),0,IF(OR(ISBLANK(D$14),OR(D$14=0,D$14="")),H24/E24/(D$13/12),H24/E24/(D$14/12)))),4)) -> 0 | K24: =IF('4. Billing Det. for Def-Var'!$D$37="no",0,ROUND(IF(C24="kWh",IF(ISERROR(I24/F24),0,IF(OR(ISBLANK(D$14),OR(D$14=0,D$14="")),I24/F24/(D$13/12),I24/F24/(D$14/12))),IF(ISERROR(I24/G24),0,IF(OR(ISBLANK(D$14),OR(D$14=0,D$14="")),I24/G24/(D$13/12),I24/G24/(D$14/12)))),4)) -> 0 | L24: =IF(C24="kWh",ROUND(IF(ISERROR('4. Billing Det. for Def-Var'!W22/D24), 0, IF(OR(ISBLANK(D$15), OR(D$15=0, D$15="")), ('4. Billing Det. for Def-Var'!W22/D24)/(D$13/12), ('4. Billing Det. for Def-Var'!W22/D24)/(D$15/12))),4),ROUND(IF(ISERROR('4. Billing Det. for Def-Var'!W22/E24), 0, IF(OR(ISBLANK(D$15), OR(D$15=0, D$15="")), ('4. Billing Det. for Def-Var'!W22/E24)/(D$13/12), ('4. Billing Det. for Def-Var'!W22/E24)/(D$15/12))),4)) -> 0 | M24: 0 | N24: 0
B25: ='4. Billing Det. for Def-Var'!B23 -> STANDBY POWER SERVICE CLASSIFICATION | C25: ='4. Billing Det. for Def-Var'!C23 -> kW | D25: ='4. Billing Det. for Def-Var'!D23 -> 0 | E25: ='4. Billing Det. for Def-Var'!E23 -> 0 | F25: ='4. Billing Det. for Def-Var'!J23 -> 0 | G25: ='4. Billing Det. for Def-Var'!K23 -> 0 | H25: =IFERROR(SUM('5. Allocating Def-Var Balances'!G22:Y22)-I25,"") -> -0.0008913639044 | J25: =IF('4. Billing Det. for Def-Var'!$D$37="no",0,ROUND(IF(C25="kWh",IF(ISERROR(H25/D25),0,IF(OR(ISBLANK(D$14),OR(D$14=0,D$14="")),H25/D25/(D$13/12),H25/D25/(D$14/12))),IF(ISERROR(H25/E25),0,IF(OR(ISBLANK(D$14),OR(D$14=0,D$14="")),H25/E25/(D$13/12),H25/E25/(D$14/12)))),4)) -> 0 | K25: =IF('4. Billing Det. for Def-Var'!$D$37="no",0,ROUND(IF(C25="kWh",IF(ISERROR(I25/F25),0,IF(OR(ISBLANK(D$14),OR(D$14=0,D$14="")),I25/F25/(D$13/12),I25/F25/(D$14/12))),IF(ISERROR(I25/G25),0,IF(OR(ISBLANK(D$14),OR(D$14=0,D$14="")),I25/G25/(D$13/12),I25/G25/(D$14/12)))),4)) -> 0 | L25: =IF(C25="kWh",ROUND(IF(ISERROR('4. Billing Det. for Def-Var'!W23/D25), 0, IF(OR(ISBLANK(D$15), OR(D$15=0, D$15="")), ('4. Billing Det. for Def-Var'!W23/D25)/(D$13/12), ('4. Billing Det. for Def-Var'!W23/D25)/(D$15/12))),4),ROUND(IF(ISERROR('4. Billing Det. for Def-Var'!W23/E25), 0, IF(OR(ISBLANK(D$15), OR(D$15=0, D$15="")), ('4. Billing Det. for Def-Var'!W23/E25)/(D$13/12), ('4. Billing Det. for Def-Var'!W23/E25)/(D$15/12))),4)) -> 0 | M25: 0 | N25: 0
B26: ='4. Billing Det. for Def-Var'!B24 -> SENTINEL LIGHTING SERVICE CLASSIFICATION | C26: ='4. Billing Det. for Def-Var'!C24 -> kW | D26: ='4. Billing Det. for Def-Var'!D24 -> 18188.97 | E26: ='4. Billing Det. for Def-Var'!E24 -> 50.75873103 | F26: ='4. Billing Det. for Def-Var'!J24 -> 18188.97 | G26: ='4. Billing Det. for Def-Var'!K24 -> 50.75873103 | H26: =IFERROR(SUM('5. Allocating Def-Var Balances'!G23:Y23)-I26,"") -> 1.074466639 | J26: =IF('4. Billing Det. for Def-Var'!$D$37="no",0,ROUND(IF(C26="kWh",IF(ISERROR(H26/D26),0,IF(OR(ISBLANK(D$14),OR(D$14=0,D$14="")),H26/D26/(D$13/12),H26/D26/(D$14/12))),IF(ISERROR(H26/E26),0,IF(OR(ISBLANK(D$14),OR(D$14=0,D$14="")),H26/E26/(D$13/12),H26/E26/(D$14/12)))),4)) -> 0 | K26: =IF('4. Billing Det. for Def-Var'!$D$37="no",0,ROUND(IF(C26="kWh",IF(ISERROR(I26/F26),0,IF(OR(ISBLANK(D$14),OR(D$14=0,D$14="")),I26/F26/(D$13/12),I26/F26/(D$14/12))),IF(ISERROR(I26/G26),0,IF(OR(ISBLANK(D$14),OR(D$14=0,D$14="")),I26/G26/(D$13/12),I26/G26/(D$14/12)))),4)) -> 0 | L26: =IF(C26="kWh",ROUND(IF(ISERROR('4. Billing Det. for Def-Var'!W24/D26), 0, IF(OR(ISBLANK(D$15), OR(D$15=0, D$15="")), ('4. Billing Det. for Def-Var'!W24/D26)/(D$13/12), ('4. Billing Det. for Def-Var'!W24/D26)/(D$15/12))),4),ROUND(IF(ISERROR('4. Billing Det. for Def-Var'!W24/E26), 0, IF(OR(ISBLANK(D$15), OR(D$15=0, D$15="")), ('4. Billing Det. for Def-Var'!W24/E26)/(D$13/12), ('4. Billing Det. for Def-Var'!W24/E26)/(D$15/12))),4)) -> 0 | M26: 0 | N26: 0
B27: ='4. Billing Det. for Def-Var'!B25 -> STREET LIGHTING SERVICE CLASSIFICATION | C27: ='4. Billing Det. for Def-Var'!C25 -> kW | D27: ='4. Billing Det. for Def-Var'!D25 -> 10182749.65 | E27: ='4. Billing Det. for Def-Var'!E25 -> 28424.58 | F27: ='4. Billing Det. for Def-Var'!J25 -> 10182749.65 | G27: ='4. Billing Det. for Def-Var'!K25 -> 28424.58 | H27: =IFERROR(SUM('5. Allocating Def-Var Balances'!G24:Y24)-I27,"") -> 808.403717 | J27: =IF('4. Billing Det. for Def-Var'!$D$37="no",0,ROUND(IF(C27="kWh",IF(ISERROR(H27/D27),0,IF(OR(ISBLANK(D$14),OR(D$14=0,D$14="")),H27/D27/(D$13/12),H27/D27/(D$14/12))),IF(ISERROR(H27/E27),0,IF(OR(ISBLANK(D$14),OR(D$14=0,D$14="")),H27/E27/(D$13/12),H27/E27/(D$14/12)))),4)) -> 0 | K27: =IF('4. Billing Det. for Def-Var'!$D$37="no",0,ROUND(IF(C27="kWh",IF(ISERROR(I27/F27),0,IF(OR(ISBLANK(D$14),OR(D$14=0,D$14="")),I27/F27/(D$13/12),I27/F27/(D$14/12))),IF(ISERROR(I27/G27),0,IF(OR(ISBLANK(D$14),OR(D$14=0,D$14="")),I27/G27/(D$13/12),I27/G27/(D$14/12)))),4)) -> 0 | L27: =IF(C27="kWh",ROUND(IF(ISERROR('4. Billing Det. for Def-Var'!W25/D27), 0, IF(OR(ISBLANK(D$15), OR(D$15=0, D$15="")), ('4. Billing Det. for Def-Var'!W25/D27)/(D$13/12), ('4. Billing Det. for Def-Var'!W25/D27)/(D$15/12))),4),ROUND(IF(ISERROR('4. Billing Det. for Def-Var'!W25/E27), 0, IF(OR(ISBLANK(D$15), OR(D$15=0, D$15="")), ('4. Billing Det. for Def-Var'!W25/E27)/(D$13/12), ('4. Billing Det. for Def-Var'!W25/E27)/(D$15/12))),4)) -> 0 | M27: 0 | N27: 0
M29: =SUM(M19:M28) -> 0 | N29: =SUM(N19:N28) -> 0 | O29: =SUM(M29:N29) -> 0
B32: 1 When calculating the revenue reconciliation for distributors with Class A customers, the balances of sub-account 1580-CBR Class A and B will not be taken into consideration since the rate riders, if any, are calculated outside of the model.
B33: 2 Only for rate classes with WMP customers are the Deferral/Variance Account Rate Riders for Non-WMP (column H and J) calculated separately. For all rate classes without WMP customers, balances in account 1580 and 1588 are included in column H and disposed through a combined Deferral/Variance Account and Rate Rider.

Sheet 9. STS-Tax Change
A1: Back to Index | U1: Tax Rates | V1: Effective
B2: =+'1. Information Sheet'!B2 -> INCENTIVE REGULATION MODEL FOR 2020 FILERS | U2: Federal & Provincial | V2: 2016-01-01
U3: As of June 20, 2012
U5: Federal income tax | V5: 0.38
U6: General corporate rate | V6: -0.1
U7: Federal tax abatement | V7: =SUM(V5:V6) -> 0.28
U8: Adjusted federal rate | V8: -0.13
U9: Rate reduction | V9: =V7+V8 -> 0.15
U10: Ontario income tax | V10: 0.115
U12: Combined federal and Ontario | V12: =V9+V10 -> 0.265
B13: Summary - Sharing of Tax Change Forecast Amounts
U14: Federal & Ontario Small Business
B15: ="For the " & '1. Information Sheet'!G32 & " year, enter any Tax Credits from the Cost of Service Tax Calculation (Positive #)" -> For the 2016 year, enter any Tax Credits from the Cost of Service Tax Calculation (Positive #) | M15: 199000 | U15: Federal small business threshold | V15: 500000
U16: Ontario Small Business Threshold | V16: 500000
B18: 1. Tax Related Amounts Forecast from Capital Tax Rate Changes | M18: 2016 | O18: 2018 | U18: Federal small business rate | V18: 0.105
B19: Taxable Capital (if you are not claiming capital tax, please enter your OEB-Approved Rate Base) | M19: 151391729.9 | O19: =M19 -> 151391729.9
U20: Ontario small business rate | V20: 0.045
B21: Deduction from taxable capital up to $15,000,000 | M21: 0 | O21: =M21 -> 0
B23: Net Taxable Capital | M23: =M19-M21 -> 151391729.9 | O23: =O19-O21 -> 151391729.9
B25: Rate | M25: 0 | O25: 0 | U25: Ontario Tax Rate (Maximum 11.5%)
U26: Federal tax rate (Maximum 15%)
B27: Ontario Capital Tax (Deductible, not grossed-up) | M27: =IF(M23>0, M23*M25, 0)*181/365 -> 0 | O27: 0 | U27: Combined tax rate (Maximum 26.5%)
B29: 2. Tax Related Amounts Forecast from lncome Tax Rate Changes
B30: Regulatory Taxable Income | M30: 2671866 | O30: =M30 -> 2671866
B32: Corporate Tax Rate | M32: 0.265 | O32: =IF(ratebase>15000000, 26.5%, IF(ratebase<10000000, 15%, 15%+11.5%*((ratebase-10000000)/5000000))) -> 0.265
B34: Tax Impact | M34: =M30*M32-M15 -> 509044.49 | O34: =O30*O32-M15 -> 509044.49
B36: Grossed-up Tax Amount | M36: =M34/(1-M32) -> 692577.5374 | O36: =O34/(1-O32) -> 692577.5374
B38: Tax Related Amounts Forecast from Capital Tax Rate Changes | M38: =M27 -> 0 | O38: =O27 -> 0
B40: Tax Related Amounts Forecast from lncome Tax Rate Changes | M40: =M36 -> 692577.5374 | O40: =O36 -> 692577.5374
B42: Total Tax Related Amounts | M42: =SUM(M40,M38) -> 692577.5374 | O42: =SUM(O40,O38) -> 692577.5374
B44: Incremental Tax Savings | O44: =O42-M42 -> 0
B46: Sharing of Tax Amount (50%) | O46: =0.5*O44 -> 0

Sheet 10. Shared Tax - RR
A1: Back to Index
B2: =+'1. Information Sheet'!B2 -> INCENTIVE REGULATION MODEL FOR 2020 FILERS
B12: Calculation of Rebased Revenue Requirement and Allocation of Tax Sharing Amount. Enter data from the last OEB-Approved Cost of Service application in columns D through I.
B13: As per Chapter 3 Filing Requirements, shared tax rate riders are based on a 1 year disposition.
B15: Rate Class | D15: Re-based Billed Customers or Connections | E15: Re-based Billed kWh | F15: Re-based Billed kW | G15: Re-based Service Charge | H15: Re-based Distribution Volumetric Rate kWh | I15: Re-based Distribution Volumetric Rate kW | J15: Service Charge Revenue | K15: Distribution Volumetric Rate Revenue kWh | L15: Distribution Volumetric Rate Revenue kW | M15: Revenue Requirement from Rates | N15: Service Charge % Revenue | O15: Distribution Volumetric Rate % Revenue kWh | P15: Distribution Volumetric Rate % Revenue kW | Q15: Total % Revenue
D16: A | E16: B | F16: C | G16: D | H16: E | I16: F | J16: G = A * D *12 | K16: H = B * E | L16: I = C * F | M16: J = G + H + I | N16: K = G / J | O16: L = H / J | P16: M = I / J | Q16: N = J / R
B17: ='4. Billing Det. for Def-Var'!B17 -> RESIDENTIAL SERVICE CLASSIFICATION | C17: ='4. Billing Det. for Def-Var'!C17 -> kWh | D17: 50241.8156 | E17: 386643527.7 | F17: 0 | G17: 18.93 | H17: 0.0144 | I17: 0 | J17: =G17*D17*12 -> 11412930.83 | K17: =E17*H17 -> 5567666.798 | L17: =F17*I17 -> 0 | M17: =J17+K17+L17 -> 16980597.63 | N17: =IF(ISERROR(J17/M17),0,J17/M17) -> 0.6721159691 | O17: =IF(ISERROR(K17/M17),0,K17/M17) -> 0.3278840309 | P17: =IF(ISERROR(L17/M17),0,L17/M17) -> 0 | Q17: =IF(ISERROR(M17/M30),0,M17/M30) -> 0.574179635
B18: ='4. Billing Det. for Def-Var'!B18 -> GENERAL SERVICE LESS THAN 50 kW SERVICE CLASSIFICATION | C18: ='4. Billing Det. for Def-Var'!C18 -> kWh | D18: 4100.869041 | E18: 152157762.8 | F18: 0 | G18: 16.33 | H18: 0.0137 | I18: 0 | J18: 803606.2973 | K18: 2084561.35 | L18: 0 | M18: 2888167.647 | N18: 0.2782408764 | O18: 0.7217591236 | P18: 0 | Q18: =IF(ISERROR(M18/M30),0,M18/M30) -> 0.09766011077
B19: ='4. Billing Det. for Def-Var'!B19 -> GENERAL SERVICE 50 to 999 KW SERVICE CLASSIFICATION | C19: ='4. Billing Det. for Def-Var'!C19 -> kW | D19: 567.3282144 | E19: 401243062.3 | F19: 1046604.601 | G19: 177.03 | H19: 0 | I19: 2.6971 | J19: 1205209.366 | K19: 0 | L19: 2822797.27 | M19: 4028006.636 | N19: 0.2992073933 | O19: 0 | P19: 0.7007926067 | Q19: =IF(ISERROR(M19/M30),0,M19/M30) -> 0.1362024724
B20: ='4. Billing Det. for Def-Var'!B20 -> GENERAL SERVICE 1,000 to 4,999 KW SERVICE CLASSIFICATION | C20: ='4. Billing Det. for Def-Var'!C20 -> kW | D20: 41.80672908 | E20: 564253256.6 | F20: 1196727.21 | G20: 560 | H20: 0 | I20: 2.9942 | J20: 280941.2194 | K20: 0 | L20: 3583240.613 | M20: 3864181.832 | N20: 0.07270393362 | O20: 0 | P20: 0.9272960664 | Q20: =IF(ISERROR(M20/M30),0,M20/M30) -> 0.1306629226
B21: ='4. Billing Det. for Def-Var'!B21 -> LARGE USE SERVICE CLASSIFICATION | C21: ='4. Billing Det. for Def-Var'!C21 -> kW | D21: 4.597407208 | E21: 278656832.5 | F21: 499880.3132 | G21: 1076.53 | H21: 0 | I21: 2.6901 | J21: 59390.96138 | K21: 0 | L21: 1344728.031 | M21: 1404118.992 | N21: 0.04229766973 | O21: 0 | P21: 0.9577023303 | Q21: =IF(ISERROR(M21/M30),0,M21/M30) -> 0.04747868996
B22: ='4. Billing Det. for Def-Var'!B22 -> UNMETERED SCATTERED LOAD SERVICE CLASSIFICATION | C22: ='4. Billing Det. for Def-Var'!C22 -> kWh | D22: 545.1113036 | E22: 1700939.271 | F22: 0 | G22: 4.78 | H22: 0.0218 | I22: 0 | J22: 31267.58438 | K22: 37080.47611 | L22: 0 | M22: 68348.06049 | N22: 0.4574758106 | O22: 0.5425241894 | P22: 0 | Q22: =IF(ISERROR(M22/M30),0,M22/M30) -> 0.002311112087
B23: ='4. Billing Det. for Def-Var'!B23 -> STANDBY POWER SERVICE CLASSIFICATION | C23: ='4. Billing Det. for Def-Var'!C23 -> kW | D23: 0 | E23: 0 | F23: 0 | G23: 0 | H23: 0 | I23: 0 | J23: 0 | K23: 0 | L23: 0 | M23: 0 | N23: 0 | O23: 0 | P23: 0 | Q23: =IF(ISERROR(M23/M30),0,M23/M30) -> 0
B24: ='4. Billing Det. for Def-Var'!B24 -> SENTINEL LIGHTING SERVICE CLASSIFICATION | C24: ='4. Billing Det. for Def-Var'!C24 -> kW | D24: 6 | E24: 21456.95841 | F24: 60.19709041 | G24: 7.39 | H24: 0 | I24: 8.1829 | J24: 532.08 | K24: 0 | L24: 492.5867711 | M24: 1024.666771 | N24: 0.5192712548 | O24: 0 | P24: 0.4807287452 | Q24: =IF(ISERROR(M24/M30),0,M24/M30) -> 3.464794381e-05
B25: ='4. Billing Det. for Def-Var'!B25 -> STREET LIGHTING SERVICE CLASSIFICATION | C25: ='4. Billing Det. for Def-Var'!C25 -> kW | D25: 14172.06693 | E25: 9628070.207 | F25: 26693 | G25: 0.42 | H25: 0 | I25: 10.0324 | J25: 71427.2173 | K25: 0 | L25: 267794.8532 | M25: 339222.0705 | N25: 0.2105618222 | O25: 0 | P25: 0.7894381778 | Q25: =IF(ISERROR(M25/M30),0,M25/M30) -> 0.01147040928
J26: =G26*D26*12 -> 0 | K26: =E26*H26 -> 0 | L26: =F26*I26 -> 0 | M26: =J26+K26+L26 -> 0 | N26: =IF(ISERROR(J26/M26),0,J26/M26) -> 0 | O26: =IF(ISERROR(K26/M26),0,K26/M26) -> 0 | P26: =IF(ISERROR(L26/M26),0,L26/M26) -> 0 | Q26: =IF(ISERROR(M26/M31),0,M26/M31) -> 0
J27: 0 | K27: 0 | L27: 0 | M27: 0 | N27: 0 | O27: 0 | P27: 0 | Q27: 0
J28: 0 | K28: 0 | L28: 0 | M28: 0 | N28: 0 | O28: 0 | P28: 0 | Q28: 0
J29: 0 | K29: 0 | L29: 0 | M29: 0 | N29: 0 | O29: 0 | P29: 0 | Q29: 0
B30: Total | D30: =SUM(D17:D29) -> 69679.59523 | E30: =SUM(E17:E29) -> 1794304908 | F30: 2769965.322 | J30: =SUM(J17:J29) -> 13865305.56 | K30: =SUM(K17:K29) -> 7689308.625 | L30: 8019053.354 | M30: 29573667.54 | Q30: =SUM(Q17:Q29) -> 1
B33: Rate Class | D33: Total kWh (most recent RRR filing) | E33: Total kW (most recent RRR filing) | F33: Allocation of Tax Savings by Rate Class | G33: Distribution Rate Rider
B34: =B17 -> RESIDENTIAL SERVICE CLASSIFICATION | C34: kWh | D34: ='4. Billing Det. for Def-Var'!D17 -> 384041745.3 | E34: ='4. Billing Det. for Def-Var'!E17 -> 0 | F34: =F$48*Q17 -> 0 | G34: =IFERROR(ROUND(F34/'4. Billing Det. for Def-Var'!X17,2),"") -> 0 | H34: $/Customer | I34: If the allocated tax sharing amount does not produce a rate rider in one or more rate class (except for the Standby rate class), a distributor is required to transfer the entire OEB-approved tax sharing amount into account 1595 for disposition at a later date (see Filing Requirements, Appendix B)
B35: GENERAL SERVICE LESS THAN 50 kW SERVICE CLASSIFICATION | C35: kWh | D35: ='4. Billing Det. for Def-Var'!D18 -> 142209076.4 | E35: ='4. Billing Det. for Def-Var'!E18 -> 0 | F35: =F$48*Q18 -> 0 | G35: =IFERROR(ROUND(IF(E35<>0,F35/E35,F35/D35),4),"") -> 0 | H35: $/kWh
B36: GENERAL SERVICE 50 to 999 KW SERVICE CLASSIFICATION | C36: kW | D36: ='4. Billing Det. for Def-Var'!D19 -> 402350218.4 | E36: ='4. Billing Det. for Def-Var'!E19 -> 1097498.68 | F36: 0 | G36: =IFERROR(ROUND(IF(E36<>0,F36/E36,F36/D36),4),"") -> 0 | H36: $/kW
B37: GENERAL SERVICE 1,000 to 4,999 KW SERVICE CLASSIFICATION | C37: kW | D37: ='4. Billing Det. for Def-Var'!D20 -> 540417877.7 | E37: ='4. Billing Det. for Def-Var'!E20 -> 1135424.51 | F37: 0 | G37: 0 | H37: $/kW
B38: LARGE USE SERVICE CLASSIFICATION | C38: kW | D38: ='4. Billing Det. for Def-Var'!D21 -> 197428961.9 | E38: ='4. Billing Det. for Def-Var'!E21 -> 423180.01 | F38: 0 | G38: 0 | H38: $/kWh
B39: UNMETERED SCATTERED LOAD SERVICE CLASSIFICATION | C39: kWh | D39: ='4. Billing Det. for Def-Var'!D22 -> 1810677.873 | E39: ='4. Billing Det. for Def-Var'!E22 -> 0 | F39: 0 | G39: 0 | H39: $/kWh
B40: STANDBY POWER SERVICE CLASSIFICATION | C40: kW | D40: ='4. Billing Det. for Def-Var'!D23 -> 0 | E40: ='4. Billing Det. for Def-Var'!E23 -> 0 | F40: 0 | H40: $/kW
B41: SENTINEL LIGHTING SERVICE CLASSIFICATION | C41: kW | D41: ='4. Billing Det. for Def-Var'!D24 -> 18188.97 | E41: ='4. Billing Det. for Def-Var'!E24 -> 50.75873103 | F41: 0 | G41: 0 | H41: $/kW
B42: STREET LIGHTING SERVICE CLASSIFICATION | C42: kW | D42: ='4. Billing Det. for Def-Var'!D25 -> 10182749.65 | E42: ='4. Billing Det. for Def-Var'!E25 -> 28424.58 | F42: 0 | G42: =IFERROR(ROUND(IF(E42<>"",F42/E42,F42/D42),4),"") -> 0
F43: =F$48*Q30 -> 0
F44: =F$48*Q31 -> 0
F45: 0
F46: 0
D48: =SUM(D34:D47) -> 1678459496 | E48: =SUM(E34:E47) -> 2684578.539 | F48: =ROUND('9. STS-Tax Change'!O46,2) -> 0

Sheet 11. RTSR - Current Rates
A1: Back to Index | BA1: 1
B2: =+'1. Information Sheet'!B2 -> INCENTIVE REGULATION MODEL FOR 2020 FILERS
B13: Columns F and G must match the data from the most recent RRR filing (Tab 4). Rates have been imported from Tab "RATES". Loss Factor has been imported from "Model Specs" tab. If the data needs to be modified, please make the necessary adjustments and note the changes in your manager's summary.
B15: Rate Class | C15: Rate Description | D15: Unit | E15: Rate | F15: Non-Loss Adjusted Metered kWh | G15: Non-Loss Adjusted Metered kW | H15: Applicable Loss Factor | I15: Loss Adjusted Billed kWh
A16: =IFERROR(VLOOKUP(B16,'Model Specs'!K$16:N$33,3,FALSE),"") -> R_TN | B16: ='4. Billing Det. for Def-Var'!B17 -> RESIDENTIAL SERVICE CLASSIFICATION | C16: Retail Transmission Rate – Network Service Rate | D16: $/kWh | E16: =IFERROR(VLOOKUP(A16,_xlnm.DATABASE,8,FALSE),0) -> 0.0068 | F16: ='4. Billing Det. for Def-Var'!D17 -> 384041745.3 | G16: ='4. Billing Det. for Def-Var'!E17 -> 0 | H16: =IF(D16="$/kwh",LLF,"") -> 1.026 | I16: =IF(H16="","",F16*H16) -> 394026830.7
A17: =IFERROR(VLOOKUP(B17,'Model Specs'!K$16:N$33,3,FALSE),"") -> GSL_TN | B17: ='4. Billing Det. for Def-Var'!B18 -> GENERAL SERVICE LESS THAN 50 kW SERVICE CLASSIFICATION | C17: Retail Transmission Rate – Network Service Rate | D17: $/kWh | E17: 0.0062 | F17: ='4. Billing Det. for Def-Var'!D18 -> 142209076.4 | G17: ='4. Billing Det. for Def-Var'!E18 -> 0 | H17: 1.026 | I17: =IF(H17="","",F17*H17) -> 145906512.4
A18: =IFERROR(VLOOKUP(B18,'Model Specs'!K$16:N$33,3,FALSE),"") -> GS50_999_TN | B18: ='4. Billing Det. for Def-Var'!B19 -> GENERAL SERVICE 50 to 999 KW SERVICE CLASSIFICATION | C18: Retail Transmission Rate – Network Service Rate | D18: $/kW | E18: 2.6001 | F18: 347100188.4 | G18: 946792.0761
A19: GS1000I_TN | B19: ='4. Billing Det. for Def-Var'!B20 -> GENERAL SERVICE 1,000 to 4,999 KW SERVICE CLASSIFICATION | C19: Retail Transmission Rate – Network Service Rate | D19: $/kW | E19: 2.697 | F19: ='4. Billing Det. for Def-Var'!D20 -> 540417877.7 | G19: ='4. Billing Det. for Def-Var'!E20 -> 1135424.51
A20: =IFERROR(VLOOKUP(B20,'Model Specs'!K$16:N$33,3,FALSE),"") -> LU_TN | B20: ='4. Billing Det. for Def-Var'!B21 -> LARGE USE SERVICE CLASSIFICATION | C20: Retail Transmission Rate – Network Service Rate | D20: $/kW | E20: 3.257 | F20: ='4. Billing Det. for Def-Var'!D21 -> 197428961.9 | G20: ='4. Billing Det. for Def-Var'!E21 -> 423180.01
A21: =IFERROR(VLOOKUP(B21,'Model Specs'!K$16:N$33,3,FALSE),"") -> USL_TN | B21: ='4. Billing Det. for Def-Var'!B22 -> UNMETERED SCATTERED LOAD SERVICE CLASSIFICATION | C21: Retail Transmission Rate – Network Service Rate | D21: $/kWh | E21: 0.0062 | F21: ='4. Billing Det. for Def-Var'!D22 -> 1810677.873 | G21: ='4. Billing Det. for Def-Var'!E22 -> 0 | H21: 1.026 | I21: 1857755.497
A22: =IFERROR(VLOOKUP(B22,'Model Specs'!K$16:N$33,3,FALSE),"") -> SB | B22: ='4. Billing Det. for Def-Var'!B23 -> STANDBY POWER SERVICE CLASSIFICATION | E22: 0 | F22: ='4. Billing Det. for Def-Var'!D23 -> 0 | G22: ='4. Billing Det. for Def-Var'!E23 -> 0
A23: =IFERROR(VLOOKUP(B23,'Model Specs'!K$16:N$33,3,FALSE),"") -> SEN_TN | B23: ='4. Billing Det. for Def-Var'!B24 -> SENTINEL LIGHTING SERVICE CLASSIFICATION | C23: Retail Transmission Rate – Network Service Rate | D23: $/kW | E23: 1.9906 | F23: ='4. Billing Det. for Def-Var'!D24 -> 18188.97 | G23: ='4. Billing Det. for Def-Var'!E24 -> 50.75873103
A24: =IFERROR(VLOOKUP(B24,'Model Specs'!K$16:N$33,3,FALSE),"") -> SL_TN | B24: ='4. Billing Det. for Def-Var'!B25 -> STREET LIGHTING SERVICE CLASSIFICATION | C24: Retail Transmission Rate – Network Service Rate | D24: $/kW | E24: =IFERROR(VLOOKUP(A24,_xlnm.DATABASE,8,FALSE),0) -> 2.3954 | F24: ='4. Billing Det. for Def-Var'!D25 -> 10182749.65 | G24: ='4. Billing Det. for Def-Var'!E25 -> 28424.58
A25: GS50_999I_TN | B25: GENERAL SERVICE 50 to 999 KW SERVICE CLASSIFICATION | C25: Retail Transmission Rate – Network Service Rate - Interval Metered | D25: $/kW | E25: 2.697 | F25: 55250029.99 | G25: 150706.6039
A29: =IFERROR(VLOOKUP(B29,'Model Specs'!K$16:N$33,4,FALSE),"") -> R_TC | B29: =B16 -> RESIDENTIAL SERVICE CLASSIFICATION | C29: Retail Transmission Rate – Line and Transformation Connection Service Rate | D29: =D16 -> $/kWh | E29: =IFERROR(VLOOKUP(A29,_xlnm.DATABASE,8,FALSE),0) -> 0.0062 | F29: =F16 -> 384041745.3 | G29: =G16 -> 0 | H29: =IF(D29="$/kwh",LLF,"") -> 1.026 | I29: =IF(H29="","",F29*H29) -> 394026830.7
A30: =IFERROR(VLOOKUP(B30,'Model Specs'!K$16:N$33,4,FALSE),"") -> GSL_TC | B30: =B17 -> GENERAL SERVICE LESS THAN 50 kW SERVICE CLASSIFICATION | C30: Retail Transmission Rate – Line and Transformation Connection Service Rate | D30: =D17 -> $/kWh | E30: 0.0055 | F30: =F17 -> 142209076.4 | G30: 0 | H30: 1.026 | I30: =IF(H30="","",F30*H30) -> 145906512.4
A31: =IFERROR(VLOOKUP(B31,'Model Specs'!K$16:N$33,4,FALSE),"") -> GS50_999_TC | B31: GENERAL SERVICE 50 to 999 KW SERVICE CLASSIFICATION | C31: Retail Transmission Rate – Line and Transformation Connection Service Rate | D31: $/kW | E31: 2.3084 | F31: 347100188.4 | G31: 946792.0761
A32: GS1000I_TC | B32: GENERAL SERVICE 1,000 to 4,999 KW SERVICE CLASSIFICATION | C32: Retail Transmission Rate – Line and Transformation Connection Service Rate | D32: $/kW | E32: 2.395 | F32: 540417877.7 | G32: 1135424.51
A33: =IFERROR(VLOOKUP(B33,'Model Specs'!K$16:N$33,4,FALSE),"") -> LU_TC | B33: LARGE USE SERVICE CLASSIFICATION | C33: Retail Transmission Rate – Line and Transformation Connection Service Rate | D33: $/kW | E33: 2.8919 | F33: 197428961.9 | G33: 423180.01
A34: =IFERROR(VLOOKUP(B34,'Model Specs'!K$16:N$33,4,FALSE),"") -> USL_TC | B34: UNMETERED SCATTERED LOAD SERVICE CLASSIFICATION | C34: Retail Transmission Rate – Line and Transformation Connection Service Rate | D34: $/kWh | E34: 0.0055 | F34: 1810677.873 | G34: 0 | H34: 1.026 | I34: 1857755.497
A35: =IFERROR(VLOOKUP(B35,'Model Specs'!K$16:N$33,4,FALSE),"") -> SB | B35: STANDBY POWER SERVICE CLASSIFICATION | E35: 0 | F35: 0 | G35: 0
A36: =IFERROR(VLOOKUP(B36,'Model Specs'!K$16:N$33,4,FALSE),"") -> SEN_TC | B36: SENTINEL LIGHTING SERVICE CLASSIFICATION | C36: Retail Transmission Rate – Line and Transformation Connection Service Rate | D36: $/kW | E36: 1.7675 | F36: 18188.97 | G36: 50.75873103
A37: =IFERROR(VLOOKUP(B37,'Model Specs'!K$16:N$33,4,FALSE),"") -> SL_TC | B37: STREET LIGHTING SERVICE CLASSIFICATION | C37: Retail Transmission Rate – Line and Transformation Connection Service Rate | D37: $/kW | E37: =IFERROR(VLOOKUP(A37,_xlnm.DATABASE,8,FALSE),0) -> 2.1267 | F37: 10182749.65 | G37: 28424.58
A38: GS50_999I_TC | B38: GENERAL SERVICE 50 to 999 KW SERVICE CLASSIFICATION | C38: Retail Transmission Rate – Line and Transformation Connection Service Rate - Interval Metered | D38: $/kW | E38: =IFERROR(VLOOKUP(A38,_xlnm.DATABASE,8,FALSE),0) -> 2.395 | F38: 55250029.99 | G38: 150706.6039

Sheet 12. RTSR-UTRs & Sub-Tx
A1: Back to Index
B2: =+'1. Information Sheet'!B2 -> INCENTIVE REGULATION MODEL FOR 2020 FILERS
B12: Uniform Transmission Rates | C12: Unit | E12: 2018 | G12: 2019 | I12: 2020
B14: Rate Description | E14: Rate | G14: Rate | I14: Rate
B16: Network Service Rate | C16: kW | E16: 3.61 | G16: 3.71 | I16: =G16 -> 3.71
B18: Line Connection Service Rate | C18: kW | E18: 0.95 | G18: 0.94 | I18: =G18 -> 0.94
B20: Transformation Connection Service Rate | C20: kW | E20: 2.34 | G20: 2.25 | I20: =G20 -> 2.25
B23: Hydro One Sub-Transmission Rates | C23: Unit | E23: =E12 -> 2018 | G23: =G12 -> 2019 | I23: =I12 -> 2020
